Capital or Revenue,Directorate,Transaction Number,Date,Service Area,Expenses Type,Amount,Supplier Name
Revenue,Director of Childrens Services,5105689232,17.09.2014,Support for Looked After Children,Support Children,540,REDACTED PERSONAL DATA
Revenue,Managing Director & Head of Paid Service,5105691779,29.09.2014,Strengthening Families,Payments to Voluntary and Other Associations,25,SPOTLIGHT BOUTIQUE
Revenue,Managing Director & Head of Paid Service,5105689177,19.09.2014,Strengthening Families,Payments to Voluntary and Other Associations,25,SPOTLIGHT BOUTIQUE
Revenue,Director of Childrens Services,5105682858,12.09.2014,Workshop Initiative Support in Education,Cleaning Contracts,160,SEECLEAR
Revenue,Managing Director & Head of Paid Service,5105687224,03.09.2014,Public Health Core,Consultants Fees,"4,550.00",REDACTED PERSONAL DATA
Revenue,Head of HR & Organisational Change,5105690662,24.09.2014,Administrative Buildings,Security of Buildings,100,REDACTED PERSONAL DATA
Revenue,Head of HR & Organisational Change,5105690662,24.09.2014,Treeside (former Intensive Support Serv),Security of Buildings,100,REDACTED PERSONAL DATA
Revenue,Head of HR & Organisational Change,5105690662,24.09.2014,Non-operational buildings,Security of Buildings,100,REDACTED PERSONAL DATA
Revenue,Head of HR & Organisational Change,5105690662,24.09.2014,York Centre E Cowes,Security of Buildings,25,REDACTED PERSONAL DATA
Revenue,Head of HR & Organisational Change,5105690662,24.09.2014,Church View Ventnor,Security of Buildings,100,REDACTED PERSONAL DATA
Revenue,Director of Childrens Services,5105690661,24.09.2014,Clatterford Pupil Referral Unit (PRU),Security of Buildings,40,REDACTED PERSONAL DATA
Revenue,Head of HR & Organisational Change,5105690662,24.09.2014,Carisbrooke Contact Centre,Security of Buildings,100,REDACTED PERSONAL DATA
Revenue,Director of Childrens Services,5105690662,24.09.2014,Youth- Shorwell,Security of Buildings,100,REDACTED PERSONAL DATA
Revenue,Head of HR & Organisational Change,5105690662,24.09.2014,"Atkinson Drive, Newport",Security of Buildings,100,REDACTED PERSONAL DATA
Revenue,Director of Childrens Services,5105690661,24.09.2014,Old Cowes Enterprise College,Minor Works,40,REDACTED PERSONAL DATA
Revenue,Director of Childrens Services,5105690661,24.09.2014,Old Cowes Enterprise College,Security of Buildings,"1,240.00",REDACTED PERSONAL DATA
Revenue,Director of Childrens Services,5105690662,24.09.2014,Old Cowes Enterprise College,Security of Buildings,300,REDACTED PERSONAL DATA
Revenue,Director of Childrens Services,5105690662,24.09.2014,Gatten & Lake Primary School Disposal,Security of Buildings,300,REDACTED PERSONAL DATA
Revenue,Director of Childrens Services,5105690661,24.09.2014,Hunnyhill Primary School Disposal,Security of Buildings,310,REDACTED PERSONAL DATA
Revenue,Head of Economy & Tourism,5105690662,24.09.2014,Ryde Depot,Security of Buildings,100,REDACTED PERSONAL DATA
Revenue,Director of Childrens Services,5105688377,10.09.2014,Adoption Team,Professional Services,40,REDACTED PERSONAL DATA
Revenue,Managing Director & Head of Paid Service,5105687570,12.09.2014,Drug Misuse - Adults,Payment to Private Contractors,160,REDACTED PERSONAL DATA
Revenue,Managing Director & Head of Paid Service,5105689216,17.09.2014,Drug Misuse - Adults,Payment to Private Contractors,125,REDACTED PERSONAL DATA
Revenue,Managing Director & Head of Paid Service,5105687572,12.09.2014,Drug Misuse - Adults,Payment to Private Contractors,70,REDACTED PERSONAL DATA
Revenue,Managing Director & Head of Paid Service,5105688744,12.09.2014,Drug Misuse - Adults,Payment to Private Contractors,210,REDACTED PERSONAL DATA
Revenue,Head of Planning & Regulatory Services,5105691427,26.09.2014,East Wight Landscape Partnership-Development,Consultants Fees,"5,250.00",REDACTED PERSONAL DATA
Revenue,Managing Director & Head of Paid Service,5105688472,12.09.2014,Drug Misuse - Adults,Payment to Private Contractors,210,REDACTED PERSONAL DATA
Revenue,Managing Director & Head of Paid Service,5105691678,29.09.2014,Drug Misuse - Adults,Payment to Private Contractors,210,REDACTED PERSONAL DATA
Revenue,Director of Childrens Services,5105686377,05.09.2014,Complaints (Children & Families),Professional Services,"1,729.30",REDACTED PERSONAL DATA
Revenue,Managing Director & Head of Paid Service,5105687114,05.09.2014,Strengthening Families,Payments to Voluntary and Other Associations,50,REDACTED PERSONAL DATA
Revenue,Director of Childrens Services,5105690659,24.09.2014,Thompson House Tuition Centre (PRU),Professional Services,75,ISLAND EQUUS
Revenue,Director of Childrens Services,5105690657,24.09.2014,Thompson House Tuition Centre (PRU),Professional Services,350,ISLAND EQUUS
Revenue,Director of Childrens Services,5105690658,24.09.2014,Clatterford Pupil Referral Unit (PRU),Professional Services,"3,330.00",ISLAND EQUUS
Revenue,Director of Childrens Services,5105690660,26.09.2014,Support for Looked After Children,Support Children,"1,875.00",ISLAND EQUUS
Revenue,Director of Childrens Services,5105688424,12.09.2014,Special Educational Needs Reforms Grant,Agency staff,"1,292.15",REDACTED PERSONAL DATA
Revenue,Director of Childrens Services,5105688847,12.09.2014,Adult Social Care ASYE,Training,498.34,REDACTED PERSONAL DATA
Revenue,Director of Childrens Services,5105688850,12.09.2014,Adult Social Care ASYE,Training,996.67,REDACTED PERSONAL DATA
Revenue,Director of Childrens Services,5105688808,12.09.2014,Education Participation Team,Cleaning Contracts,8,REDACTED PERSONAL DATA
Revenue,Director of Childrens Services,5105688487,10.09.2014,Youth Offending Team,Support Children,675,REDACTED PERSONAL DATA
Revenue,Director of Childrens Services,5105690300,19.09.2014,MOI Funding,Payment to Private Contractors,335,REDACTED PERSONAL DATA
Revenue,Head of Economy & Tourism,5105691136,26.09.2014,Rights of Way Operations,Payment to Private Contractors,100,REDACTED PERSONAL DATA
Capital,Head of Economy & Tourism,5105690650,24.09.2014,Rights Of Way Capital Programme,Payment to Contractors - Capital,420,REDACTED PERSONAL DATA
Revenue,Head of ASC & Community Wellbeing,5105690693,24.09.2014,Leaseholds by LA,Accommodation Costs - Leaseholder Payments,695.89,REDACTED PERSONAL DATA
Revenue,Head of ASC & Community Wellbeing,5105690693,24.09.2014,Leaseholds by LA,Accommodation Costs - Leaseholder Payments,695.89,REDACTED PERSONAL DATA
Revenue,Head of ASC & Community Wellbeing,5105690693,24.09.2014,Leaseholds by LA,Accommodation Costs - Leaseholder Payments,695.89,REDACTED PERSONAL DATA
Revenue,Head of ASC & Community Wellbeing,5105690693,24.09.2014,Leaseholds by LA,Accommodation Costs - Leaseholder Payments,695.89,REDACTED PERSONAL DATA
Revenue,Head of ASC & Community Wellbeing,5105690693,24.09.2014,Leaseholds by LA,Accommodation Costs - Leaseholder Payments,695.89,REDACTED PERSONAL DATA
Revenue,Director of Childrens Services,5105688735,12.09.2014,Short Breaks,Charges from Independent Providers,100,REDACTED PERSONAL DATA
Revenue,Managing Director & Head of Paid Service,5105690828,26.09.2014,Strengthening Families,Payments to Voluntary and Other Associations,50,REDACTED PERSONAL DATA
Revenue,Managing Director & Head of Paid Service,5105690829,26.09.2014,Strengthening Families,Payments to Voluntary and Other Associations,50,REDACTED PERSONAL DATA
Revenue,Managing Director & Head of Paid Service,5105688425,17.09.2014,Strengthening Families,Payments to Voluntary and Other Associations,50,REDACTED PERSONAL DATA
Revenue,Managing Director & Head of Paid Service,5105688433,17.09.2014,Strengthening Families,Payments to Voluntary and Other Associations,50,REDACTED PERSONAL DATA
Revenue,Director of Childrens Services,5105687103,05.09.2014,LSCB (Local Safeguarding Childrens Board),Training,500,REDACTED PERSONAL DATA
Revenue,Director of Childrens Services,5105687103,05.09.2014,LSCB (Local Safeguarding Childrens Board),Training,176.85,REDACTED PERSONAL DATA
Revenue,Director of Childrens Services,5105687103,05.09.2014,LSCB (Local Safeguarding Childrens Board),Training,500,REDACTED PERSONAL DATA
Revenue,Director of Childrens Services,5105687092,05.09.2014,Short Breaks,Grants to External Bodies,740,REDACTED PERSONAL DATA
Revenue,Head of Economy & Tourism,5105687554,10.09.2014,Cowes Week,Security of Buildings,22.5,2CL COMMUNICATIONS LTD
Revenue,Head of Economy & Tourism,5105688523,12.09.2014,Cowes Week,Security of Buildings,9.95,2CL COMMUNICATIONS LTD
Revenue,Head of Economy & Tourism,5105687036,03.09.2014,Cowes Week,Operational Equipment,221,2CL COMMUNICATIONS LTD
Revenue,Head of ASC & Community Wellbeing,5105690713,24.09.2014,Leaseholds by LA,Accommodation Costs - Leaseholder Payments,866.67,2K PROPERTY
Revenue,Head of ASC & Community Wellbeing,5105687549,05.09.2014,Adelaide Resource Centre,Catering Purchases,-11.43,3663 (BFS GROUP LTD)
Revenue,Head of ASC & Community Wellbeing,5105689161,17.09.2014,Adelaide Resource Centre,Catering Purchases,11.43,3663 (BFS GROUP LTD)
Revenue,Head of ASC & Community Wellbeing,5105691768,29.09.2014,Adelaide Resource Centre,Catering Purchases,62.84,3663 (BFS GROUP LTD)
Revenue,Head of ASC & Community Wellbeing,5105691766,29.09.2014,Adelaide Resource Centre,Catering Purchases,18.31,3663 (BFS GROUP LTD)
Revenue,Head of ASC & Community Wellbeing,5105691764,29.09.2014,Adelaide Resource Centre,Catering Purchases,31.32,3663 (BFS GROUP LTD)
Revenue,Head of ASC & Community Wellbeing,5105691764,29.09.2014,Adelaide Resource Centre,Catering Purchases,258.53,3663 (BFS GROUP LTD)
Revenue,Head of ASC & Community Wellbeing,5105691766,29.09.2014,Adelaide Resource Centre,Catering Purchases,71.36,3663 (BFS GROUP LTD)
Revenue,Head of ASC & Community Wellbeing,5105691768,29.09.2014,Adelaide Resource Centre,Catering Purchases,252.67,3663 (BFS GROUP LTD)
Revenue,Head of ASC & Community Wellbeing,5105691770,29.09.2014,Adelaide Resource Centre,Catering Purchases,82.12,3663 (BFS GROUP LTD)
Revenue,Head of ASC & Community Wellbeing,5105691770,29.09.2014,Adelaide Resource Centre,Catering Purchases,5.14,3663 (BFS GROUP LTD)
Revenue,Head of ASC & Community Wellbeing,5105689162,17.09.2014,Adelaide Resource Centre,Catering Purchases,122.68,3663 (BFS GROUP LTD)
Revenue,Head of ASC & Community Wellbeing,5105689163,17.09.2014,Adelaide Resource Centre,Catering Purchases,351.89,3663 (BFS GROUP LTD)
Revenue,Head of ASC & Community Wellbeing,5105689163,17.09.2014,Adelaide Resource Centre,Catering Purchases,8.34,3663 (BFS GROUP LTD)
Revenue,Head of ASC & Community Wellbeing,5105689162,17.09.2014,Adelaide Resource Centre,Catering Purchases,5.14,3663 (BFS GROUP LTD)
Revenue,Head of ASC & Community Wellbeing,5105689692,17.09.2014,Adelaide Resource Centre,Catering Purchases,323.68,3663 (BFS GROUP LTD)
Revenue,Head of ASC & Community Wellbeing,5105689691,17.09.2014,Adelaide Resource Centre,Catering Purchases,176.79,3663 (BFS GROUP LTD)
Revenue,Head of ASC & Community Wellbeing,5105689691,17.09.2014,Adelaide Resource Centre,Catering Purchases,6.7,3663 (BFS GROUP LTD)
Revenue,Head of ASC & Community Wellbeing,5105689692,17.09.2014,Adelaide Resource Centre,Catering Purchases,8.13,3663 (BFS GROUP LTD)
Revenue,Head of ASC & Community Wellbeing,5105687548,05.09.2014,Gouldings Resource Centre,Catering Purchases,421.34,3663 (BFS GROUP LTD)
Revenue,Head of ASC & Community Wellbeing,5105687548,05.09.2014,Gouldings Resource Centre,Catering Purchases,24.06,3663 (BFS GROUP LTD)
Revenue,Head of ASC & Community Wellbeing,5105687472,05.09.2014,Gouldings Resource Centre,Catering Purchases,524.56,3663 (BFS GROUP LTD)
Revenue,Head of ASC & Community Wellbeing,5105687472,05.09.2014,Gouldings Resource Centre,Catering Purchases,11.88,3663 (BFS GROUP LTD)
Revenue,Head of ASC & Community Wellbeing,5105691153,26.09.2014,Gouldings Resource Centre,Catering Purchases,461.84,3663 (BFS GROUP LTD)
Revenue,Head of ASC & Community Wellbeing,5105688371,10.09.2014,Westminster House,Catering Purchases,120.12,3663 (BFS GROUP LTD)
Revenue,Head of ASC & Community Wellbeing,5105687471,05.09.2014,Westminster House,Catering Purchases,68.4,3663 (BFS GROUP LTD)
Revenue,Head of ASC & Community Wellbeing,5105687551,05.09.2014,Westminster House,Catering Purchases,173.77,3663 (BFS GROUP LTD)
Revenue,Head of ASC & Community Wellbeing,5105687550,05.09.2014,Westminster House,Catering Purchases,61.4,3663 (BFS GROUP LTD)
Revenue,Head of ASC & Community Wellbeing,5105687475,05.09.2014,Westminster House,Catering Purchases,-13,3663 (BFS GROUP LTD)
Revenue,Head of ASC & Community Wellbeing,5105681614,05.09.2014,Westminster House,Catering Purchases,106.41,3663 (BFS GROUP LTD)
Revenue,Head of ASC & Community Wellbeing,5105690319,19.09.2014,Westminster House,Catering Purchases,44.63,3663 (BFS GROUP LTD)
Revenue,Head of ASC & Community Wellbeing,5105690321,19.09.2014,Westminster House,Catering Purchases,-5.19,3663 (BFS GROUP LTD)
Revenue,Head of ASC & Community Wellbeing,5105690676,24.09.2014,Westminster House,Catering Purchases,171.95,3663 (BFS GROUP LTD)
Revenue,Head of ASC & Community Wellbeing,5105690678,24.09.2014,Westminster House,Catering Purchases,54.79,3663 (BFS GROUP LTD)
Revenue,Head of ASC & Community Wellbeing,5105690677,24.09.2014,Westminster House,Catering Purchases,85.71,3663 (BFS GROUP LTD)
Revenue,Head of Economy & Tourism,5105690025,19.09.2014,Ryde Sports Centre,Stock Purchases,115.84,3663 (BFS GROUP LTD)
Revenue,Head of Economy & Tourism,5105691118,26.09.2014,The Heights,Stock Purchases,158.27,3663 (BFS GROUP LTD)
Revenue,Head of Economy & Tourism,5105691118,26.09.2014,The Heights,Stock Purchases,49.51,3663 (BFS GROUP LTD)
Revenue,Head of Economy & Tourism,5105689194,17.09.2014,The Heights,Stock Purchases,164.02,3663 (BFS GROUP LTD)
Revenue,Head of Economy & Tourism,5105689194,17.09.2014,The Heights,Stock Purchases,120.49,3663 (BFS GROUP LTD)
Revenue,Head of Economy & Tourism,5105689196,17.09.2014,The Heights,Stock Purchases,569.68,3663 (BFS GROUP LTD)
Revenue,Head of Economy & Tourism,5105691417,26.09.2014,The Heights,Stock Purchases,145.34,3663 (BFS GROUP LTD)
Revenue,Head of Economy & Tourism,5105687111,03.09.2014,The Heights,Stock Purchases,308.47,3663 (BFS GROUP LTD)
Revenue,Head of Economy & Tourism,5105687110,03.09.2014,The Heights,Stock Purchases,50.34,3663 (BFS GROUP LTD)
Revenue,Head of Economy & Tourism,5105687110,03.09.2014,The Heights,Stock Purchases,46.56,3663 (BFS GROUP LTD)
Revenue,Head of Economy & Tourism,5105687547,05.09.2014,Medina Leisure Centre,Stock Purchases,256.03,3663 (BFS GROUP LTD)
Revenue,Head of Economy & Tourism,5105690015,19.09.2014,Medina Leisure Centre,Stock Purchases,291.96,3663 (BFS GROUP LTD)
Revenue,Head of Economy & Tourism,5105689191,17.09.2014,Medina Leisure Centre,Stock Purchases,168.71,3663 (BFS GROUP LTD)
Revenue,Head of Economy & Tourism,5105689192,17.09.2014,Medina Leisure Centre,Stock Purchases,23.47,3663 (BFS GROUP LTD)
Revenue,Head of Economy & Tourism,5105691784,29.09.2014,Medina Leisure Centre,Stock Purchases,104.48,3663 (BFS GROUP LTD)
Revenue,Head of Economy & Tourism,5105691780,29.09.2014,Medina Leisure Centre,Stock Purchases,435.92,3663 (BFS GROUP LTD)
Revenue,Director of Childrens Services,5105682028,03.09.2014,Central & West Provision,Catering Purchases,128.59,3663 (BFS GROUP LTD)
Revenue,Director of Childrens Services,5105682028,03.09.2014,Central & West Provision,Catering Purchases,8.48,3663 (BFS GROUP LTD)
Revenue,Head of Finance & S151 Officer,5105690493,19.09.2014,Project Manager Waste Strategy,Computer Software & Consumables,461.25,4 PROJECTS LIMITED
Revenue,Head of Finance & S151 Officer,5105690495,19.09.2014,Project Manager Waste Strategy,Computer Software & Consumables,461.25,4 PROJECTS LIMITED
Revenue,Director of Childrens Services,5105689233,17.09.2014,In-house Fostering,Advertising & Publicity,258.5,4IMPRINT DIRECT LTD
Revenue,Head of ASC & Community Wellbeing,5105688372,10.09.2014,Gouldings Resource Centre,Consumable Cleaning Materials,150,A & M APPLIANCE CARE
Capital,Head of ASC & Community Wellbeing,5105689738,24.09.2014,Adelaide & Gouldings Fixtures & Fittings,"Plant, Equipment & Furniture - Capital","5,050.00",A & M APPLIANCE CARE
Revenue,Director of Childrens Services,5105687451,05.09.2014,S17 Child Protection,Support Children,40,REDACTED PERSONAL DATA
Revenue,Director of Childrens Services,5105688731,12.09.2014,S17 Child Protection,Support Children,40,REDACTED PERSONAL DATA
Revenue,Director of Childrens Services,5105691335,26.09.2014,S17 Child Protection,Support Children,40,REDACTED PERSONAL DATA
Revenue,Director of Childrens Services,5105690210,19.09.2014,S17 Child Protection,Support Children,40,REDACTED PERSONAL DATA
Revenue,Head of Economy & Tourism,5105684520,10.09.2014,IW Festival of Cycling,Advertising & Publicity,438.75,A & N MEDIA FINANCE SERVICES LTD
Revenue,Head of Economy & Tourism,5105682541,10.09.2014,IW Festival of Cycling,Advertising & Publicity,630,A & N MEDIA FINANCE SERVICES LTD
Revenue,Head of Economy & Tourism,5105690645,24.09.2014,IW Festival of Cycling,Advertising & Publicity,146.25,A & N MEDIA FINANCE SERVICES LTD
Revenue,Head of Economy & Tourism,5105690905,24.09.2014,IW Festival of Cycling,Advertising & Publicity,210,A & N MEDIA FINANCE SERVICES LTD
Revenue,Head of ASC & Community Wellbeing,5105690598,24.09.2014,Elderly Frail Personal Budgets,Payments for Self Directed Support,"2,659.36",REDACTED PERSONAL DATA
Revenue,Head of ASC & Community Wellbeing,5105687818,10.09.2014,Physical Disability Personal Budgets,Payments for Self Directed Support,775.04,REDACTED PERSONAL DATA
Revenue,Head of ASC & Community Wellbeing,5105687907,10.09.2014,Learning Disability Personal Budgets,Payments for Self Directed Support,"2,707.52",REDACTED PERSONAL DATA
Revenue,Head of ASC & Community Wellbeing,5105688207,10.09.2014,Physical Disability Personal Budgets,Payments for Self Directed Support,724,REDACTED PERSONAL DATA
Revenue,Director of Childrens Services,5105690965,24.09.2014,Direct Payments Children & Families,Direct Payments,128.25,REDACTED PERSONAL DATA
Revenue,Director of Childrens Services,5105690966,24.09.2014,Direct Payments Children & Families,Direct Payments,99.75,REDACTED PERSONAL DATA
Revenue,Head of ASC & Community Wellbeing,5105688028,10.09.2014,Learning Disability Personal Budgets,Payments for Self Directed Support,192,REDACTED PERSONAL DATA
Revenue,Head of ASC & Community Wellbeing,5105687928,10.09.2014,Learning Disability Personal Budgets,Payments for Self Directed Support,"1,279.32",REDACTED PERSONAL DATA
Revenue,Head of ASC & Community Wellbeing,5105687867,10.09.2014,Learning Disability Personal Budgets,Payments for Self Directed Support,444.8,REDACTED PERSONAL DATA
Revenue,Head of ASC & Community Wellbeing,5105687738,10.09.2014,Learning Disability Personal Budgets,Payments for Self Directed Support,987.52,REDACTED PERSONAL DATA
Revenue,Head of ASC & Community Wellbeing,5105687828,10.09.2014,Learning Disability Personal Budgets,Payments for Self Directed Support,"1,611.76",REDACTED PERSONAL DATA
Revenue,Director of Childrens Services,5105690983,24.09.2014,Direct Payments Children & Families,Direct Payments,114,REDACTED PERSONAL DATA
Revenue,Director of Childrens Services,5105690984,24.09.2014,Direct Payments Children & Families,Direct Payments,76,REDACTED PERSONAL DATA
Revenue,Head of ASC & Community Wellbeing,5105690699,24.09.2014,Leaseholds by LA,Accommodation Costs - Leaseholder Payments,780,REDACTED PERSONAL DATA
Revenue,Head of ASC & Community Wellbeing,5105687973,10.09.2014,Mental Health Personal Budgets,Payments for Self Directed Support,528,REDACTED PERSONAL DATA
Revenue,Director of Childrens Services,5105690931,24.09.2014,Direct Payments Children & Families,Direct Payments,380,REDACTED PERSONAL DATA
Revenue,Director of Childrens Services,5105690932,24.09.2014,Direct Payments Children & Families,Direct Payments,327.75,REDACTED PERSONAL DATA
Revenue,Director of Childrens Services,5105690933,24.09.2014,Direct Payments Children & Families,Direct Payments,204.25,REDACTED PERSONAL DATA
Revenue,Head of ASC & Community Wellbeing,5105688343,10.09.2014,Physical Disability Direct Payments,Direct Payments,"1,831.20",REDACTED PERSONAL DATA
Revenue,Head of ASC & Community Wellbeing,5105688150,10.09.2014,Physical Disability Personal Budgets,Payments for Self Directed Support,"2,049.20",REDACTED PERSONAL DATA
Revenue,Head of ASC & Community Wellbeing,5105687990,10.09.2014,Learning Disability Personal Budgets,Payments for Self Directed Support,"2,115.84",REDACTED PERSONAL DATA
Revenue,Director of Childrens Services,5105688604,12.09.2014,Special Guardianship Order Costs,Support Children,132.69,REDACTED PERSONAL DATA
Revenue,Director of Childrens Services,5105688604,12.09.2014,Special Guardianship Order Costs,Support Children,168.39,REDACTED PERSONAL DATA
Revenue,Director of Childrens Services,5105687324,05.09.2014,Special Guardianship Order Costs,Support Children,146.3,REDACTED PERSONAL DATA
Revenue,Director of Childrens Services,5105687324,05.09.2014,Special Guardianship Order Costs,Support Children,185.45,REDACTED PERSONAL DATA
Revenue,Director of Childrens Services,5105690083,19.09.2014,Special Guardianship Order Costs,Support Children,132.69,REDACTED PERSONAL DATA
Revenue,Director of Childrens Services,5105690083,19.09.2014,Special Guardianship Order Costs,Support Children,168.39,REDACTED PERSONAL DATA
Revenue,Director of Childrens Services,5105691208,26.09.2014,Special Guardianship Order Costs,Support Children,132.69,REDACTED PERSONAL DATA
Revenue,Director of Childrens Services,5105691208,26.09.2014,Special Guardianship Order Costs,Support Children,168.39,REDACTED PERSONAL DATA
Revenue,Head of ASC & Community Wellbeing,5105687743,10.09.2014,Transitions Team Personal Budgets,Payments for Self Directed Support,"2,424.00",REDACTED PERSONAL DATA
Revenue,Head of ASC & Community Wellbeing,5105687974,10.09.2014,Learning Disability Personal Budgets,Payments for Self Directed Support,253.84,REDACTED PERSONAL DATA
Revenue,Director of Childrens Services,5105687397,05.09.2014,Leaving Care Costs,Support Children,120.89,REDACTED PERSONAL DATA
Revenue,Director of Childrens Services,5105688677,12.09.2014,Leaving Care Costs,Support Children,120.89,REDACTED PERSONAL DATA
Revenue,Director of Childrens Services,5105690156,19.09.2014,Leaving Care Costs,Support Children,120.89,REDACTED PERSONAL DATA
Revenue,Director of Childrens Services,5105691281,26.09.2014,Leaving Care Costs,Support Children,120.89,REDACTED PERSONAL DATA
Revenue,Director of Childrens Services,5105687397,05.09.2014,Leaving Care Costs,Accommodation Costs - Service Users,57.5,REDACTED PERSONAL DATA
Revenue,Director of Childrens Services,5105688677,12.09.2014,Leaving Care Costs,Accommodation Costs - Service Users,57.5,REDACTED PERSONAL DATA
Revenue,Director of Childrens Services,5105690156,19.09.2014,Leaving Care Costs,Accommodation Costs - Service Users,57.5,REDACTED PERSONAL DATA
Revenue,Director of Childrens Services,5105691281,26.09.2014,Leaving Care Costs,Accommodation Costs - Service Users,57.5,REDACTED PERSONAL DATA
Revenue,Head of ASC & Community Wellbeing,5105687955,10.09.2014,Learning Disability Personal Budgets,Payments for Self Directed Support,237.44,REDACTED PERSONAL DATA
Revenue,Head of ASC & Community Wellbeing,5105687852,10.09.2014,Learning Disability Personal Budgets,Payments for Self Directed Support,570,REDACTED PERSONAL DATA
Revenue,Head of ASC & Community Wellbeing,5105688452,10.09.2014,Learning Disability Personal Budgets,Payments for Self Directed Support,20,REDACTED PERSONAL DATA
Revenue,Head of ASC & Community Wellbeing,5105690708,24.09.2014,Leaseholds by LA,Accommodation Costs - Leaseholder Payments,510.25,REDACTED PERSONAL DATA
Revenue,Head of ASC & Community Wellbeing,5105690708,24.09.2014,Leaseholds by LA,Accommodation Costs - Leaseholder Payments,510.25,REDACTED PERSONAL DATA
Revenue,Head of ASC & Community Wellbeing,5105690708,24.09.2014,Leaseholds by LA,Accommodation Costs - Leaseholder Payments,510.25,REDACTED PERSONAL DATA
Revenue,Head of ASC & Community Wellbeing,5105690708,24.09.2014,Leaseholds by LA,Accommodation Costs - Leaseholder Payments,510.25,REDACTED PERSONAL DATA
Revenue,Head of ASC & Community Wellbeing,5105690708,24.09.2014,Leaseholds by LA,Accommodation Costs - Leaseholder Payments,510.25,REDACTED PERSONAL DATA
Revenue,Head of ASC & Community Wellbeing,5105690708,24.09.2014,Leaseholds by LA,Accommodation Costs - Leaseholder Payments,510.25,REDACTED PERSONAL DATA
Revenue,Director of Childrens Services,5105690936,24.09.2014,Direct Payments Children & Families,Direct Payments,561.2,REDACTED PERSONAL DATA
Revenue,Head of ASC & Community Wellbeing,5105687932,10.09.2014,Physical Disability Personal Budgets,Payments for Self Directed Support,"1,436.00",REDACTED PERSONAL DATA
Revenue,Head of ASC & Community Wellbeing,5105687831,10.09.2014,Physical Disability Personal Budgets,Payments for Self Directed Support,950.48,REDACTED PERSONAL DATA
Revenue,Head of ASC & Community Wellbeing,5105687860,10.09.2014,Learning Disability Personal Budgets,Payments for Self Directed Support,462.08,REDACTED PERSONAL DATA
Revenue,Director of Childrens Services,5105688580,12.09.2014,Adoption Costs,Support Children,186.49,REDACTED PERSONAL DATA
Revenue,Director of Childrens Services,5105687301,05.09.2014,Adoption Costs,Support Children,186.49,REDACTED PERSONAL DATA
Revenue,Director of Childrens Services,5105691185,26.09.2014,Adoption Costs,Support Children,186.49,REDACTED PERSONAL DATA
Revenue,Director of Childrens Services,5105690060,19.09.2014,Adoption Costs,Support Children,186.49,REDACTED PERSONAL DATA
Revenue,Head of ASC & Community Wellbeing,5105688065,10.09.2014,Transitions Team Personal Budgets,Payments for Self Directed Support,"1,006.12",REDACTED PERSONAL DATA
Revenue,Head of ASC & Community Wellbeing,5105688300,10.09.2014,Physical Disability Personal Budgets,Payments for Self Directed Support,670,REDACTED PERSONAL DATA
Revenue,Head of ASC & Community Wellbeing,5105688171,10.09.2014,Learning Disability Personal Budgets,Payments for Self Directed Support,365.52,REDACTED PERSONAL DATA
Revenue,Head of ASC & Community Wellbeing,5105688101,10.09.2014,Physical Disability Personal Budgets,Payments for Self Directed Support,554.24,REDACTED PERSONAL DATA
Revenue,Head of ASC & Community Wellbeing,5105687653,10.09.2014,Elderly Frail Personal Budgets,Payments for Self Directed Support,"2,100.00",REDACTED PERSONAL DATA
Revenue,Head of ASC & Community Wellbeing,5105688455,10.09.2014,Learning Disability Personal Budgets,Payments for Self Directed Support,"1,644.00",REDACTED PERSONAL DATA
Revenue,Head of ASC & Community Wellbeing,5105689260,17.09.2014,Learning Disability Personal Budgets,Payments for Self Directed Support,178.08,REDACTED PERSONAL DATA
Revenue,Director of Childrens Services,5105687363,05.09.2014,In-house Fostering,Boarding Out Allowances,242.08,REDACTED PERSONAL DATA
Revenue,Director of Childrens Services,5105687363,05.09.2014,In-house Fostering,Boarding Out Allowances,199,REDACTED PERSONAL DATA
Revenue,Director of Childrens Services,5105687363,05.09.2014,In-house Fostering,Boarding Out Allowances,200,REDACTED PERSONAL DATA
Revenue,Director of Childrens Services,5105691246,26.09.2014,In-house Fostering,Boarding Out Allowances,242.08,REDACTED PERSONAL DATA
Revenue,Director of Childrens Services,5105691246,26.09.2014,In-house Fostering,Boarding Out Allowances,199,REDACTED PERSONAL DATA
Revenue,Director of Childrens Services,5105691246,26.09.2014,In-house Fostering,Boarding Out Allowances,200,REDACTED PERSONAL DATA
Revenue,Director of Childrens Services,5105688643,12.09.2014,In-house Fostering,Boarding Out Allowances,242.08,REDACTED PERSONAL DATA
Revenue,Director of Childrens Services,5105688643,12.09.2014,In-house Fostering,Boarding Out Allowances,199,REDACTED PERSONAL DATA
Revenue,Director of Childrens Services,5105688643,12.09.2014,In-house Fostering,Boarding Out Allowances,200,REDACTED PERSONAL DATA
Revenue,Director of Childrens Services,5105690122,19.09.2014,In-house Fostering,Boarding Out Allowances,242.08,REDACTED PERSONAL DATA
Revenue,Director of Childrens Services,5105690122,19.09.2014,In-house Fostering,Boarding Out Allowances,199,REDACTED PERSONAL DATA
Revenue,Director of Childrens Services,5105690122,19.09.2014,In-house Fostering,Boarding Out Allowances,200,REDACTED PERSONAL DATA
Revenue,Head of ASC & Community Wellbeing,5105687736,10.09.2014,Elderly Frail Personal Budgets,Payments for Self Directed Support,"1,315.44",REDACTED PERSONAL DATA
Revenue,Director of Childrens Services,5105687383,05.09.2014,Leaving Care Costs,Personal Allowances,56.25,REDACTED PERSONAL DATA
Revenue,Director of Childrens Services,5105688663,12.09.2014,Leaving Care Costs,Personal Allowances,56.25,REDACTED PERSONAL DATA
Revenue,Director of Childrens Services,5105690142,19.09.2014,Leaving Care Costs,Personal Allowances,56.25,REDACTED PERSONAL DATA
Revenue,Director of Childrens Services,5105691266,26.09.2014,Leaving Care Costs,Personal Allowances,56.25,REDACTED PERSONAL DATA
Revenue,Head of ASC & Community Wellbeing,5105690710,24.09.2014,Leaseholds by LA,Accommodation Costs - Leaseholder Payments,780,REDACTED PERSONAL DATA
Revenue,Director of Childrens Services,5105690955,24.09.2014,Direct Payments Children & Families,Direct Payments,185.25,REDACTED PERSONAL DATA
Revenue,Director of Childrens Services,5105690956,24.09.2014,Direct Payments Children & Families,Direct Payments,80.75,REDACTED PERSONAL DATA
Revenue,Head of ASC & Community Wellbeing,5105688109,10.09.2014,Learning Disability Personal Budgets,Payments for Self Directed Support,280,REDACTED PERSONAL DATA
Revenue,Head of ASC & Community Wellbeing,5105688125,10.09.2014,Physical Disability Personal Budgets,Payments for Self Directed Support,728,REDACTED PERSONAL DATA
Revenue,Head of ASC & Community Wellbeing,5105688014,10.09.2014,Learning Disability Personal Budgets,Payments for Self Directed Support,484.24,REDACTED PERSONAL DATA
Revenue,Head of ASC & Community Wellbeing,5105688181,10.09.2014,Learning Disability Personal Budgets,Payments for Self Directed Support,389,REDACTED PERSONAL DATA
Revenue,Head of ASC & Community Wellbeing,5105688210,10.09.2014,Learning Disability Personal Budgets,Payments for Self Directed Support,973.96,REDACTED PERSONAL DATA
Revenue,Head of ASC & Community Wellbeing,5105688088,10.09.2014,Learning Disability Personal Budgets,Payments for Self Directed Support,677.16,REDACTED PERSONAL DATA
Revenue,Head of ASC & Community Wellbeing,5105688883,12.09.2014,Learning Disability Personal Budgets,Payments for Self Directed Support,"8,100.96",REDACTED PERSONAL DATA
Revenue,Head of ASC & Community Wellbeing,5105688883,12.09.2014,Learning Disability Personal Budgets,Payments for Self Directed Support,237.44,REDACTED PERSONAL DATA
Revenue,Head of ASC & Community Wellbeing,5105690697,24.09.2014,Leaseholds by LA,Accommodation Costs - Leaseholder Payments,835.08,REDACTED PERSONAL DATA
Revenue,Head of ASC & Community Wellbeing,5105690697,24.09.2014,Leaseholds by LA,Accommodation Costs - Leaseholder Payments,649.83,REDACTED PERSONAL DATA
Revenue,Head of ASC & Community Wellbeing,5105690697,24.09.2014,Leaseholds by LA,Accommodation Costs - Leaseholder Payments,789.01,REDACTED PERSONAL DATA
Revenue,Head of ASC & Community Wellbeing,5105688049,10.09.2014,Learning Disability Personal Budgets,Payments for Self Directed Support,"1,457.00",REDACTED PERSONAL DATA
Revenue,Head of ASC & Community Wellbeing,5105688347,10.09.2014,Learning Disability Personal Budgets,Payments for Self Directed Support,777.52,REDACTED PERSONAL DATA
Revenue,Head of ASC & Community Wellbeing,5105687787,10.09.2014,Learning Disability Personal Budgets,Payments for Self Directed Support,"1,012.00",REDACTED PERSONAL DATA
Revenue,Director of Childrens Services,5105687297,05.09.2014,Adoption Costs,Support Children,87.15,REDACTED PERSONAL DATA
Revenue,Director of Childrens Services,5105688576,12.09.2014,Adoption Costs,Support Children,87.15,REDACTED PERSONAL DATA
Revenue,Director of Childrens Services,5105691181,26.09.2014,Adoption Costs,Support Children,87.15,REDACTED PERSONAL DATA
Revenue,Director of Childrens Services,5105690056,19.09.2014,Adoption Costs,Support Children,87.15,REDACTED PERSONAL DATA
Revenue,Director of Childrens Services,5105690986,24.09.2014,Direct Payments Children & Families,Direct Payments,57,REDACTED PERSONAL DATA
Revenue,Director of Childrens Services,5105690985,24.09.2014,Direct Payments Children & Families,Direct Payments,114,REDACTED PERSONAL DATA
Revenue,Head of ASC & Community Wellbeing,5105687825,10.09.2014,Elderly Frail Personal Budgets,Payments for Self Directed Support,"1,282.84",REDACTED PERSONAL DATA
Revenue,Head of ASC & Community Wellbeing,5105688192,10.09.2014,Transitions Team Personal Budgets,Payments for Self Directed Support,820,REDACTED PERSONAL DATA
Revenue,Head of ASC & Community Wellbeing,5105687741,10.09.2014,Learning Disability Personal Budgets,Payments for Self Directed Support,"3,816.52",REDACTED PERSONAL DATA
Revenue,Head of ASC & Community Wellbeing,5105688158,10.09.2014,Transitions Team Personal Budgets,Payments for Self Directed Support,469.04,REDACTED PERSONAL DATA
Revenue,Head of ASC & Community Wellbeing,5105688022,10.09.2014,Transitions Team Personal Budgets,Payments for Self Directed Support,412.8,REDACTED PERSONAL DATA
Revenue,Head of ASC & Community Wellbeing,5105691593,26.09.2014,Supporting People Older Persons,Payment to Private Contractors,76.2,ABBEYFIELD WEST WIGHT SOCIETY
Revenue,Head of ASC & Community Wellbeing,5105688561,17.09.2014,Gouldings Resource Centre,Fixtures and Fittings,376.58,ABBOTTS FLOORING (IOW) LTD
Revenue,Head of ASC & Community Wellbeing,5105688364,10.09.2014,Elderly Frail Residential Care,Charges from Independent Providers,"1,622.60",ACACIA CARE HOME
Revenue,Head of ASC & Community Wellbeing,5105688364,10.09.2014,Elderly Frail Residential Care,Charges from Independent Providers,"1,622.60",ACACIA CARE HOME
Revenue,Head of ASC & Community Wellbeing,5105687784,10.09.2014,Elderly Frail Residential Care,Charges from Independent Providers,"1,622.60",ACACIA CARE HOME
Revenue,Head of ASC & Community Wellbeing,5105687784,10.09.2014,Elderly Frail Residential Care,Charges from Independent Providers,"1,622.60",ACACIA CARE HOME
Revenue,Head of ASC & Community Wellbeing,5105687784,10.09.2014,Elderly Frail Residential Care,Charges from Independent Providers,"1,622.60",ACACIA CARE HOME
Revenue,Head of ASC & Community Wellbeing,5105691016,24.09.2014,40 Venner Avenue,Interview & recruitment expenses,44,ACCESS PERSONAL CHECKING SERVICES LTD
Revenue,Head of ASC & Community Wellbeing,5105691016,24.09.2014,40 Venner Avenue,Interview & recruitment expenses,6,ACCESS PERSONAL CHECKING SERVICES LTD
Revenue,Head of ASC & Community Wellbeing,5105691025,24.09.2014,Wightcare,Interview & recruitment expenses,6,ACCESS PERSONAL CHECKING SERVICES LTD
Revenue,Head of ASC & Community Wellbeing,5105691025,24.09.2014,Wightcare,Interview & recruitment expenses,6,ACCESS PERSONAL CHECKING SERVICES LTD
Revenue,Head of ASC & Community Wellbeing,5105691025,24.09.2014,Wightcare,Interview & recruitment expenses,44,ACCESS PERSONAL CHECKING SERVICES LTD
Revenue,Head of ASC & Community Wellbeing,5105691025,24.09.2014,Wightcare,Interview & recruitment expenses,44,ACCESS PERSONAL CHECKING SERVICES LTD
Revenue,Head of ASC & Community Wellbeing,5105691016,24.09.2014,Community Outreach,Interview & recruitment expenses,18,ACCESS PERSONAL CHECKING SERVICES LTD
Revenue,Head of ASC & Community Wellbeing,5105691016,24.09.2014,Community Outreach,Interview & recruitment expenses,132,ACCESS PERSONAL CHECKING SERVICES LTD
Revenue,Head of ASC & Community Wellbeing,5105691025,24.09.2014,Adelaide Resource Centre,Interview & recruitment expenses,44,ACCESS PERSONAL CHECKING SERVICES LTD
Revenue,Head of ASC & Community Wellbeing,5105691025,24.09.2014,Adelaide Resource Centre,Interview & recruitment expenses,6,ACCESS PERSONAL CHECKING SERVICES LTD
Revenue,Head of ASC & Community Wellbeing,5105691025,24.09.2014,Gouldings Resource Centre,Interview & recruitment expenses,88,ACCESS PERSONAL CHECKING SERVICES LTD
Revenue,Head of ASC & Community Wellbeing,5105691025,24.09.2014,Gouldings Resource Centre,Interview & recruitment expenses,12,ACCESS PERSONAL CHECKING SERVICES LTD
Revenue,Head of Economy & Tourism,5105691025,24.09.2014,Play Development,Interview & recruitment expenses,18,ACCESS PERSONAL CHECKING SERVICES LTD
Revenue,Head of Economy & Tourism,5105691025,24.09.2014,Play Development,Interview & recruitment expenses,132,ACCESS PERSONAL CHECKING SERVICES LTD
Revenue,Head of Economy & Tourism,5105691016,24.09.2014,Roman Villa Newport,Interview & recruitment expenses,44,ACCESS PERSONAL CHECKING SERVICES LTD
Revenue,Head of Economy & Tourism,5105691016,24.09.2014,Roman Villa Newport,Interview & recruitment expenses,6,ACCESS PERSONAL CHECKING SERVICES LTD
Revenue,Head of Economy & Tourism,5105691016,24.09.2014,The Heights,Interview & recruitment expenses,6,ACCESS PERSONAL CHECKING SERVICES LTD
Revenue,Head of Economy & Tourism,5105691016,24.09.2014,The Heights,Interview & recruitment expenses,26,ACCESS PERSONAL CHECKING SERVICES LTD
Revenue,Head of Economy & Tourism,5105691016,24.09.2014,Medina Leisure Centre,Interview & recruitment expenses,52,ACCESS PERSONAL CHECKING SERVICES LTD
Revenue,Head of Economy & Tourism,5105691016,24.09.2014,Medina Leisure Centre,Interview & recruitment expenses,88,ACCESS PERSONAL CHECKING SERVICES LTD
Revenue,Head of Economy & Tourism,5105691016,24.09.2014,Medina Leisure Centre,Interview & recruitment expenses,24,ACCESS PERSONAL CHECKING SERVICES LTD
Revenue,Head of Economy & Tourism,5105691016,24.09.2014,Medina Theatre,Interview & recruitment expenses,18,ACCESS PERSONAL CHECKING SERVICES LTD
Revenue,Head of Economy & Tourism,5105691025,24.09.2014,Medina Theatre,Interview & recruitment expenses,6,ACCESS PERSONAL CHECKING SERVICES LTD
Revenue,Head of Economy & Tourism,5105691025,24.09.2014,Medina Theatre,Interview & recruitment expenses,26,ACCESS PERSONAL CHECKING SERVICES LTD
Revenue,Head of Economy & Tourism,5105691016,24.09.2014,Medina Theatre,Interview & recruitment expenses,52,ACCESS PERSONAL CHECKING SERVICES LTD
Revenue,Director of Childrens Services,5105691016,24.09.2014,Thompson House Tuition Centre (PRU),Interview & recruitment expenses,44,ACCESS PERSONAL CHECKING SERVICES LTD
Revenue,Director of Childrens Services,5105691016,24.09.2014,Thompson House Tuition Centre (PRU),Interview & recruitment expenses,6,ACCESS PERSONAL CHECKING SERVICES LTD
Revenue,Director of Childrens Services,5105691016,24.09.2014,Early Years Team,Interview & recruitment expenses,44,ACCESS PERSONAL CHECKING SERVICES LTD
Revenue,Director of Childrens Services,5105691016,24.09.2014,Early Years Team,Interview & recruitment expenses,6,ACCESS PERSONAL CHECKING SERVICES LTD
Revenue,Director of Childrens Services,5105691016,24.09.2014,Outreach Services,Interview & recruitment expenses,44,ACCESS PERSONAL CHECKING SERVICES LTD
Revenue,Director of Childrens Services,5105691016,24.09.2014,Outreach Services,Interview & recruitment expenses,6,ACCESS PERSONAL CHECKING SERVICES LTD
Revenue,Director of Childrens Services,5105691025,24.09.2014,Youth Offending Team,Interview & recruitment expenses,6,ACCESS PERSONAL CHECKING SERVICES LTD
Revenue,Director of Childrens Services,5105691016,24.09.2014,Youth Offending Team,Interview & recruitment expenses,44,ACCESS PERSONAL CHECKING SERVICES LTD
Revenue,Director of Childrens Services,5105691025,24.09.2014,Youth Offending Team,Interview & recruitment expenses,44,ACCESS PERSONAL CHECKING SERVICES LTD
Revenue,Director of Childrens Services,5105691016,24.09.2014,Youth Offending Team,Interview & recruitment expenses,44,ACCESS PERSONAL CHECKING SERVICES LTD
Revenue,Director of Childrens Services,5105691016,24.09.2014,Youth Offending Team,Interview & recruitment expenses,12,ACCESS PERSONAL CHECKING SERVICES LTD
Revenue,Director of Childrens Services,5105691016,24.09.2014,Youth Offending Team,Interview & recruitment expenses,6,ACCESS PERSONAL CHECKING SERVICES LTD
Revenue,Director of Childrens Services,5105691016,24.09.2014,Children In Need 1,Interview & recruitment expenses,44,ACCESS PERSONAL CHECKING SERVICES LTD
Revenue,Director of Childrens Services,5105691016,24.09.2014,Children In Need 1,Interview & recruitment expenses,6,ACCESS PERSONAL CHECKING SERVICES LTD
Revenue,Director of Childrens Services,5105691016,24.09.2014,Court Work & Consultancy Services,Interview & recruitment expenses,44,ACCESS PERSONAL CHECKING SERVICES LTD
Revenue,Director of Childrens Services,5105691016,24.09.2014,Court Work & Consultancy Services,Interview & recruitment expenses,6,ACCESS PERSONAL CHECKING SERVICES LTD
Revenue,Director of Childrens Services,5105691016,24.09.2014,Direct Payments Children & Families,Interview & recruitment expenses,"1,232.00",ACCESS PERSONAL CHECKING SERVICES LTD
Revenue,Director of Childrens Services,5105691016,24.09.2014,Direct Payments Children & Families,Interview & recruitment expenses,168,ACCESS PERSONAL CHECKING SERVICES LTD
Revenue,Director of Childrens Services,5105691025,24.09.2014,Direct Payments Children & Families,Interview & recruitment expenses,96,ACCESS PERSONAL CHECKING SERVICES LTD
Revenue,Director of Childrens Services,5105691025,24.09.2014,Direct Payments Children & Families,Interview & recruitment expenses,704,ACCESS PERSONAL CHECKING SERVICES LTD
Revenue,Director of Childrens Services,5105691025,24.09.2014,Referral & Assessment,Interview & recruitment expenses,44,ACCESS PERSONAL CHECKING SERVICES LTD
Revenue,Director of Childrens Services,5105691025,24.09.2014,Referral & Assessment,Interview & recruitment expenses,6,ACCESS PERSONAL CHECKING SERVICES LTD
Revenue,Director of Childrens Services,5105691025,24.09.2014,In-house Fostering,Interview & recruitment expenses,54,ACCESS PERSONAL CHECKING SERVICES LTD
Revenue,Director of Childrens Services,5105691025,24.09.2014,In-house Fostering,Interview & recruitment expenses,396,ACCESS PERSONAL CHECKING SERVICES LTD
Revenue,Director of Childrens Services,5105691016,24.09.2014,In-house Fostering,Interview & recruitment expenses,264,ACCESS PERSONAL CHECKING SERVICES LTD
Revenue,Director of Childrens Services,5105691016,24.09.2014,In-house Fostering,Interview & recruitment expenses,42,ACCESS PERSONAL CHECKING SERVICES LTD
Revenue,Director of Childrens Services,5105691016,24.09.2014,Adoption Team,Interview & recruitment expenses,36,ACCESS PERSONAL CHECKING SERVICES LTD
Revenue,Director of Childrens Services,5105691016,24.09.2014,Adoption Team,Interview & recruitment expenses,264,ACCESS PERSONAL CHECKING SERVICES LTD
Revenue,Director of Childrens Services,5105691025,24.09.2014,Adoption Team,Interview & recruitment expenses,176,ACCESS PERSONAL CHECKING SERVICES LTD
Revenue,Director of Childrens Services,5105691025,24.09.2014,Adoption Team,Interview & recruitment expenses,24,ACCESS PERSONAL CHECKING SERVICES LTD
Revenue,Director of Childrens Services,5105691016,24.09.2014,Duke of Edingburgh Award,Interview & recruitment expenses,6,ACCESS PERSONAL CHECKING SERVICES LTD
Revenue,Director of Childrens Services,5105691016,24.09.2014,Duke of Edingburgh Award,Interview & recruitment expenses,44,ACCESS PERSONAL CHECKING SERVICES LTD
Revenue,Director of Childrens Services,5105691016,24.09.2014,Targeted Youth Support,Interview & recruitment expenses,44,ACCESS PERSONAL CHECKING SERVICES LTD
Revenue,Director of Childrens Services,5105691016,24.09.2014,Targeted Youth Support,Interview & recruitment expenses,6,ACCESS PERSONAL CHECKING SERVICES LTD
Revenue,Director of Childrens Services,5105691025,24.09.2014,Beaulieu House,Interview & recruitment expenses,6,ACCESS PERSONAL CHECKING SERVICES LTD
Revenue,Director of Childrens Services,5105691016,24.09.2014,Beaulieu House,Interview & recruitment expenses,72,ACCESS PERSONAL CHECKING SERVICES LTD
Revenue,Director of Childrens Services,5105691025,24.09.2014,Beaulieu House,Interview & recruitment expenses,176,ACCESS PERSONAL CHECKING SERVICES LTD
Revenue,Director of Childrens Services,5105691025,24.09.2014,Beaulieu House,Interview & recruitment expenses,44,ACCESS PERSONAL CHECKING SERVICES LTD
Revenue,Director of Childrens Services,5105691025,24.09.2014,Beaulieu House,Interview & recruitment expenses,24,ACCESS PERSONAL CHECKING SERVICES LTD
Revenue,Director of Childrens Services,5105691016,24.09.2014,Beaulieu House,Interview & recruitment expenses,528,ACCESS PERSONAL CHECKING SERVICES LTD
Revenue,Director of Childrens Services,5105691025,24.09.2014,Parent Partnership,Interview & recruitment expenses,6,ACCESS PERSONAL CHECKING SERVICES LTD
Revenue,Director of Childrens Services,5105691025,24.09.2014,Parent Partnership,Interview & recruitment expenses,44,ACCESS PERSONAL CHECKING SERVICES LTD
Revenue,Director of Childrens Services,5105691016,24.09.2014,Early Help Team,Interview & recruitment expenses,12,ACCESS PERSONAL CHECKING SERVICES LTD
Revenue,Director of Childrens Services,5105691016,24.09.2014,Early Help Team,Interview & recruitment expenses,88,ACCESS PERSONAL CHECKING SERVICES LTD
Revenue,Head of Economy & Tourism,5105691025,24.09.2014,School Crossing Patrols,Interview & recruitment expenses,44,ACCESS PERSONAL CHECKING SERVICES LTD
Revenue,Head of Economy & Tourism,5105691025,24.09.2014,School Crossing Patrols,Interview & recruitment expenses,6,ACCESS PERSONAL CHECKING SERVICES LTD
Revenue,Chief Fire Officer,5105691016,24.09.2014,Diversity & Workforce,Interview & recruitment expenses,26,ACCESS PERSONAL CHECKING SERVICES LTD
Revenue,Chief Fire Officer,5105691016,24.09.2014,Diversity & Workforce,Interview & recruitment expenses,6,ACCESS PERSONAL CHECKING SERVICES LTD
Revenue,Head of Planning & Regulatory Services,5105691026,24.09.2014,Licensing Services,Interview & recruitment expenses,572,ACCESS PERSONAL CHECKING SERVICES LTD
Revenue,Head of Planning & Regulatory Services,5105691026,24.09.2014,Licensing Services,Professional Services,78,ACCESS PERSONAL CHECKING SERVICES LTD
Revenue,Head of ASC & Community Wellbeing,5105689265,17.09.2014,Elderly Frail Homecare,Charges from Independent Providers,"1,780.80",ACORN CARE SERVICE LTD
Revenue,Head of ASC & Community Wellbeing,5105689299,17.09.2014,Elderly Frail Homecare,Charges from Independent Providers,489.72,ACORN CARE SERVICE LTD
Revenue,Head of ASC & Community Wellbeing,5105689292,17.09.2014,Elderly Frail Homecare,Charges from Independent Providers,575.05,ACORN CARE SERVICE LTD
Revenue,Head of ASC & Community Wellbeing,5105689300,17.09.2014,Elderly Frail Homecare,Charges from Independent Providers,48.23,ACORN CARE SERVICE LTD
Revenue,Head of ASC & Community Wellbeing,5105689305,17.09.2014,Elderly Frail Homecare,Charges from Independent Providers,207.76,ACORN CARE SERVICE LTD
Revenue,Head of ASC & Community Wellbeing,5105689268,17.09.2014,Elderly Frail Homecare,Charges from Independent Providers,"1,539.65",ACORN CARE SERVICE LTD
Revenue,Head of ASC & Community Wellbeing,5105689271,17.09.2014,Elderly Frail Homecare,Charges from Independent Providers,"1,157.52",ACORN CARE SERVICE LTD
Revenue,Head of ASC & Community Wellbeing,5105689264,17.09.2014,Elderly Frail Homecare,Charges from Independent Providers,712.32,ACORN CARE SERVICE LTD
Revenue,Head of ASC & Community Wellbeing,5105689275,17.09.2014,Elderly Frail Homecare,Charges from Independent Providers,704.9,ACORN CARE SERVICE LTD
Revenue,Head of ASC & Community Wellbeing,5105689276,17.09.2014,Elderly Frail Homecare,Charges from Independent Providers,100.17,ACORN CARE SERVICE LTD
Revenue,Head of ASC & Community Wellbeing,5105689277,17.09.2014,Elderly Frail Homecare,Charges from Independent Providers,59.36,ACORN CARE SERVICE LTD
Revenue,Head of ASC & Community Wellbeing,5105689280,17.09.2014,Elderly Frail Homecare,Charges from Independent Providers,823.62,ACORN CARE SERVICE LTD
Revenue,Head of ASC & Community Wellbeing,5105689273,17.09.2014,Elderly Frail Homecare,Charges from Independent Providers,207.76,ACORN CARE SERVICE LTD
Revenue,Head of ASC & Community Wellbeing,5105689269,17.09.2014,Elderly Frail Homecare,Charges from Independent Providers,"1,380.12",ACORN CARE SERVICE LTD
Revenue,Head of ASC & Community Wellbeing,5105689274,17.09.2014,Elderly Frail Homecare,Charges from Independent Providers,534.24,ACORN CARE SERVICE LTD
Revenue,Head of ASC & Community Wellbeing,5105689272,17.09.2014,Elderly Frail Homecare,Charges from Independent Providers,845.88,ACORN CARE SERVICE LTD
Revenue,Head of ASC & Community Wellbeing,5105689270,17.09.2014,Elderly Frail Homecare,Charges from Independent Providers,385.84,ACORN CARE SERVICE LTD
Revenue,Head of ASC & Community Wellbeing,5105689267,17.09.2014,Elderly Frail Homecare,Charges from Independent Providers,296.8,ACORN CARE SERVICE LTD
Revenue,Head of ASC & Community Wellbeing,5105689285,17.09.2014,Elderly Frail Homecare,Charges from Independent Providers,300.51,ACORN CARE SERVICE LTD
Revenue,Head of ASC & Community Wellbeing,5105689286,17.09.2014,Elderly Frail Homecare,Charges from Independent Providers,419.23,ACORN CARE SERVICE LTD
Revenue,Head of ASC & Community Wellbeing,5105689266,17.09.2014,Elderly Frail Homecare,Charges from Independent Providers,"2,322.46",ACORN CARE SERVICE LTD
Revenue,Head of ASC & Community Wellbeing,5105689278,17.09.2014,Elderly Frail Homecare,Charges from Independent Providers,207.76,ACORN CARE SERVICE LTD
Revenue,Head of ASC & Community Wellbeing,5105689279,17.09.2014,Elderly Frail Homecare,Charges from Independent Providers,178.08,ACORN CARE SERVICE LTD
Revenue,Head of ASC & Community Wellbeing,5105689289,17.09.2014,Elderly Frail Homecare,Charges from Independent Providers,118.72,ACORN CARE SERVICE LTD
Revenue,Head of ASC & Community Wellbeing,5105689287,17.09.2014,Elderly Frail Homecare,Charges from Independent Providers,727.16,ACORN CARE SERVICE LTD
Revenue,Head of ASC & Community Wellbeing,5105689288,17.09.2014,Elderly Frail Homecare,Charges from Independent Providers,623.28,ACORN CARE SERVICE LTD
Revenue,Head of ASC & Community Wellbeing,5105689290,17.09.2014,Elderly Frail Homecare,Charges from Independent Providers,"2,597.00",ACORN CARE SERVICE LTD
Revenue,Head of ASC & Community Wellbeing,5105689306,17.09.2014,Elderly Frail Homecare,Charges from Independent Providers,311.64,ACORN CARE SERVICE LTD
Revenue,Head of ASC & Community Wellbeing,5105689294,17.09.2014,Elderly Frail Homecare,Charges from Independent Providers,556.5,ACORN CARE SERVICE LTD
Revenue,Head of ASC & Community Wellbeing,5105689303,17.09.2014,Elderly Frail Homecare,Charges from Independent Providers,460.04,ACORN CARE SERVICE LTD
Revenue,Head of ASC & Community Wellbeing,5105689298,17.09.2014,Elderly Frail Homecare,Charges from Independent Providers,415.52,ACORN CARE SERVICE LTD
Revenue,Head of ASC & Community Wellbeing,5105689295,17.09.2014,Elderly Frail Homecare,Charges from Independent Providers,519.4,ACORN CARE SERVICE LTD
Revenue,Head of ASC & Community Wellbeing,5105689302,17.09.2014,Elderly Frail Homecare,Charges from Independent Providers,178.08,ACORN CARE SERVICE LTD
Revenue,Head of ASC & Community Wellbeing,5105689296,17.09.2014,Elderly Frail Homecare,Charges from Independent Providers,118.72,ACORN CARE SERVICE LTD
Revenue,Head of ASC & Community Wellbeing,5105689281,17.09.2014,Elderly Frail Homecare,Charges from Independent Providers,244.86,ACORN CARE SERVICE LTD
Revenue,Head of ASC & Community Wellbeing,5105689283,17.09.2014,Elderly Frail Homecare,Charges from Independent Providers,515.69,ACORN CARE SERVICE LTD
Revenue,Head of ASC & Community Wellbeing,5105689284,17.09.2014,Elderly Frail Homecare,Regular Respite Care,237.44,ACORN CARE SERVICE LTD
Revenue,Head of ASC & Community Wellbeing,5105689282,17.09.2014,Elderly Frail Homecare,Regular Respite Care,89.04,ACORN CARE SERVICE LTD
Revenue,Head of ASC & Community Wellbeing,5105689293,17.09.2014,Elderly Frail Homecare,Regular Respite Care,118.72,ACORN CARE SERVICE LTD
Revenue,Head of ASC & Community Wellbeing,5105689291,17.09.2014,Elderly Frail Homecare,Regular Respite Care,118.72,ACORN CARE SERVICE LTD
Revenue,Head of ASC & Community Wellbeing,5105689297,17.09.2014,Elderly Frail Homecare,Regular Respite Care,118.72,ACORN CARE SERVICE LTD
Revenue,Head of ASC & Community Wellbeing,5105689304,17.09.2014,Elderly Frail Homecare,Regular Respite Care,118.72,ACORN CARE SERVICE LTD
Revenue,Head of ASC & Community Wellbeing,5105689301,17.09.2014,Elderly Mentally Ill Homecare,Charges from Independent Providers,44.52,ACORN CARE SERVICE LTD
Revenue,Director of Childrens Services,5105690920,24.09.2014,Direct Payments Children & Families,Direct Payments,247,REDACTED PERSONAL DATA
Revenue,Head of ASC & Community Wellbeing,5105688021,10.09.2014,Learning Disability Personal Budgets,Payments for Self Directed Support,"1,731.52",REDACTED PERSONAL DATA
Revenue,Chief Fire Officer,5105690578,24.09.2014,Fire Technical Support,Vehicle Maintenance Costs,40,ADAMS MOREY LTD
Revenue,Chief Fire Officer,5105691387,26.09.2014,Fire Technical Support,Vehicle Maintenance Costs,40,ADAMS MOREY LTD
Revenue,Chief Fire Officer,5105691769,29.09.2014,Fire Technical Support,Vehicle Maintenance Costs,10.2,ADAMS MOREY LTD
Revenue,Chief Fire Officer,5105691769,29.09.2014,Fire Technical Support,Vehicle Maintenance Costs,10.2,ADAMS MOREY LTD
Revenue,Chief Fire Officer,5105691767,29.09.2014,Fire Technical Support,Vehicle Maintenance Costs,40,ADAMS MOREY LTD
Revenue,Chief Fire Officer,5105691769,29.09.2014,Fire Technical Support,Vehicle Maintenance Costs,49.86,ADAMS MOREY LTD
Revenue,Chief Fire Officer,5105691769,29.09.2014,Fire Technical Support,Vehicle Maintenance Costs,4.04,ADAMS MOREY LTD
Revenue,Chief Fire Officer,5105691769,29.09.2014,Fire Technical Support,Vehicle Maintenance Costs,4.04,ADAMS MOREY LTD
Revenue,Chief Fire Officer,5105691769,29.09.2014,Fire Technical Support,Vehicle Maintenance Costs,6.05,ADAMS MOREY LTD
Revenue,Chief Fire Officer,5105691769,29.09.2014,Fire Technical Support,Vehicle Maintenance Costs,6.05,ADAMS MOREY LTD
Revenue,Chief Fire Officer,5105691777,29.09.2014,Fire Technical Support,Vehicle Maintenance Costs,50.12,ADAMS MOREY LTD
Revenue,Chief Fire Officer,5105691777,29.09.2014,Fire Technical Support,Vehicle Maintenance Costs,8.3,ADAMS MOREY LTD
Revenue,Chief Fire Officer,5105691777,29.09.2014,Fire Technical Support,Vehicle Maintenance Costs,5.51,ADAMS MOREY LTD
Revenue,Chief Fire Officer,5105691777,29.09.2014,Fire Technical Support,Vehicle Maintenance Costs,8.71,ADAMS MOREY LTD
Revenue,Chief Fire Officer,5105687473,05.09.2014,Fire Technical Support,Vehicle Maintenance Costs,14.5,ADAMS MOREY LTD
Revenue,Chief Fire Officer,5105690682,24.09.2014,Fire Technical Support,Vehicle Maintenance Costs,14.72,ADAMS MOREY LTD
Revenue,Chief Fire Officer,5105690682,24.09.2014,Fire Technical Support,Vehicle Maintenance Costs,65.81,ADAMS MOREY LTD
Revenue,Chief Fire Officer,5105690682,24.09.2014,Fire Technical Support,Vehicle Maintenance Costs,45.56,ADAMS MOREY LTD
Revenue,Chief Fire Officer,5105690682,24.09.2014,Fire Technical Support,Vehicle Maintenance Costs,17.78,ADAMS MOREY LTD
Revenue,Chief Fire Officer,5105690682,24.09.2014,Fire Technical Support,Vehicle Maintenance Costs,20.63,ADAMS MOREY LTD
Revenue,Chief Fire Officer,5105690581,24.09.2014,Fire Technical Support,Vehicle Maintenance Costs,74.64,ADAMS MOREY LTD
Revenue,Chief Fire Officer,5105690682,24.09.2014,Fire Technical Support,Vehicle Maintenance Costs,18.06,ADAMS MOREY LTD
Revenue,Chief Fire Officer,5105690681,24.09.2014,Fire Technical Support,Vehicle Maintenance Costs,124.88,ADAMS MOREY LTD
Revenue,Chief Fire Officer,5105690582,24.09.2014,Fire Technical Support,Vehicle Maintenance Costs,129,ADAMS MOREY LTD
Revenue,Chief Fire Officer,5105690581,24.09.2014,Fire Technical Support,Vehicle Maintenance Costs,105.85,ADAMS MOREY LTD
Revenue,Chief Fire Officer,5105690584,24.09.2014,Fire Technical Support,Vehicle Maintenance Costs,9.7,ADAMS MOREY LTD
Revenue,Chief Fire Officer,5105690648,24.09.2014,Fire Technical Support,Vehicle Maintenance Costs,59.55,ADAMS MOREY LTD
Revenue,Chief Fire Officer,5105690647,24.09.2014,Fire Technical Support,Vehicle Maintenance Costs,38.85,ADAMS MOREY LTD
Revenue,Chief Fire Officer,5105690647,24.09.2014,Fire Technical Support,Vehicle Maintenance Costs,4.55,ADAMS MOREY LTD
Revenue,Chief Fire Officer,5105690583,24.09.2014,Fire Technical Support,Vehicle Maintenance Costs,5.94,ADAMS MOREY LTD
Revenue,Head of Planning & Regulatory Services,5105690012,19.09.2014,Licensing Services,Operational Equipment,48,ADAMS MOREY LTD
Revenue,Head of Planning & Regulatory Services,5105690013,19.09.2014,Licensing Services,Operational Equipment,48,ADAMS MOREY LTD
Capital,Chief Fire Officer,5105690031,19.09.2014,Fire Capital Projects,Vehicle Leasing and Acquisition,118.96,ADAMS MOREY LTD
Capital,Chief Fire Officer,5105690580,24.09.2014,Fire Capital Projects,Vehicle Leasing and Acquisition,137.9,ADAMS MOREY LTD
Capital,Chief Fire Officer,5105691769,29.09.2014,Fire Capital Projects,Vehicle Leasing and Acquisition,22.53,ADAMS MOREY LTD
Capital,Chief Fire Officer,5105691769,29.09.2014,Fire Capital Projects,Vehicle Leasing and Acquisition,29.22,ADAMS MOREY LTD
Revenue,Managing Director & Head of Paid Service,5105689204,17.09.2014,Nutrition Initiatives,Printing Costs,269.6,ADGIFTDISCOUNTS LTD
Revenue,Head of ASC & Community Wellbeing,5105687657,10.09.2014,Elderly Frail Residential Care,Charges from Independent Providers,"1,812.44",ADIEMUS CARE LTD
Revenue,Director of Childrens Services,5105688806,12.09.2014,Adoption Costs,Advertising & Publicity,700,ADOPTION UK
Revenue,Head of HR & Organisational Change,5105688516,10.09.2014,"County Hall,Newport",Security of Buildings,201.81,ADT FIRE AND SECURITY PLC
Revenue,Head of HR & Organisational Change,5105688516,10.09.2014,"County Hall,Newport",Security of Buildings,"1,295.62",ADT FIRE AND SECURITY PLC
Revenue,Head of HR & Organisational Change,5105688516,10.09.2014,"County Hall,Newport",Security of Buildings,901.44,ADT FIRE AND SECURITY PLC
Revenue,Head of HR & Organisational Change,5105688516,10.09.2014,"Guildhall,Newport",Security of Buildings,991.07,ADT FIRE AND SECURITY PLC
Revenue,Head of HR & Organisational Change,5105688516,10.09.2014,"Civic Centre,Sandown",Security of Buildings,419.58,ADT FIRE AND SECURITY PLC
Revenue,Head of HR & Organisational Change,5105688516,10.09.2014,"Civic Centre,Sandown",Security of Buildings,590.17,ADT FIRE AND SECURITY PLC
Revenue,Head of HR & Organisational Change,5105688516,10.09.2014,"Seaclose Offices, Newport",Security of Buildings,419.58,ADT FIRE AND SECURITY PLC
Revenue,Head of HR & Organisational Change,5105688516,10.09.2014,"Seaclose Offices, Newport",Security of Buildings,777.17,ADT FIRE AND SECURITY PLC
Revenue,Head of HR & Organisational Change,5105688516,10.09.2014,17 Fairlee Road,Security of Buildings,359.26,ADT FIRE AND SECURITY PLC
Revenue,Head of Economy & Tourism,5105688516,10.09.2014,Archives,Security of Buildings,333.51,ADT FIRE AND SECURITY PLC
Revenue,Head of Economy & Tourism,5105688516,10.09.2014,Cothey Bottom Store RYDE,Security of Buildings,"1,407.73",ADT FIRE AND SECURITY PLC
Revenue,Head of Economy & Tourism,5105689239,17.09.2014,The Heights,Operational Equipment,34,ADT FIRE AND SECURITY PLC
Revenue,Head of Economy & Tourism,5105688516,10.09.2014,Medina Leisure Centre,Security of Buildings,"1,139.20",ADT FIRE AND SECURITY PLC
Revenue,Director of Childrens Services,5105688517,10.09.2014,Youth- West Wight,Security of Buildings,127.07,ADT FIRE AND SECURITY PLC
Revenue,Director of Childrens Services,5105688516,10.09.2014,Youth- West Wight,Security of Buildings,775.77,ADT FIRE AND SECURITY PLC
Revenue,Director of Childrens Services,5105688516,10.09.2014,Island Youth Water Activity Centre,Security of Buildings,527.86,ADT FIRE AND SECURITY PLC
Revenue,Head of Economy & Tourism,5105688516,10.09.2014,Ferry Management,Security of Buildings,348.82,ADT FIRE AND SECURITY PLC
Revenue,Director of Childrens Services,5105691396,26.09.2014,Children In Need 2,Agency staff,"1,850.00",AFFINITY WORKFORCE
Revenue,Director of Childrens Services,5105691396,26.09.2014,Children In Need 2,Agency staff,48.83,AFFINITY WORKFORCE
Revenue,Director of Childrens Services,5105688521,24.09.2014,Children In Need 2,Agency staff,69.22,AFFINITY WORKFORCE
Revenue,Director of Childrens Services,5105688521,24.09.2014,Children In Need 2,Agency staff,"1,850.00",AFFINITY WORKFORCE
Revenue,Head of ASC & Community Wellbeing,5105688247,10.09.2014,Elderly Frail Personal Budgets,Payments for Self Directed Support,689.84,REDACTED PERSONAL DATA
Capital,Chief Fire Officer,5105688373,12.09.2014,Fire Capital Projects,Capital Grants,"10,094.00",AIRESHELTA PLC
Revenue,Head of Exchequer Services,5105690552,24.09.2014,Housing Benefit,Training,"2,600.00",AIREY CONSULTANCY SERVICES LTD
Revenue,Head of Exchequer Services,5105690510,19.09.2014,National Non Domestic Rates,Consultants Fees,650,AIREY CONSULTANCY SERVICES LTD
Capital,Chief Fire Officer,5105691119,26.09.2014,Fire Capital Projects,"Plant, Equipment & Furniture - Capital",358.8,AIRWAVE SOLUTIONS LTD
Capital,Chief Fire Officer,5105691119,26.09.2014,Fire Capital Projects,"Plant, Equipment & Furniture - Capital",12,AIRWAVE SOLUTIONS LTD
Revenue,Head of ASC & Community Wellbeing,5105689972,17.09.2014,Integrated Community Equipment Service,General Materials,123.4,AKW MEDI-CARE LTD
Revenue,Head of ASC & Community Wellbeing,5105689972,17.09.2014,Integrated Community Equipment Service,General Materials,123.4,AKW MEDI-CARE LTD
Revenue,Head of ASC & Community Wellbeing,5105689972,17.09.2014,Integrated Community Equipment Service,General Materials,201,AKW MEDI-CARE LTD
Revenue,Head of ASC & Community Wellbeing,5105689972,17.09.2014,Integrated Community Equipment Service,General Materials,84.5,AKW MEDI-CARE LTD
Revenue,Head of ASC & Community Wellbeing,5105689972,17.09.2014,Integrated Community Equipment Service,General Materials,243.5,AKW MEDI-CARE LTD
Revenue,Head of ASC & Community Wellbeing,5105688317,10.09.2014,Elderly Frail Personal Budgets,Payments for Self Directed Support,"1,622.04",REDACTED PERSONAL DATA
Revenue,Director of Childrens Services,5105685339,03.09.2014,LSCB (Local Safeguarding Childrens Board),Professional Services,"8,781.15",ALAN BEDFORD CONSULTING
Revenue,Director of Childrens Services,5105690962,24.09.2014,Direct Payments Children & Families,Direct Payments,266,REDACTED PERSONAL DATA
Revenue,Head of ASC & Community Wellbeing,5105688457,10.09.2014,Physical Disability Personal Budgets,Payments for Self Directed Support,850,REDACTED PERSONAL DATA
Revenue,Head of ASC & Community Wellbeing,5105688310,10.09.2014,Elderly Frail Personal Budgets,Payments for Self Directed Support,391.64,REDACTED PERSONAL DATA
Revenue,Head of Economy & Tourism,5105691144,26.09.2014,SOEC �INTERREG NWE,Consultants Fees,"1,250.00",ALDERNEY WILDLIFE TRUST ENTERPRISES LTD
Revenue,Director of Childrens Services,5105690994,24.09.2014,Direct Payments Children & Families,Direct Payments,67.58,REDACTED PERSONAL DATA
Revenue,Director of Childrens Services,5105690993,24.09.2014,Direct Payments Children & Families,Direct Payments,145.74,REDACTED PERSONAL DATA
Revenue,Director of Childrens Services,5105687187,03.09.2014,Direct Payments Children & Families,Direct Payments,194.32,REDACTED PERSONAL DATA
Revenue,Head of Planning & Regulatory Services,5105689193,17.09.2014,Development Control,Advertising & Publicity,329.5,ALEXANDER ADVERTISING (INT) LTD
Revenue,Head of Planning & Regulatory Services,5105687270,05.09.2014,Development Control,Advertising & Publicity,711.31,ALEXANDER ADVERTISING (INT) LTD
Revenue,Head of Planning & Regulatory Services,5105691631,26.09.2014,Development Control,Advertising & Publicity,549.17,ALEXANDER ADVERTISING (INT) LTD
Revenue,Head of Planning & Regulatory Services,5105691637,26.09.2014,Development Control,Advertising & Publicity,481.18,ALEXANDER ADVERTISING (INT) LTD
Revenue,Director of Childrens Services,5105691126,26.09.2014,Complaints (Children & Families),Professional Services,488.5,ALISON CAMPBELL LTD
Revenue,Head of Corp Gov & Monitoring Officer,5105687488,05.09.2014,Elections,Rent of Buildings and Rooms,110,ALL SAINTS CHURCH HALL
Revenue,Chief Fire Officer,5105689979,17.09.2014,Fire Technical Support,Stock Purchases,34.2,ALLBATTERIES UK LTD
Revenue,Chief Fire Officer,5105689979,17.09.2014,Fire Technical Support,Stock Purchases,38,ALLBATTERIES UK LTD
Revenue,Chief Fire Officer,5105689748,17.09.2014,Fire Technical Support,Maintenance of Operational Equipment,146,ALLBATTERIES UK LTD
Revenue,Head of Economy & Tourism,5105691643,26.09.2014,Youth Council,Public Transport Fares,15.6,ALPHA (IOW) LTD
Revenue,Director of Childrens Services,5105686084,03.09.2014,Disabled Childrens Team,Transport of Clients,44.7,ALPHA (IOW) LTD
Revenue,Director of Childrens Services,5105686084,03.09.2014,Agency Domiciliary Care,Charges from Independent Providers,36,ALPHA (IOW) LTD
Revenue,Director of Childrens Services,5105686084,03.09.2014,Support for Looked After Children - Disabled Childrens Team,Transport of Clients,600,ALPHA (IOW) LTD
Revenue,Director of Childrens Services,5105686084,03.09.2014,Independ. & Non-Maint. Special Schls & Independ. Specialist Provision,Transport of Clients,600,ALPHA (IOW) LTD
Revenue,Head of ASC & Community Wellbeing,5105687698,10.09.2014,Learning Disability Residential Care,Charges from Independent Providers,"3,836.84",ALPHAGRANGE LTD
Revenue,Head of Economy & Tourism,5105685697,05.09.2014,Crematorium,Maintenance of Operational Equipment,657.64,ALS ENVIRONMENTAL LTD
Revenue,Head of Economy & Tourism,5105686436,10.09.2014,Crematorium,Professional Services,557.14,ALS ENVIRONMENTAL LTD
Revenue,Director of Childrens Services,5105687567,05.09.2014,Thompson House Tuition Centre (PRU),Transport of Clients,74.5,AMAR EXCLUSIVES
Revenue,Head of ASC & Community Wellbeing,5105687063,03.09.2014,Learning Disability Personal Budgets,Payments for Self Directed Support,826.4,REDACTED PERSONAL DATA
Revenue,Head of ASC & Community Wellbeing,5105688102,10.09.2014,Learning Disability Personal Budgets,Payments for Self Directed Support,826.4,REDACTED PERSONAL DATA
Revenue,Head of Finance & S151 Officer,5105688496,12.09.2014,Project Manager Waste Strategy,Consultants Fees,"8,953.00",AMEC ENVIRONMENT AND INFRASTRUCTURE UK LTD
Revenue,Head of ASC & Community Wellbeing,5105688235,10.09.2014,Transitions Team Personal Budgets,Payments for Self Directed Support,274.08,REDACTED PERSONAL DATA
Revenue,Head of ASC & Community Wellbeing,5105688326,10.09.2014,Physical Disability Personal Budgets,Payments for Self Directed Support,"1,103.32",REDACTED PERSONAL DATA
Revenue,Head of ASC & Community Wellbeing,5105687826,10.09.2014,Transitions Team Personal Budgets,Payments for Self Directed Support,"2,438.00",REDACTED PERSONAL DATA
Revenue,Head of ASC & Community Wellbeing,5105687700,10.09.2014,Elderly Frail Residential Care,Charges from Independent Providers,"1,699.88",ANCONA CARE HOME
Revenue,Head of ASC & Community Wellbeing,5105687700,10.09.2014,Elderly Frail Residential Care,Charges from Independent Providers,"1,998.08",ANCONA CARE HOME
Revenue,Head of ASC & Community Wellbeing,5105687700,10.09.2014,Elderly Mentally Ill Residential Care,Charges from Independent Providers,"1,699.88",ANCONA CARE HOME
Revenue,Head of ASC & Community Wellbeing,5105687700,10.09.2014,Elderly Mentally Ill Residential Care,Charges from Independent Providers,"1,699.88",ANCONA CARE HOME
Revenue,Head of ASC & Community Wellbeing,5105687700,10.09.2014,REDACTED PERSONAL DATA,Order Settlement to Bal Sht GL,"1,998.08",ANCONA CARE HOME
Revenue,Head of ASC & Community Wellbeing,5105688188,10.09.2014,Transitions Team Personal Budgets,Payments for Self Directed Support,"2,596.00",REDACTED PERSONAL DATA
Revenue,Chief Fire Officer,5105689744,17.09.2014,Fire Technical Support,Postage,15,ANGLOCO LTD
Revenue,Chief Fire Officer,5105689744,17.09.2014,Fire Technical Support,Vehicle Maintenance Costs,134,ANGLOCO LTD
Revenue,Chief Fire Officer,5105689744,17.09.2014,Fire Technical Support,Vehicle Maintenance Costs,36.56,ANGLOCO LTD
Revenue,Head of ASC & Community Wellbeing,5105687994,10.09.2014,Mental Health Personal Budgets,Payments for Self Directed Support,440,REDACTED PERSONAL DATA
Revenue,Head of ASC & Community Wellbeing,5105688220,10.09.2014,Mental Health Personal Budgets,Payments for Self Directed Support,30.8,REDACTED PERSONAL DATA
Revenue,Head of ASC & Community Wellbeing,5105687773,10.09.2014,Learning Disability Personal Budgets,Payments for Self Directed Support,800,REDACTED PERSONAL DATA
Revenue,Head of Economy & Tourism,5105689682,17.09.2014,Print Unit,Printing Costs,69.9,ANTALIS MCNAUGHTON
Revenue,Head of Economy & Tourism,5105689682,17.09.2014,Print Unit,Printing Costs,29.2,ANTALIS MCNAUGHTON
Revenue,Head of Economy & Tourism,5105687474,05.09.2014,Print Unit,Printing Costs,89.1,ANTALIS MCNAUGHTON
Revenue,Head of Economy & Tourism,5105689236,17.09.2014,Print Unit,Printing Costs,59.4,ANTALIS MCNAUGHTON
Revenue,Head of Economy & Tourism,5105689236,17.09.2014,Print Unit,Printing Costs,29.2,ANTALIS MCNAUGHTON
Revenue,Head of Economy & Tourism,5105689702,17.09.2014,Print Unit,Printing Costs,42.6,ANTALIS MCNAUGHTON
Revenue,Head of Economy & Tourism,5105689702,17.09.2014,Print Unit,Printing Costs,29.2,ANTALIS MCNAUGHTON
Revenue,Head of Economy & Tourism,5105689702,17.09.2014,Print Unit,Printing Costs,46.6,ANTALIS MCNAUGHTON
Revenue,Head of Economy & Tourism,5105691435,26.09.2014,Print Unit,Printing Costs,93.2,ANTALIS MCNAUGHTON
Revenue,Head of Economy & Tourism,5105691772,29.09.2014,Print Unit,Printing Costs,69.9,ANTALIS MCNAUGHTON
Revenue,Head of Economy & Tourism,5105691772,29.09.2014,Print Unit,Printing Costs,59.98,ANTALIS MCNAUGHTON
Revenue,Head of ASC & Community Wellbeing,5105688040,10.09.2014,Learning Disability Personal Budgets,Payments for Self Directed Support,200,REDACTED PERSONAL DATA
Revenue,Head of ASC & Community Wellbeing,5105689135,17.09.2014,Learning Disability Personal Budgets,Payments for Self Directed Support,60,REDACTED PERSONAL DATA
Revenue,Head of ASC & Community Wellbeing,5105690780,24.09.2014,Transitions Team Personal Budgets,Payments for Self Directed Support,"3,233.28",REDACTED PERSONAL DATA
Revenue,Head of ASC & Community Wellbeing,5105690780,24.09.2014,Transitions Team Personal Budgets,Payments for Self Directed Support,"1,508.50",REDACTED PERSONAL DATA
Revenue,Head of Corp Gov & Monitoring Officer,5105691709,29.09.2014,Coroner,Payment to Private Contractors,720,HASELEY MANOR
Revenue,Head of HR & Organisational Change,5105687523,10.09.2014,ICT Contracts,Computer Maintenance,"10,230.00",APPLE DISTRIBUTION INTERNATIONAL
Capital,Head of HR & Organisational Change,5105688396,24.09.2014,Strategic Projects,"Plant, Equipment & Furniture - Capital",686,APPLE DISTRIBUTION INTERNATIONAL
Capital,Head of HR & Organisational Change,5105688397,24.09.2014,Strategic Projects,ICT Hardware & Software - Capital,"3,236.00",APPLE DISTRIBUTION INTERNATIONAL
Revenue,Head of ASC & Community Wellbeing,5105689745,17.09.2014,Community Outreach,Operational Equipment,9.81,ARCO LTD
Revenue,Head of ASC & Community Wellbeing,5105689745,17.09.2014,Community Outreach,Operational Equipment,7.94,ARCO LTD
Revenue,Head of Economy & Tourism,5105689743,19.09.2014,The Heights,Clothing & Laundry,21.24,ARCO LTD
Revenue,Head of Economy & Tourism,5105689743,19.09.2014,The Heights,Clothing & Laundry,3.6,ARCO LTD
Revenue,Head of Economy & Tourism,5105689741,17.09.2014,Ferry Operation,Clothing & Laundry,14.9,ARCO LTD
Revenue,Head of Economy & Tourism,5105689742,17.09.2014,Ferry Operation,Clothing & Laundry,3.6,ARCO LTD
Revenue,Head of Economy & Tourism,5105689742,17.09.2014,Ferry Operation,Clothing & Laundry,10.16,ARCO LTD
Revenue,Head of Economy & Tourism,5105686289,12.09.2014,Ferry Operation,Clothing & Laundry,7.2,ARCO LTD
Revenue,Head of Economy & Tourism,5105686289,12.09.2014,Ferry Operation,Clothing & Laundry,10.16,ARCO LTD
Revenue,Head of Economy & Tourism,5105686289,12.09.2014,Ferry Operation,Clothing & Laundry,10.16,ARCO LTD
Revenue,Head of Economy & Tourism,5105691774,29.09.2014,Environment officers,Clothing & Laundry,24.47,ARCO LTD
Revenue,Head of Economy & Tourism,5105688508,12.09.2014,Environment officers,Clothing & Laundry,23.99,ARCO LTD
Revenue,Head of Economy & Tourism,5105688502,12.09.2014,Environment officers,Clothing & Laundry,38.46,ARCO LTD
Revenue,Chief Fire Officer,5105687243,05.09.2014,Fire Technical Support,Stock Purchases,94.05,ARCO LTD
Revenue,Chief Fire Officer,5105687534,05.09.2014,Fire Technical Support,Stock Purchases,199.4,ARCO LTD
Revenue,Chief Fire Officer,5105687534,05.09.2014,Fire Technical Support,Stock Purchases,12.6,ARCO LTD
Revenue,Chief Fire Officer,5105687534,05.09.2014,Fire Technical Support,Stock Purchases,57,ARCO LTD
Revenue,Chief Fire Officer,5105688511,12.09.2014,Fire Technical Support,Stock Purchases,65.92,ARCO LTD
Revenue,Chief Fire Officer,5105687534,05.09.2014,Fire Technical Support,Operational Equipment,17.7,ARCO LTD
Revenue,Head of ASC & Community Wellbeing,5105691741,29.09.2014,Integrated Community Equipment Service,Maintenance of Operational Equipment,443.8,ARJO MED AB LTD
Revenue,Head of ASC & Community Wellbeing,5105691741,29.09.2014,Integrated Community Equipment Service,Maintenance of Operational Equipment,64.99,ARJO MED AB LTD
Revenue,Head of ASC & Community Wellbeing,5105691741,29.09.2014,Integrated Community Equipment Service,Maintenance of Operational Equipment,15,ARJO MED AB LTD
Revenue,Head of ASC & Community Wellbeing,5105689676,17.09.2014,Integrated Community Equipment Service,Maintenance of Operational Equipment,216.49,ARJO MED AB LTD
Revenue,Head of ASC & Community Wellbeing,5105689699,17.09.2014,Plean Dene,Maintenance of Operational Equipment,68,ARJO MED AB LTD
Revenue,Head of ASC & Community Wellbeing,5105686728,03.09.2014,Saxonbury,Maintenance of Operational Equipment,576.5,ARJO MED AB LTD
Revenue,Head of ASC & Community Wellbeing,5105687519,10.09.2014,Highmead,Minor Works,68,ARJO MED AB LTD
Revenue,Head of ASC & Community Wellbeing,5105687502,10.09.2014,Adelaide Resource Centre,Maintenance of Operational Equipment,88.25,ARJO MED AB LTD
Capital,Head of ASC & Community Wellbeing,5105691714,29.09.2014,Adelaide & Gouldings Fixtures & Fittings,"Plant, Equipment & Furniture - Capital","1,200.00",ARJO MED AB LTD
Capital,Head of ASC & Community Wellbeing,5105691151,25.09.2014,Adelaide & Gouldings Fixtures & Fittings,"Plant, Equipment & Furniture - Capital","10,560.00",ARJO MED AB LTD
Capital,Head of ASC & Community Wellbeing,5105689195,17.09.2014,Adelaide & Gouldings Fixtures & Fittings,"Plant, Equipment & Furniture - Capital",705,ARJO MED AB LTD
Revenue,Director of Childrens Services,5105687246,12.09.2014,Beaulieu House,Minor Works,68,ARJO MED AB LTD
Revenue,Head of Economy & Tourism,5105688802,12.09.2014,Arts Development & Promotion,Training,120,ARTSWORK
Revenue,Director of Childrens Services,5105691744,29.09.2014,Thompson House Tuition Centre (PRU),Minor Works,"1,175.23",ASSA ABLOY ENTRANCE SYSTEMS LTD
Revenue,Head of Corp Gov & Monitoring Officer,5105690024,19.09.2014,Electoral Registration Office,Training,236,ASSOCIATION OF ELECTORAL ADMINISTRATORS
Revenue,Chief Fire Officer,5105678120,24.09.2014,Fire Technical Support,Vehicle Maintenance Costs,4.35,ATS EUROMASTER LTD
Revenue,Chief Fire Officer,5105678120,24.09.2014,Fire Technical Support,Vehicle Maintenance Costs,4.35,ATS EUROMASTER LTD
Revenue,Chief Fire Officer,5105678120,24.09.2014,Fire Technical Support,Vehicle Maintenance Costs,110.46,ATS EUROMASTER LTD
Revenue,Chief Fire Officer,5105678120,24.09.2014,Fire Technical Support,Vehicle Maintenance Costs,110.46,ATS EUROMASTER LTD
Revenue,Chief Fire Officer,5105678120,24.09.2014,Fire Technical Support,Vehicle Maintenance Costs,1.16,ATS EUROMASTER LTD
Revenue,Chief Fire Officer,5105678120,24.09.2014,Fire Technical Support,Vehicle Maintenance Costs,1.16,ATS EUROMASTER LTD
Revenue,Chief Fire Officer,5105678120,24.09.2014,Fire Technical Support,Vehicle Maintenance Costs,1.86,ATS EUROMASTER LTD
Revenue,Chief Fire Officer,5105678120,24.09.2014,Fire Technical Support,Vehicle Maintenance Costs,1.86,ATS EUROMASTER LTD
Revenue,Chief Fire Officer,5105678120,24.09.2014,Fire Technical Support,Vehicle Maintenance Costs,110.46,ATS EUROMASTER LTD
Revenue,Chief Fire Officer,5105678120,24.09.2014,Fire Technical Support,Vehicle Maintenance Costs,220.9,ATS EUROMASTER LTD
Revenue,Chief Fire Officer,5105678120,24.09.2014,Fire Technical Support,Vehicle Maintenance Costs,4.35,ATS EUROMASTER LTD
Revenue,Chief Fire Officer,5105678120,24.09.2014,Fire Technical Support,Vehicle Maintenance Costs,1.86,ATS EUROMASTER LTD
Revenue,Chief Fire Officer,5105678120,24.09.2014,Fire Technical Support,Vehicle Maintenance Costs,2.32,ATS EUROMASTER LTD
Revenue,Chief Fire Officer,5105678120,24.09.2014,Fire Technical Support,Vehicle Maintenance Costs,3.72,ATS EUROMASTER LTD
Revenue,Chief Fire Officer,5105678120,24.09.2014,Fire Technical Support,Vehicle Maintenance Costs,8.7,ATS EUROMASTER LTD
Revenue,Chief Fire Officer,5105678120,24.09.2014,Fire Technical Support,Vehicle Maintenance Costs,220.92,ATS EUROMASTER LTD
Revenue,Chief Fire Officer,5105678120,24.09.2014,Fire Technical Support,Vehicle Maintenance Costs,3.72,ATS EUROMASTER LTD
Revenue,Chief Fire Officer,5105678120,24.09.2014,Fire Technical Support,Vehicle Maintenance Costs,2.32,ATS EUROMASTER LTD
Revenue,Chief Fire Officer,5105678120,24.09.2014,Fire Technical Support,Vehicle Maintenance Costs,8.7,ATS EUROMASTER LTD
Revenue,Chief Fire Officer,5105678120,24.09.2014,Fire Technical Support,Vehicle Maintenance Costs,1.16,ATS EUROMASTER LTD
Revenue,Chief Fire Officer,5105690021,18.09.2014,Fire Technical Support,Vehicle Maintenance Costs,401.4,ATS EUROMASTER LTD
Revenue,Chief Fire Officer,5105690346,18.09.2014,Fire Technical Support,Vehicle Maintenance Costs,-401.4,ATS EUROMASTER LTD
Revenue,Chief Fire Officer,5105690832,24.09.2014,Fire Technical Support,Vehicle Maintenance Costs,-110.46,ATS EUROMASTER LTD
Revenue,Chief Fire Officer,5105690832,24.09.2014,Fire Technical Support,Vehicle Maintenance Costs,-4.35,ATS EUROMASTER LTD
Revenue,Chief Fire Officer,5105690832,24.09.2014,Fire Technical Support,Vehicle Maintenance Costs,-1.16,ATS EUROMASTER LTD
Revenue,Chief Fire Officer,5105690832,24.09.2014,Fire Technical Support,Vehicle Maintenance Costs,-1.86,ATS EUROMASTER LTD
Revenue,Chief Fire Officer,5105690830,24.09.2014,Fire Technical Support,Vehicle Maintenance Costs,4.35,ATS EUROMASTER LTD
Revenue,Chief Fire Officer,5105690830,24.09.2014,Fire Technical Support,Vehicle Maintenance Costs,401.4,ATS EUROMASTER LTD
Revenue,Chief Fire Officer,5105690830,24.09.2014,Fire Technical Support,Vehicle Maintenance Costs,110.46,ATS EUROMASTER LTD
Revenue,Chief Fire Officer,5105690830,24.09.2014,Fire Technical Support,Vehicle Maintenance Costs,1.16,ATS EUROMASTER LTD
Revenue,Chief Fire Officer,5105690830,24.09.2014,Fire Technical Support,Vehicle Maintenance Costs,1.86,ATS EUROMASTER LTD
Revenue,Head of ASC & Community Wellbeing,5105687670,10.09.2014,Elderly Frail Residential Care,Charges from Independent Providers,"1,998.08",AUTUMN HOUSE CARE LTD
Revenue,Head of ASC & Community Wellbeing,5105687670,10.09.2014,Elderly Mentally Ill Residential Care,Charges from Independent Providers,"1,998.08",AUTUMN HOUSE CARE LTD
Revenue,Head of ASC & Community Wellbeing,5105687670,10.09.2014,Elderly Mentally Ill Residential Care,Charges from Independent Providers,"1,998.08",AUTUMN HOUSE CARE LTD
Revenue,Head of ASC & Community Wellbeing,5105687670,10.09.2014,Elderly Mentally Ill Residential Care,Charges from Independent Providers,"1,998.08",AUTUMN HOUSE CARE LTD
Revenue,Head of ASC & Community Wellbeing,5105687670,10.09.2014,Elderly Mentally Ill Residential Care,Charges from Independent Providers,"1,998.08",AUTUMN HOUSE CARE LTD
Revenue,Head of ASC & Community Wellbeing,5105687670,10.09.2014,Elderly Mentally Ill Residential Care,Charges from Independent Providers,"1,998.08",AUTUMN HOUSE CARE LTD
Revenue,Head of ASC & Community Wellbeing,5105687670,10.09.2014,Elderly Mentally Ill Residential Care,Charges from Independent Providers,"1,998.08",AUTUMN HOUSE CARE LTD
Revenue,Head of ASC & Community Wellbeing,5105687670,10.09.2014,Elderly Mentally Ill Residential Care,Charges from Independent Providers,"1,998.08",AUTUMN HOUSE CARE LTD
Revenue,Head of ASC & Community Wellbeing,5105687670,10.09.2014,Elderly Mentally Ill Residential Care,Charges from Independent Providers,"1,998.08",AUTUMN HOUSE CARE LTD
Revenue,Head of ASC & Community Wellbeing,5105687670,10.09.2014,Elderly Mentally Ill Residential Care,Charges from Independent Providers,"1,998.08",AUTUMN HOUSE CARE LTD
Revenue,Head of ASC & Community Wellbeing,5105687670,10.09.2014,Elderly Mentally Ill Residential Care,Charges from Independent Providers,"1,998.08",AUTUMN HOUSE CARE LTD
Revenue,Head of ASC & Community Wellbeing,5105687670,10.09.2014,Elderly Mentally Ill Residential Care,Charges from Independent Providers,"1,699.88",AUTUMN HOUSE CARE LTD
Revenue,Head of ASC & Community Wellbeing,5105687670,10.09.2014,Elderly Mentally Ill Residential Care,Charges from Independent Providers,"1,998.08",AUTUMN HOUSE CARE LTD
Revenue,Head of ASC & Community Wellbeing,5105687670,10.09.2014,Elderly Mentally Ill Residential Care,Charges from Independent Providers,"1,699.88",AUTUMN HOUSE CARE LTD
Revenue,Head of ASC & Community Wellbeing,5105687670,10.09.2014,Elderly Mentally Ill Residential Care,Charges from Independent Providers,"1,699.88",AUTUMN HOUSE CARE LTD
Revenue,Head of ASC & Community Wellbeing,5105687670,10.09.2014,Elderly Mentally Ill Residential Care,Charges from Independent Providers,"2,093.84",AUTUMN HOUSE CARE LTD
Revenue,Head of ASC & Community Wellbeing,5105687670,10.09.2014,Elderly Mentally Ill Residential Care,Charges from Independent Providers,"2,093.84",AUTUMN HOUSE CARE LTD
Revenue,Head of ASC & Community Wellbeing,5105687670,10.09.2014,Elderly Mentally Ill Residential Care,Charges from Independent Providers,"2,093.84",AUTUMN HOUSE CARE LTD
Revenue,Head of ASC & Community Wellbeing,5105687670,10.09.2014,Elderly Mentally Ill Residential Care,Charges from Independent Providers,"1,998.08",AUTUMN HOUSE CARE LTD
Revenue,Head of ASC & Community Wellbeing,5105687670,10.09.2014,Elderly Mentally Ill Residential Care,Charges from Independent Providers,"1,699.88",AUTUMN HOUSE CARE LTD
Revenue,Head of ASC & Community Wellbeing,5105687670,10.09.2014,Elderly Mentally Ill Residential Care,Charges from Independent Providers,"1,998.08",AUTUMN HOUSE CARE LTD
Revenue,Head of ASC & Community Wellbeing,5105687670,10.09.2014,Elderly Mentally Ill Residential Care,Charges from Independent Providers,"1,998.08",AUTUMN HOUSE CARE LTD
Revenue,Head of ASC & Community Wellbeing,5105687670,10.09.2014,Elderly Mentally Ill Residential Care,Charges from Independent Providers,"1,998.08",AUTUMN HOUSE CARE LTD
Revenue,Head of ASC & Community Wellbeing,5105689254,17.09.2014,Mental Health Residential Care,Charges from Independent Providers,"1,700.44",AUTUMN HOUSE CARE LTD
Revenue,Head of ASC & Community Wellbeing,5105687670,10.09.2014,Physical Disability Residential Care,Charges from Independent Providers,"1,998.08",AUTUMN HOUSE CARE LTD
Revenue,Head of ASC & Community Wellbeing,5105687670,10.09.2014,REDACTED PERSONAL DATA,Order Settlement to Bal Sht GL,"1,998.08",AUTUMN HOUSE CARE LTD
Revenue,Director of Childrens Services,5105687316,05.09.2014,Leaving Care Costs,Support Children,120.89,REDACTED PERSONAL DATA
Revenue,Director of Childrens Services,5105688595,12.09.2014,Leaving Care Costs,Support Children,120.89,REDACTED PERSONAL DATA
Revenue,Director of Childrens Services,5105690075,19.09.2014,Leaving Care Costs,Support Children,120.89,REDACTED PERSONAL DATA
Revenue,Director of Childrens Services,5105691200,26.09.2014,Leaving Care Costs,Support Children,120.89,REDACTED PERSONAL DATA
Revenue,Director of Childrens Services,5105687316,05.09.2014,Leaving Care Costs,Accommodation Costs - Service Users,57.5,REDACTED PERSONAL DATA
Revenue,Director of Childrens Services,5105688595,12.09.2014,Leaving Care Costs,Accommodation Costs - Service Users,57.5,REDACTED PERSONAL DATA
Revenue,Director of Childrens Services,5105690075,19.09.2014,Leaving Care Costs,Accommodation Costs - Service Users,57.5,REDACTED PERSONAL DATA
Revenue,Director of Childrens Services,5105691200,26.09.2014,Leaving Care Costs,Accommodation Costs - Service Users,57.5,REDACTED PERSONAL DATA
Revenue,Director of Childrens Services,5105687512,05.09.2014,Beaulieu House,Minor Works,17.47,B & Q FINANCIAL SERVICES
Revenue,Director of Childrens Services,5105689987,17.09.2014,Beaulieu House,General Materials,8.33,B & Q FINANCIAL SERVICES
Revenue,Head of Economy & Tourism,5105689970,19.09.2014,Fort Victoria,General Materials,60.54,B & Q FINANCIAL SERVICES
Revenue,Head of Economy & Tourism,5105691834,30.09.2014,Fort Victoria,General Materials,54.38,B & Q FINANCIAL SERVICES
Revenue,Head of ASC & Community Wellbeing,5105687776,10.09.2014,Transitions Team Personal Budgets,Payments for Self Directed Support,"4,620.00",REDACTED PERSONAL DATA
Revenue,Director of Childrens Services,5105687421,05.09.2014,Leaving Care Costs,Personal Allowances,56.25,REDACTED PERSONAL DATA
Revenue,Director of Childrens Services,5105688701,12.09.2014,Leaving Care Costs,Personal Allowances,56.25,REDACTED PERSONAL DATA
Revenue,Director of Childrens Services,5105690180,19.09.2014,Leaving Care Costs,Personal Allowances,56.25,REDACTED PERSONAL DATA
Revenue,Director of Childrens Services,5105691305,26.09.2014,Leaving Care Costs,Personal Allowances,56.25,REDACTED PERSONAL DATA
Revenue,Director of Childrens Services,5105687442,05.09.2014,Leaving Care Costs,Personal Allowances,56.25,REDACTED PERSONAL DATA
Revenue,Director of Childrens Services,5105688721,12.09.2014,Leaving Care Costs,Personal Allowances,56.25,REDACTED PERSONAL DATA
Revenue,Director of Childrens Services,5105690200,19.09.2014,Leaving Care Costs,Personal Allowances,56.25,REDACTED PERSONAL DATA
Revenue,Director of Childrens Services,5105691325,26.09.2014,Leaving Care Costs,Personal Allowances,56.25,REDACTED PERSONAL DATA
Revenue,Head of ASC & Community Wellbeing,5105688075,10.09.2014,Elderly Frail Personal Budgets,Payments for Self Directed Support,349,REDACTED PERSONAL DATA
Revenue,Head of ASC & Community Wellbeing,5105688216,10.09.2014,Learning Disability Personal Budgets,Payments for Self Directed Support,190,REDACTED PERSONAL DATA
Revenue,Head of ASC & Community Wellbeing,5105687843,10.09.2014,Physical Disability Personal Budgets,Payments for Self Directed Support,"1,153.64",REDACTED PERSONAL DATA
Revenue,Director of Childrens Services,5105687546,26.09.2014,Branstone Farm Studies Centre,Office Equipment,117,REDACTED PERSONAL DATA
Revenue,Head of ASC & Community Wellbeing,5105688271,10.09.2014,Learning Disability Personal Budgets,Payments for Self Directed Support,"6,089.00",REDACTED PERSONAL DATA
Revenue,Head of ASC & Community Wellbeing,5105687753,10.09.2014,Learning Disability Personal Budgets,Payments for Self Directed Support,"1,373.12",REDACTED PERSONAL DATA
Revenue,Head of ASC & Community Wellbeing,5105687685,10.09.2014,Learning Disability Residential Care,Charges from Independent Providers,"1,811.88",REDACTED PERSONAL DATA
Revenue,Head of ASC & Community Wellbeing,5105687685,10.09.2014,Learning Disability Residential Care,Charges from Independent Providers,"1,811.88",REDACTED PERSONAL DATA
Revenue,Head of ASC & Community Wellbeing,5105687685,10.09.2014,Learning Disability Residential Care,Charges from Independent Providers,"2,625.00",REDACTED PERSONAL DATA
Revenue,Director of Childrens Services,5105690971,24.09.2014,Direct Payments Children & Families,Direct Payments,171,REDACTED PERSONAL DATA
Revenue,Head of ASC & Community Wellbeing,5105690694,24.09.2014,Leaseholds by LA,Accommodation Costs - Leaseholder Payments,815.49,REDACTED PERSONAL DATA
Revenue,Head of ASC & Community Wellbeing,5105688134,10.09.2014,Elderly Frail Personal Budgets,Payments for Self Directed Support,348.48,REDACTED PERSONAL DATA
Revenue,Head of Exchequer Services,5105690753,24.09.2014,Staff Benefits,Payment to Private Contractors,100,REDACTED PERSONAL DATA
Revenue,Head of Exchequer Services,5105690753,24.09.2014,Staff Benefits,Payment to Private Contractors,243,REDACTED PERSONAL DATA
Revenue,Head of Exchequer Services,5105690753,24.09.2014,Staff Benefits,Payment to Private Contractors,243,REDACTED PERSONAL DATA
Revenue,Head of ASC & Community Wellbeing,5105688149,10.09.2014,Transitions Team Personal Budgets,Payments for Self Directed Support,860,REDACTED PERSONAL DATA
Revenue,Head of ASC & Community Wellbeing,5105690701,24.09.2014,Leaseholds by LA,Accommodation Costs - Leaseholder Payments,888.33,REDACTED PERSONAL DATA
Revenue,Head of ASC & Community Wellbeing,5105690701,24.09.2014,Leaseholds by LA,Accommodation Costs - Leaseholder Payments,799.5,REDACTED PERSONAL DATA
Revenue,Head of ASC & Community Wellbeing,5105690701,24.09.2014,Leaseholds by LA,Accommodation Costs - Leaseholder Payments,866.67,REDACTED PERSONAL DATA
Revenue,Head of ASC & Community Wellbeing,5105690701,24.09.2014,Leaseholds by LA,Accommodation Costs - Leaseholder Payments,866.67,REDACTED PERSONAL DATA
Revenue,Head of ASC & Community Wellbeing,5105690701,24.09.2014,Leaseholds by LA,Accommodation Costs - Leaseholder Payments,799.5,REDACTED PERSONAL DATA
Revenue,Director of Childrens Services,5105690976,24.09.2014,Direct Payments Children & Families,Direct Payments,156.75,REDACTED PERSONAL DATA
Revenue,Director of Childrens Services,5105690977,24.09.2014,Direct Payments Children & Families,Direct Payments,99.75,REDACTED PERSONAL DATA
Revenue,Head of ASC & Community Wellbeing,5105687539,05.09.2014,Mental Health Personal Budgets,Payments for Self Directed Support,118.72,REDACTED PERSONAL DATA
Revenue,Head of ASC & Community Wellbeing,5105687922,10.09.2014,Mental Health Personal Budgets,Payments for Self Directed Support,758.88,REDACTED PERSONAL DATA
Revenue,Head of ASC & Community Wellbeing,5105688211,10.09.2014,Elderly Frail Personal Budgets,Payments for Self Directed Support,910.4,REDACTED PERSONAL DATA
Revenue,Head of ASC & Community Wellbeing,5105687937,10.09.2014,Learning Disability Personal Budgets,Payments for Self Directed Support,815.2,REDACTED PERSONAL DATA
Revenue,Director of Childrens Services,5105688788,12.09.2014,Duke of Edingburgh Award,Professional Services,205,BABCOCK LDP LLP
Revenue,Director of Childrens Services,5105675420,18.09.2014,Purchased Residential,Charges from Independent Providers,"13,263.57",BACK ON TRACK
Revenue,Head of HR & Organisational Change,5105690915,24.09.2014,"Bugle House,Newport",Rent of Buildings and Rooms,"1,285.35",BAE SYSTEMS
Revenue,Head of HR & Organisational Change,5105690775,24.09.2014,"Bugle House,Newport",Rent of Buildings and Rooms,"6,625.00",BAE SYSTEMS
Revenue,Head of HR & Organisational Change,5105690775,24.09.2014,"Bugle House,Newport",Rent of Buildings and Rooms,"1,285.35",BAE SYSTEMS
Revenue,Head of HR & Organisational Change,5105687651,10.09.2014,"Bugle House,Newport",Rent of Buildings and Rooms,"1,285.35",BAE SYSTEMS
Revenue,Director of Childrens Services,5105690970,24.09.2014,Direct Payments Children & Families,Direct Payments,38,REDACTED PERSONAL DATA
Revenue,Head of Exchequer Services,5105687531,05.09.2014,Blue Badge Admin Team Shared Services,Fixtures and Fittings,384.2,BALFOUR BEATTY
Revenue,Head of HR & Organisational Change,5105690901,24.09.2014,"Enterprise House, Newport",Property Services - Planned Maintenance,126.72,BALFOUR BEATTY
Revenue,Head of HR & Organisational Change,5105688868,12.09.2014,"Enterprise House, Newport",Prop Svs only - Day to day mtce,85.76,BALFOUR BEATTY
Revenue,Head of HR & Organisational Change,5105690769,24.09.2014,"Enterprise House, Newport",Prop Svs only - Day to day mtce,92.1,BALFOUR BEATTY
Revenue,Head of HR & Organisational Change,5105691028,24.09.2014,"Enterprise House, Newport",Property Services - Planned Maintenance,142.62,BALFOUR BEATTY
Revenue,Head of HR & Organisational Change,5105691862,30.09.2014,"Enterprise House, Newport",Property Services - Planned Maintenance,119.19,BALFOUR BEATTY
Revenue,Head of HR & Organisational Change,5105687278,05.09.2014,"Enterprise House, Newport",Prop Svs only - Day to day mtce,95.48,BALFOUR BEATTY
Revenue,Head of HR & Organisational Change,5105687641,10.09.2014,"Enterprise House, Newport",Prop Svs only - Day to day mtce,110.19,BALFOUR BEATTY
Revenue,Head of HR & Organisational Change,5105688813,12.09.2014,"Enterprise House, Newport",Prop Svs only - Day to day mtce,97.28,BALFOUR BEATTY
Revenue,Head of HR & Organisational Change,5105688445,10.09.2014,"County Hall,Newport",Prop Svs only - Day to day mtce,91.06,BALFOUR BEATTY
Revenue,Head of HR & Organisational Change,5105688421,10.09.2014,"County Hall,Newport",Prop Svs only - Day to day mtce,77.95,BALFOUR BEATTY
Revenue,Head of HR & Organisational Change,5105688439,10.09.2014,"County Hall,Newport",Prop Svs only - Day to day mtce,376.02,BALFOUR BEATTY
Revenue,Head of HR & Organisational Change,5105687537,05.09.2014,"County Hall,Newport",Prop Svs only - Day to day mtce,187.92,BALFOUR BEATTY
Revenue,Head of HR & Organisational Change,5105687214,03.09.2014,"County Hall,Newport",Prop Svs only - Day to day mtce,105.39,BALFOUR BEATTY
Revenue,Head of HR & Organisational Change,5105691794,29.09.2014,"County Hall,Newport",Property Services - Planned Maintenance,"1,462.13",BALFOUR BEATTY
Revenue,Head of HR & Organisational Change,5105691029,24.09.2014,"County Hall,Newport",Property Services - Planned Maintenance,92.85,BALFOUR BEATTY
Revenue,Head of HR & Organisational Change,5105691013,24.09.2014,"County Hall,Newport",Property Services - Planned Maintenance,98.02,BALFOUR BEATTY
Revenue,Head of HR & Organisational Change,5105691037,24.09.2014,"County Hall,Newport",Property Services - Planned Maintenance,136.05,BALFOUR BEATTY
Revenue,Head of HR & Organisational Change,5105690904,24.09.2014,"County Hall,Newport",Prop Svs only - Day to day mtce,72.85,BALFOUR BEATTY
Revenue,Head of HR & Organisational Change,5105691878,30.09.2014,"County Hall,Newport",Prop Svs only - Day to day mtce,87.45,BALFOUR BEATTY
Revenue,Head of HR & Organisational Change,5105691032,24.09.2014,"County Hall,Newport",Property Services - Planned Maintenance,101.4,BALFOUR BEATTY
Revenue,Head of HR & Organisational Change,5105690882,24.09.2014,"County Hall,Newport",Property Services - Planned Maintenance,137.19,BALFOUR BEATTY
Revenue,Head of HR & Organisational Change,5105690874,24.09.2014,"County Hall,Newport",Property Services - Planned Maintenance,118.69,BALFOUR BEATTY
Revenue,Head of HR & Organisational Change,5105690883,24.09.2014,"County Hall,Newport",Property Services - Planned Maintenance,87.98,BALFOUR BEATTY
Revenue,Head of HR & Organisational Change,5105690810,24.09.2014,"Guildhall,Newport",Property Services - Planned Maintenance,87.45,BALFOUR BEATTY
Revenue,Head of HR & Organisational Change,5105688828,12.09.2014,"Guildhall,Newport",Prop Svs only - Day to day mtce,83.05,BALFOUR BEATTY
Revenue,Head of HR & Organisational Change,5105687279,05.09.2014,"Guildhall,Newport",Prop Svs only - Day to day mtce,73.01,BALFOUR BEATTY
Revenue,Head of HR & Organisational Change,5105688417,10.09.2014,"Civic Centre,Sandown",Prop Svs only - Day to day mtce,67.75,BALFOUR BEATTY
Revenue,Head of HR & Organisational Change,5105687616,10.09.2014,"Civic Centre,Sandown",Prop Svs only - Day to day mtce,175.84,BALFOUR BEATTY
Revenue,Head of HR & Organisational Change,5105688413,10.09.2014,"Civic Centre,Sandown",Prop Svs only - Day to day mtce,102.33,BALFOUR BEATTY
Revenue,Head of HR & Organisational Change,5105691085,24.09.2014,"Civic Centre,Sandown",Prop Svs only - Day to day mtce,78.9,BALFOUR BEATTY
Revenue,Head of HR & Organisational Change,5105690859,24.09.2014,"Civic Centre,Sandown",Property Services - Planned Maintenance,166.08,BALFOUR BEATTY
Revenue,Head of HR & Organisational Change,5105690861,24.09.2014,"Bugle House,Newport",Property Services - Planned Maintenance,68.26,BALFOUR BEATTY
Revenue,Head of HR & Organisational Change,5105690852,24.09.2014,"Bugle House,Newport",Prop Svs only - Day to day mtce,120.53,BALFOUR BEATTY
Revenue,Head of HR & Organisational Change,5105687565,05.09.2014,"Bugle House,Newport",Prop Svs only - Day to day mtce,90.86,BALFOUR BEATTY
Revenue,Head of HR & Organisational Change,5105688851,12.09.2014,"Jubilee Stores, Newport",Prop Svs only - Day to day mtce,108.38,BALFOUR BEATTY
Revenue,Head of HR & Organisational Change,5105691031,24.09.2014,"Jubilee Stores, Newport",Property Services - Planned Maintenance,60.06,BALFOUR BEATTY
Revenue,Head of HR & Organisational Change,5105690848,24.09.2014,"Seaclose Offices, Newport",Prop Svs only - Day to day mtce,63.48,BALFOUR BEATTY
Revenue,Head of HR & Organisational Change,5105688410,10.09.2014,"Seaclose Offices, Newport",Prop Svs only - Day to day mtce,102.86,BALFOUR BEATTY
Revenue,Head of HR & Organisational Change,5105688409,10.09.2014,"Seaclose Offices, Newport",Prop Svs only - Day to day mtce,184.31,BALFOUR BEATTY
Revenue,Head of HR & Organisational Change,5105691082,24.09.2014,"Westridge, Ryde",Property Services - Planned Maintenance,277.24,BALFOUR BEATTY
Revenue,Head of HR & Organisational Change,5105690869,24.09.2014,"Westridge, Ryde",Property Services - Planned Maintenance,118.69,BALFOUR BEATTY
Revenue,Head of HR & Organisational Change,5105691826,29.09.2014,60 Dodnor Lane rechargeable,Property Services - Planned Maintenance,112.37,BALFOUR BEATTY
Revenue,Head of HR & Organisational Change,5105688869,12.09.2014,"24 Daish Way, Newport (WISE)",Prop Svs only - Day to day mtce,72.85,BALFOUR BEATTY
Revenue,Head of HR & Organisational Change,5105688443,10.09.2014,"29,High St,Newport",Prop Svs only - Day to day mtce,96.43,BALFOUR BEATTY
Revenue,Head of HR & Organisational Change,5105688862,12.09.2014,"29,High St,Newport",Prop Svs only - Day to day mtce,62.43,BALFOUR BEATTY
Capital,Head of HR & Organisational Change,5105691881,30.09.2014,Management of Asbestos,Payment to Contractors - Capital,"4,420.00",BALFOUR BEATTY
Capital,Head of HR & Organisational Change,5105691880,30.09.2014,Management of Asbestos,Payment to Contractors - Capital,"6,272.00",BALFOUR BEATTY
Capital,Head of HR & Organisational Change,5105687612,10.09.2014,Boiler Replacement Heating Non Education,Payment to Contractors - Capital,197.61,BALFOUR BEATTY
Capital,Head of HR & Organisational Change,5105687507,05.09.2014,Server Farm,ICT Hardware & Software - Capital,137.77,BALFOUR BEATTY
Revenue,Head of ASC & Community Wellbeing,5105688860,12.09.2014,Downside Community & Learning Centre,Minor Works,92.65,BALFOUR BEATTY
Revenue,Head of ASC & Community Wellbeing,5105690878,24.09.2014,Downside Community & Learning Centre,Minor Works,92.39,BALFOUR BEATTY
Revenue,Head of ASC & Community Wellbeing,5105690863,24.09.2014,Integrated Community Equipment Service,Fixtures and Fittings,77.11,BALFOUR BEATTY
Revenue,Head of ASC & Community Wellbeing,5105687640,10.09.2014,Integrated Community Equipment Service,Fixtures and Fittings,111.1,BALFOUR BEATTY
Revenue,Head of ASC & Community Wellbeing,5105690907,24.09.2014,Integrated Community Equipment Service,Fixtures and Fittings,110.27,BALFOUR BEATTY
Revenue,Head of ASC & Community Wellbeing,5105690873,24.09.2014,31 Carter Avenue,Minor Works,134.5,BALFOUR BEATTY
Revenue,Head of ASC & Community Wellbeing,5105688818,12.09.2014,Plean Dene,Minor Works,323.25,BALFOUR BEATTY
Revenue,Head of ASC & Community Wellbeing,5105688441,10.09.2014,Saxonbury,Minor Works,191.08,BALFOUR BEATTY
Revenue,Head of ASC & Community Wellbeing,5105688865,12.09.2014,Saxonbury,Minor Works,95.39,BALFOUR BEATTY
Revenue,Head of ASC & Community Wellbeing,5105690770,24.09.2014,Saxonbury,Minor Works,71.33,BALFOUR BEATTY
Revenue,Head of ASC & Community Wellbeing,5105690838,24.09.2014,Highmead,Minor Works,73.01,BALFOUR BEATTY
Revenue,Head of ASC & Community Wellbeing,5105691018,24.09.2014,Highmead,Minor Works,183.97,BALFOUR BEATTY
Revenue,Head of ASC & Community Wellbeing,5105691866,30.09.2014,Highmead,Minor Works,83.35,BALFOUR BEATTY
Revenue,Head of ASC & Community Wellbeing,5105687615,10.09.2014,Highmead,Minor Works,178.51,BALFOUR BEATTY
Revenue,Head of ASC & Community Wellbeing,5105687518,05.09.2014,Highmead,Minor Works,86.52,BALFOUR BEATTY
Revenue,Head of ASC & Community Wellbeing,5105688872,12.09.2014,Highmead,Minor Works,233,BALFOUR BEATTY
Revenue,Head of ASC & Community Wellbeing,5105688856,12.09.2014,Highmead,Minor Works,69.99,BALFOUR BEATTY
Revenue,Head of ASC & Community Wellbeing,5105687501,05.09.2014,The Laurels,Minor Works,119.01,BALFOUR BEATTY
Revenue,Head of ASC & Community Wellbeing,5105688873,12.09.2014,The Laurels,Minor Works,77.37,BALFOUR BEATTY
Revenue,Head of HR & Organisational Change,5105688427,10.09.2014,17 Fairlee Road,Minor Works,153.43,BALFOUR BEATTY
Revenue,Head of ASC & Community Wellbeing,5105687275,05.09.2014,Adelaide Resource Centre,Prop Svs only - Day to day mtce,103.45,BALFOUR BEATTY
Revenue,Head of ASC & Community Wellbeing,5105688841,12.09.2014,Adelaide Resource Centre,Prop Svs only - Day to day mtce,99.91,BALFOUR BEATTY
Revenue,Head of ASC & Community Wellbeing,5105691015,24.09.2014,Adelaide Resource Centre,Property Services - Planned Maintenance,84.75,BALFOUR BEATTY
Revenue,Head of ASC & Community Wellbeing,5105691148,26.09.2014,Adelaide Resource Centre,Prop Svs only - Day to day mtce,92.07,BALFOUR BEATTY
Revenue,Head of ASC & Community Wellbeing,5105691011,24.09.2014,Adelaide Resource Centre,Property Services - Planned Maintenance,103.65,BALFOUR BEATTY
Revenue,Head of ASC & Community Wellbeing,5105691857,30.09.2014,Adelaide Resource Centre,Prop Svs only - Day to day mtce,74.89,BALFOUR BEATTY
Revenue,Head of ASC & Community Wellbeing,5105687613,10.09.2014,Adelaide Resource Centre,Maintenance of Operational Equipment,73.01,BALFOUR BEATTY
Revenue,Head of ASC & Community Wellbeing,5105691058,24.09.2014,Gouldings Resource Centre,Prop Svs only - Day to day mtce,189.44,BALFOUR BEATTY
Revenue,Head of ASC & Community Wellbeing,5105691008,24.09.2014,Gouldings Resource Centre,Prop Svs only - Day to day mtce,105.03,BALFOUR BEATTY
Revenue,Head of ASC & Community Wellbeing,5105688434,10.09.2014,Gouldings Resource Centre,Prop Svs only - Day to day mtce,88.46,BALFOUR BEATTY
Revenue,Head of ASC & Community Wellbeing,5105688415,10.09.2014,Westminster House,Prop Svs only - Day to day mtce,85.76,BALFOUR BEATTY
Revenue,Head of ASC & Community Wellbeing,5105688816,12.09.2014,Westminster House,Prop Svs only - Day to day mtce,78.36,BALFOUR BEATTY
Revenue,Head of ASC & Community Wellbeing,5105688437,10.09.2014,Westminster House,Prop Svs only - Day to day mtce,57.55,BALFOUR BEATTY
Revenue,Head of ASC & Community Wellbeing,5105687617,10.09.2014,Westminster House,Prop Svs only - Day to day mtce,54.23,BALFOUR BEATTY
Revenue,Head of ASC & Community Wellbeing,5105688876,12.09.2014,Westminster House,Prop Svs only - Day to day mtce,58.31,BALFOUR BEATTY
Revenue,Head of ASC & Community Wellbeing,5105691087,24.09.2014,Westminster House,Prop Svs only - Day to day mtce,104.01,BALFOUR BEATTY
Revenue,Head of ASC & Community Wellbeing,5105690776,24.09.2014,Westminster House,Prop Svs only - Day to day mtce,66.04,BALFOUR BEATTY
Revenue,Head of ASC & Community Wellbeing,5105690854,24.09.2014,Westminster House,Prop Svs only - Day to day mtce,101.22,BALFOUR BEATTY
Revenue,Head of ASC & Community Wellbeing,5105691882,30.09.2014,Westminster House,Prop Svs only - Day to day mtce,116,BALFOUR BEATTY
Revenue,Head of ASC & Community Wellbeing,5105687607,10.09.2014,Westminster House,Property Services - Planned Maintenance,140,BALFOUR BEATTY
Revenue,Head of ASC & Community Wellbeing,5105691868,30.09.2014,Westminster House,Property Services - Planned Maintenance,140,BALFOUR BEATTY
Revenue,Head of Economy & Tourism,5105688446,10.09.2014,Bembridge Library,Prop Svs only - Day to day mtce,300.04,BALFOUR BEATTY
Revenue,Head of Economy & Tourism,5105687603,10.09.2014,Bembridge Library,Property Services - Planned Maintenance,187.01,BALFOUR BEATTY
Revenue,Head of Economy & Tourism,5105691861,30.09.2014,Bembridge Library,Prop Svs only - Day to day mtce,166,BALFOUR BEATTY
Revenue,Head of Economy & Tourism,5105687560,05.09.2014,Cowes Library,Prop Svs only - Day to day mtce,90.86,BALFOUR BEATTY
Revenue,Head of Economy & Tourism,5105687639,10.09.2014,East Cowes Library,Property Services - Planned Maintenance,140.15,BALFOUR BEATTY
Revenue,Head of Economy & Tourism,5105690881,24.09.2014,Freshwater West Wight Library,Property Services - Planned Maintenance,94.79,BALFOUR BEATTY
Revenue,Head of Economy & Tourism,5105691797,29.09.2014,Newport Library,Prop Svs only - Day to day mtce,"1,228.57",BALFOUR BEATTY
Revenue,Head of Economy & Tourism,5105687606,10.09.2014,Newport Library,Prop Svs only - Day to day mtce,67.19,BALFOUR BEATTY
Revenue,Head of Economy & Tourism,5105690821,24.09.2014,Ryde Library,Prop Svs only - Day to day mtce,99.14,BALFOUR BEATTY
Revenue,Head of Economy & Tourism,5105687614,10.09.2014,Ryde Library,Property Services - Planned Maintenance,100.58,BALFOUR BEATTY
Revenue,Head of Economy & Tourism,5105690870,24.09.2014,Ryde Library,Property Services - Planned Maintenance,48.53,BALFOUR BEATTY
Revenue,Head of Economy & Tourism,5105690771,24.09.2014,Sandown Library,Prop Svs only - Day to day mtce,70.13,BALFOUR BEATTY
Revenue,Head of Economy & Tourism,5105690875,24.09.2014,Sandown Library,Prop Svs only - Day to day mtce,65.85,BALFOUR BEATTY
Revenue,Head of Economy & Tourism,5105691835,30.09.2014,Sandown Library,Property Services - Planned Maintenance,185.24,BALFOUR BEATTY
Revenue,Head of Economy & Tourism,5105691859,30.09.2014,Sandown Library,Property Services - Planned Maintenance,116.16,BALFOUR BEATTY
Revenue,Head of Economy & Tourism,5105691865,30.09.2014,Sandown Library,Property Services - Planned Maintenance,172.88,BALFOUR BEATTY
Revenue,Head of Economy & Tourism,5105691877,30.09.2014,Ventnor Library,Prop Svs only - Day to day mtce,56.79,BALFOUR BEATTY
Revenue,Director of Childrens Services,5105691080,24.09.2014,Learning & Development Running Costs,Prop Svs only - Day to day mtce,65.36,BALFOUR BEATTY
Revenue,Director of Childrens Services,5105691003,24.09.2014,Learning & Development Running Costs,Minor Works,81.47,BALFOUR BEATTY
Revenue,Head of Economy & Tourism,5105691803,29.09.2014,Ryde Sports Centre,Delegated Minor Maintenance,74.89,BALFOUR BEATTY
Revenue,Head of Economy & Tourism,5105688849,12.09.2014,Fairway Sports Complex,Prop Svs only - Day to day mtce,207,BALFOUR BEATTY
Revenue,Head of Economy & Tourism,5105691846,30.09.2014,Fairway Sports Complex,Property Services - Planned Maintenance,205.6,BALFOUR BEATTY
Revenue,Head of Economy & Tourism,5105691833,30.09.2014,Archives,Property Services - Planned Maintenance,120.76,BALFOUR BEATTY
Revenue,Head of Economy & Tourism,5105691853,30.09.2014,Archives,Prop Svs only - Day to day mtce,"4,230.88",BALFOUR BEATTY
Revenue,Head of Economy & Tourism,5105688859,12.09.2014,Dinosaur Isle Museum (Sandown Geology),Prop Svs only - Day to day mtce,173.78,BALFOUR BEATTY
Revenue,Head of Economy & Tourism,5105688554,12.09.2014,Dinosaur Isle Museum (Sandown Geology),Prop Svs only - Day to day mtce,135.18,BALFOUR BEATTY
Revenue,Head of Economy & Tourism,5105691047,24.09.2014,Dinosaur Isle Museum (Sandown Geology),Property Services - Planned Maintenance,79.74,BALFOUR BEATTY
Revenue,Head of Economy & Tourism,5105691049,24.09.2014,The Heights,Property Services - Planned Maintenance,75.75,BALFOUR BEATTY
Revenue,Head of Economy & Tourism,5105690884,24.09.2014,The Heights,Property Services - Planned Maintenance,139.78,BALFOUR BEATTY
Revenue,Head of Economy & Tourism,5105687499,05.09.2014,The Heights,Prop Svs only - Day to day mtce,188.88,BALFOUR BEATTY
Revenue,Head of Economy & Tourism,5105688422,10.09.2014,Medina Leisure Centre,Prop Svs only - Day to day mtce,127.29,BALFOUR BEATTY
Revenue,Head of Economy & Tourism,5105688838,12.09.2014,Medina Leisure Centre,Property Services - Planned Maintenance,320.22,BALFOUR BEATTY
Revenue,Head of Economy & Tourism,5105687604,10.09.2014,Westridge Squash Courts,Prop Svs only - Day to day mtce,141.91,BALFOUR BEATTY
Revenue,Head of Economy & Tourism,5105688402,10.09.2014,Rew Valley Sports Centre Management,Property Services - Planned Maintenance,99,BALFOUR BEATTY
Revenue,Head of Economy & Tourism,5105691876,30.09.2014,Rew Valley Sports Centre Management,Property Services - Planned Maintenance,99,BALFOUR BEATTY
Revenue,Head of Economy & Tourism,5105687610,10.09.2014,Ryde Harbour,Prop Svs only - Day to day mtce,109.01,BALFOUR BEATTY
Revenue,Head of Economy & Tourism,5105687601,10.09.2014,Medina Theatre,Prop Svs only - Day to day mtce,105.39,BALFOUR BEATTY
Revenue,Director of Childrens Services,5105688845,12.09.2014,Thompson House Tuition Centre (PRU),Minor Works,178.25,BALFOUR BEATTY
Revenue,Director of Childrens Services,5105691825,29.09.2014,Thompson House Tuition Centre (PRU),Minor Works,292.07,BALFOUR BEATTY
Revenue,Director of Childrens Services,5105688845,12.09.2014,Clatterford Pupil Referral Unit (PRU),Minor Works,178.25,BALFOUR BEATTY
Revenue,Director of Childrens Services,5105688408,10.09.2014,Clatterford Pupil Referral Unit (PRU),Minor Works,78.93,BALFOUR BEATTY
Revenue,Director of Childrens Services,5105688438,10.09.2014,Youth Offending Team,Prop Svs only - Day to day mtce,130.02,BALFOUR BEATTY
Revenue,Director of Childrens Services,5105690862,24.09.2014,Youth Offending Team,Furniture and Fittings,74.19,BALFOUR BEATTY
Revenue,Head of HR & Organisational Change,5105688844,12.09.2014,Carisbrooke Contact Centre,Payment to Private Contractors,137.77,BALFOUR BEATTY
Revenue,Director of Childrens Services,5105687223,03.09.2014,Youth- Brading,Prop Svs only - Day to day mtce,88.01,BALFOUR BEATTY
Revenue,Director of Childrens Services,5105688556,12.09.2014,Youth- Cowes,Prop Svs only - Day to day mtce,156.93,BALFOUR BEATTY
Revenue,Director of Childrens Services,5105687247,05.09.2014,Youth- Ventnor,Prop Svs only - Day to day mtce,173.54,BALFOUR BEATTY
Revenue,Director of Childrens Services,5105687257,05.09.2014,Youth- Ventnor,Prop Svs only - Day to day mtce,126.57,BALFOUR BEATTY
Revenue,Director of Childrens Services,5105690866,24.09.2014,Youth- Ventnor,Prop Svs only - Day to day mtce,97.97,BALFOUR BEATTY
Revenue,Director of Childrens Services,5105691789,29.09.2014,Youth- Ventnor,Property Services - Planned Maintenance,172.46,BALFOUR BEATTY
Revenue,Director of Childrens Services,5105687254,05.09.2014,Beaulieu House,Minor Works,198.91,BALFOUR BEATTY
Revenue,Director of Childrens Services,5105687527,05.09.2014,Beaulieu House,Minor Works,165,BALFOUR BEATTY
Revenue,Director of Childrens Services,5105687533,05.09.2014,Beaulieu House,Minor Works,87.74,BALFOUR BEATTY
Revenue,Director of Childrens Services,5105687599,10.09.2014,Beaulieu House,Minor Works,61.94,BALFOUR BEATTY
Revenue,Director of Childrens Services,5105687631,10.09.2014,Beaulieu House,Minor Works,137.37,BALFOUR BEATTY
Revenue,Director of Childrens Services,5105688430,10.09.2014,Beaulieu House,Minor Works,70.3,BALFOUR BEATTY
Revenue,Director of Childrens Services,5105688840,12.09.2014,Beaulieu House,Minor Works,72.85,BALFOUR BEATTY
Revenue,Director of Childrens Services,5105688812,12.09.2014,Beaulieu House,Minor Works,119.25,BALFOUR BEATTY
Revenue,Director of Childrens Services,5105688407,10.09.2014,Beaulieu House,Minor Works,186.2,BALFOUR BEATTY
Revenue,Director of Childrens Services,5105688877,12.09.2014,Beaulieu House,Minor Works,188.85,BALFOUR BEATTY
Revenue,Director of Childrens Services,5105688810,12.09.2014,Beaulieu House,Minor Works,228.4,BALFOUR BEATTY
Revenue,Director of Childrens Services,5105688814,12.09.2014,Beaulieu House,Minor Works,120.69,BALFOUR BEATTY
Revenue,Director of Childrens Services,5105691849,30.09.2014,Beaulieu House,Minor Works,165,BALFOUR BEATTY
Revenue,Director of Childrens Services,5105691799,29.09.2014,Beaulieu House,Minor Works,256.85,BALFOUR BEATTY
Revenue,Director of Childrens Services,5105691858,30.09.2014,Beaulieu House,Minor Works,"3,385.00",BALFOUR BEATTY
Revenue,Director of Childrens Services,5105691001,24.09.2014,Beaulieu House,Minor Works,157.7,BALFOUR BEATTY
Revenue,Director of Childrens Services,5105691005,24.09.2014,Beaulieu House,Minor Works,187.2,BALFOUR BEATTY
Revenue,Director of Childrens Services,5105691139,26.09.2014,Beaulieu House,Minor Works,56.79,BALFOUR BEATTY
Revenue,Director of Childrens Services,5105690816,24.09.2014,Beaulieu House,Minor Works,149.93,BALFOUR BEATTY
Revenue,Director of Childrens Services,5105691040,24.09.2014,Branstone Farm Studies Centre,Property Services - Planned Maintenance,174.49,BALFOUR BEATTY
Revenue,Director of Childrens Services,5105691030,24.09.2014,Children's Services Strategic Management,Minor Works,93.38,BALFOUR BEATTY
Revenue,Director of Childrens Services,5105688875,12.09.2014,Children's Services Strategic Management,Minor Works,181.65,BALFOUR BEATTY
Revenue,Director of Childrens Services,5105688429,10.09.2014,Childrens Centres Maintenance,Minor Works,57.57,BALFOUR BEATTY
Revenue,Director of Childrens Services,5105688447,10.09.2014,Childrens Centres Maintenance,Minor Works,322.08,BALFOUR BEATTY
Revenue,Director of Childrens Services,5105687605,10.09.2014,Childrens Centres Maintenance,Minor Works,121.15,BALFOUR BEATTY
Revenue,Director of Childrens Services,5105690906,24.09.2014,Childrens Centres Maintenance,Minor Works,71.06,BALFOUR BEATTY
Revenue,Director of Childrens Services,5105690842,24.09.2014,Childrens Centres Maintenance,Minor Works,118.11,BALFOUR BEATTY
Revenue,Director of Childrens Services,5105691065,24.09.2014,Childrens Centres Maintenance,Minor Works,49.05,BALFOUR BEATTY
Revenue,Director of Childrens Services,5105691002,24.09.2014,Childrens Centres Maintenance,Minor Works,125.73,BALFOUR BEATTY
Revenue,Director of Childrens Services,5105691873,30.09.2014,Childrens Centres Maintenance,Minor Works,148.53,BALFOUR BEATTY
Revenue,Director of Childrens Services,5105691791,29.09.2014,Childrens Centres Maintenance,Minor Works,87.06,BALFOUR BEATTY
Revenue,Director of Childrens Services,5105691871,30.09.2014,Childrens Centres Maintenance,Minor Works,143.26,BALFOUR BEATTY
Revenue,Director of Childrens Services,5105691875,30.09.2014,Childrens Centres Maintenance,Minor Works,125.15,BALFOUR BEATTY
Capital,Director of Childrens Services,5105688553,12.09.2014,One School Pathfinder,Payment to Contractors - Capital,102.49,BALFOUR BEATTY
Capital,Director of Childrens Services,5105691839,30.09.2014,One School Pathfinder,Payment to Contractors - Capital,137.62,BALFOUR BEATTY
Revenue,Head of Economy & Tourism,5105691004,24.09.2014,Ferry Management,Property Services - Planned Maintenance,131.06,BALFOUR BEATTY
Revenue,Head of Finance & S151 Officer,5105690879,24.09.2014,Public Conveniences - General,Property Services - Planned Maintenance,170.49,BALFOUR BEATTY
Revenue,Head of Finance & S151 Officer,5105691046,24.09.2014,Public Conveniences - General,Property Services - Planned Maintenance,55.05,BALFOUR BEATTY
Revenue,Head of Finance & S151 Officer,5105691014,24.09.2014,Public Conveniences - General,Property Services - Planned Maintenance,91.11,BALFOUR BEATTY
Revenue,Head of Finance & S151 Officer,5105691790,29.09.2014,Public Conveniences - General,Property Services - Planned Maintenance,120.21,BALFOUR BEATTY
Revenue,Head of Finance & S151 Officer,5105691792,29.09.2014,Public Conveniences - General,Property Services - Planned Maintenance,268.97,BALFOUR BEATTY
Revenue,Head of Finance & S151 Officer,5105691841,30.09.2014,Public Conveniences - General,Property Services - Planned Maintenance,131.25,BALFOUR BEATTY
Revenue,Head of Finance & S151 Officer,5105687066,03.09.2014,Public Conveniences - General,Minor Works,115.91,BALFOUR BEATTY
Revenue,Head of Finance & S151 Officer,5105691867,30.09.2014,Public Conveniences - General,Property Services - Planned Maintenance,175.23,BALFOUR BEATTY
Revenue,Head of Finance & S151 Officer,5105688815,12.09.2014,Public Conveniences - General,Property Services - Planned Maintenance,493.74,BALFOUR BEATTY
Revenue,Head of Finance & S151 Officer,5105688809,12.09.2014,Public Conveniences - General,Property Services - Planned Maintenance,692.76,BALFOUR BEATTY
Revenue,Head of Finance & S151 Officer,5105688817,12.09.2014,Public Conveniences - General,Property Services - Planned Maintenance,409.42,BALFOUR BEATTY
Revenue,Head of Finance & S151 Officer,5105688861,12.09.2014,Public Conveniences - General,Property Services - Planned Maintenance,507.68,BALFOUR BEATTY
Revenue,Head of Finance & S151 Officer,5105688874,12.09.2014,Public Conveniences - General,Property Services - Planned Maintenance,"1,050.00",BALFOUR BEATTY
Revenue,Head of Finance & S151 Officer,5105688404,10.09.2014,Public Conveniences - General,Property Services - Planned Maintenance,78.34,BALFOUR BEATTY
Revenue,Head of Finance & S151 Officer,5105690894,24.09.2014,Public Conveniences - General,Property Services - Planned Maintenance,70.23,BALFOUR BEATTY
Revenue,Head of Finance & S151 Officer,5105690902,24.09.2014,Public Conveniences - General,Property Services - Planned Maintenance,129.78,BALFOUR BEATTY
Revenue,Head of Finance & S151 Officer,5105690871,24.09.2014,Public Conveniences - General,Property Services - Planned Maintenance,171.95,BALFOUR BEATTY
Revenue,Head of Finance & S151 Officer,5105690857,24.09.2014,Public Conveniences - General,Property Services - Planned Maintenance,191.97,BALFOUR BEATTY
Revenue,Head of Finance & S151 Officer,5105690888,24.09.2014,Public Conveniences - General,Property Services - Planned Maintenance,109.58,BALFOUR BEATTY
Revenue,Head of Finance & S151 Officer,5105690812,24.09.2014,Public Conveniences - General,Property Services - Planned Maintenance,105,BALFOUR BEATTY
Revenue,Head of Finance & S151 Officer,5105690855,24.09.2014,Public Conveniences - General,Property Services - Planned Maintenance,105,BALFOUR BEATTY
Revenue,Head of Finance & S151 Officer,5105690897,24.09.2014,Public Conveniences - General,Property Services - Planned Maintenance,112.16,BALFOUR BEATTY
Revenue,Head of Finance & S151 Officer,5105691034,24.09.2014,Public Conveniences - General,Property Services - Planned Maintenance,78.58,BALFOUR BEATTY
Revenue,Head of Finance & S151 Officer,5105691042,24.09.2014,Public Conveniences - General,Property Services - Planned Maintenance,69,BALFOUR BEATTY
Revenue,Head of Finance & S151 Officer,5105691043,24.09.2014,Public Conveniences - General,Property Services - Planned Maintenance,99.47,BALFOUR BEATTY
Revenue,Head of Finance & S151 Officer,5105691044,24.09.2014,Public Conveniences - General,Property Services - Planned Maintenance,141.91,BALFOUR BEATTY
Revenue,Head of Finance & S151 Officer,5105690877,24.09.2014,Public Conveniences - General,Prop Svs only - Day to day mtce,161.18,BALFOUR BEATTY
Revenue,Head of Finance & S151 Officer,5105691829,30.09.2014,Public Conveniences - General,Prop Svs only - Day to day mtce,148.98,BALFOUR BEATTY
Revenue,Head of Finance & S151 Officer,5105690868,24.09.2014,Public Conveniences - General,Prop Svs only - Day to day mtce,69.61,BALFOUR BEATTY
Revenue,Head of Finance & S151 Officer,5105691009,24.09.2014,Public Conveniences - General,Prop Svs only - Day to day mtce,196.91,BALFOUR BEATTY
Revenue,Head of Finance & S151 Officer,5105691076,24.09.2014,Public Conveniences - General,Prop Svs only - Day to day mtce,87.24,BALFOUR BEATTY
Revenue,Head of Finance & S151 Officer,5105691069,24.09.2014,Public Conveniences - General,Prop Svs only - Day to day mtce,107.73,BALFOUR BEATTY
Revenue,Head of Finance & S151 Officer,5105690899,24.09.2014,Public Conveniences - General,Prop Svs only - Day to day mtce,101.17,BALFOUR BEATTY
Revenue,Head of Finance & S151 Officer,5105690807,24.09.2014,Public Conveniences - General,Prop Svs only - Day to day mtce,156.25,BALFOUR BEATTY
Revenue,Head of Finance & S151 Officer,5105688855,12.09.2014,Public Conveniences - General,Prop Svs only - Day to day mtce,103.62,BALFOUR BEATTY
Revenue,Head of Finance & S151 Officer,5105688867,12.09.2014,Public Conveniences - General,Prop Svs only - Day to day mtce,113.65,BALFOUR BEATTY
Revenue,Head of Finance & S151 Officer,5105688846,12.09.2014,Public Conveniences - General,Prop Svs only - Day to day mtce,178.69,BALFOUR BEATTY
Revenue,Head of Finance & S151 Officer,5105688858,12.09.2014,Public Conveniences - General,Prop Svs only - Day to day mtce,108.28,BALFOUR BEATTY
Revenue,Head of Finance & S151 Officer,5105688870,12.09.2014,Public Conveniences - General,Prop Svs only - Day to day mtce,83.79,BALFOUR BEATTY
Revenue,Head of Finance & S151 Officer,5105688824,12.09.2014,Public Conveniences - General,Prop Svs only - Day to day mtce,126.68,BALFOUR BEATTY
Revenue,Head of Finance & S151 Officer,5105688780,12.09.2014,Public Conveniences - General,Prop Svs only - Day to day mtce,144.18,BALFOUR BEATTY
Revenue,Head of Finance & S151 Officer,5105688419,10.09.2014,Public Conveniences - General,Prop Svs only - Day to day mtce,78.93,BALFOUR BEATTY
Revenue,Head of Finance & S151 Officer,5105688442,10.09.2014,Public Conveniences - General,Prop Svs only - Day to day mtce,112.39,BALFOUR BEATTY
Revenue,Head of Finance & S151 Officer,5105688418,10.09.2014,Public Conveniences - General,Prop Svs only - Day to day mtce,179.2,BALFOUR BEATTY
Revenue,Head of Finance & S151 Officer,5105688853,12.09.2014,Public Conveniences - General,Prop Svs only - Day to day mtce,103.45,BALFOUR BEATTY
Revenue,Head of Finance & S151 Officer,5105688871,12.09.2014,Public Conveniences - General,Prop Svs only - Day to day mtce,149.61,BALFOUR BEATTY
Revenue,Head of Finance & S151 Officer,5105688423,10.09.2014,Public Conveniences - General,Prop Svs only - Day to day mtce,183.19,BALFOUR BEATTY
Revenue,Head of Finance & S151 Officer,5105688416,10.09.2014,Public Conveniences - General,Prop Svs only - Day to day mtce,95.73,BALFOUR BEATTY
Revenue,Head of Finance & S151 Officer,5105687600,10.09.2014,Public Conveniences - General,Prop Svs only - Day to day mtce,105,BALFOUR BEATTY
Revenue,Head of Finance & S151 Officer,5105687535,05.09.2014,Public Conveniences - General,Prop Svs only - Day to day mtce,123.81,BALFOUR BEATTY
Revenue,Head of Finance & S151 Officer,5105687524,05.09.2014,Public Conveniences - General,Prop Svs only - Day to day mtce,131.25,BALFOUR BEATTY
Revenue,Head of Finance & S151 Officer,5105687602,10.09.2014,Public Conveniences - General,Prop Svs only - Day to day mtce,128.04,BALFOUR BEATTY
Revenue,Head of Finance & S151 Officer,5105687611,10.09.2014,Public Conveniences - General,Prop Svs only - Day to day mtce,117.05,BALFOUR BEATTY
Revenue,Head of Finance & S151 Officer,5105687633,10.09.2014,Public Conveniences - General,Prop Svs only - Day to day mtce,88.47,BALFOUR BEATTY
Revenue,Head of Finance & S151 Officer,5105687520,05.09.2014,Public Conveniences - General,Prop Svs only - Day to day mtce,111.41,BALFOUR BEATTY
Revenue,Head of Finance & S151 Officer,5105687598,10.09.2014,Public Conveniences - General,Prop Svs only - Day to day mtce,197.5,BALFOUR BEATTY
Revenue,Head of Finance & S151 Officer,5105687556,05.09.2014,Public Conveniences - General,Prop Svs only - Day to day mtce,96.43,BALFOUR BEATTY
Revenue,Head of Finance & S151 Officer,5105687568,05.09.2014,Public Conveniences - General,Prop Svs only - Day to day mtce,107.05,BALFOUR BEATTY
Revenue,Head of Finance & S151 Officer,5105687637,10.09.2014,Public Conveniences - General,Prop Svs only - Day to day mtce,109.44,BALFOUR BEATTY
Revenue,Head of Finance & S151 Officer,5105687635,10.09.2014,Public Conveniences - General,Prop Svs only - Day to day mtce,122.07,BALFOUR BEATTY
Revenue,Head of Finance & S151 Officer,5105687608,10.09.2014,Public Conveniences - General,Prop Svs only - Day to day mtce,113.65,BALFOUR BEATTY
Revenue,Head of Economy & Tourism,5105687638,10.09.2014,Victoria Recreation Ground,Prop Svs only - Day to day mtce,138.78,BALFOUR BEATTY
Revenue,Head of Economy & Tourism,5105691870,30.09.2014,Victoria Recreation Ground,Prop Svs only - Day to day mtce,"1,972.07",BALFOUR BEATTY
Revenue,Head of Economy & Tourism,5105690845,24.09.2014,Open space lettings,Prop Svs only - Day to day mtce,124.72,BALFOUR BEATTY
Revenue,Head of Economy & Tourism,5105691006,24.09.2014,Open space lettings,Prop Svs only - Day to day mtce,193.95,BALFOUR BEATTY
Revenue,Head of Economy & Tourism,5105690890,24.09.2014,Open space lettings,Property Services - Planned Maintenance,56.85,BALFOUR BEATTY
Revenue,Head of Economy & Tourism,5105688857,12.09.2014,Open space lettings,Prop Svs only - Day to day mtce,123.85,BALFOUR BEATTY
Revenue,Head of Economy & Tourism,5105690892,24.09.2014,Fort Victoria,Property Services - Planned Maintenance,183.24,BALFOUR BEATTY
Revenue,Head of HR & Organisational Change,5105688782,12.09.2014,"Salisbury Gardens, Ventnor",Prop Svs only - Day to day mtce,98.35,BALFOUR BEATTY
Revenue,Head of Economy & Tourism,5105691007,24.09.2014,Newport Harbour Account,Prop Svs only - Day to day mtce,94.26,BALFOUR BEATTY
Revenue,Head of Economy & Tourism,5105688444,10.09.2014,Newport Harbour Account,Prop Svs only - Day to day mtce,413.26,BALFOUR BEATTY
Revenue,Head of Economy & Tourism,5105687522,23.09.2014,Newport Harbour Account,Prop Svs only - Day to day mtce,430.75,BALFOUR BEATTY
Revenue,Chief Fire Officer,5105688355,10.09.2014,Deputy Chief Fire Office,Prop Svs only - Day to day mtce,69.34,BALFOUR BEATTY
Revenue,Chief Fire Officer,5105688436,10.09.2014,Deputy Chief Fire Office,Prop Svs only - Day to day mtce,89.85,BALFOUR BEATTY
Revenue,Chief Fire Officer,5105688412,10.09.2014,Deputy Chief Fire Office,Prop Svs only - Day to day mtce,273.2,BALFOUR BEATTY
Revenue,Chief Fire Officer,5105688428,10.09.2014,Deputy Chief Fire Office,Prop Svs only - Day to day mtce,73.7,BALFOUR BEATTY
Revenue,Chief Fire Officer,5105688786,12.09.2014,Deputy Chief Fire Office,Prop Svs only - Day to day mtce,69.99,BALFOUR BEATTY
Revenue,Chief Fire Officer,5105688432,10.09.2014,Deputy Chief Fire Office,Prop Svs only - Day to day mtce,83.37,BALFOUR BEATTY
Revenue,Chief Fire Officer,5105691051,24.09.2014,Deputy Chief Fire Office,Prop Svs only - Day to day mtce,198.26,BALFOUR BEATTY
Revenue,Chief Fire Officer,5105690833,24.09.2014,Deputy Chief Fire Office,Prop Svs only - Day to day mtce,73.01,BALFOUR BEATTY
Revenue,Chief Fire Officer,5105691052,24.09.2014,Deputy Chief Fire Office,Prop Svs only - Day to day mtce,77.28,BALFOUR BEATTY
Revenue,Chief Fire Officer,5105690840,24.09.2014,Deputy Chief Fire Office,Prop Svs only - Day to day mtce,274.84,BALFOUR BEATTY
Revenue,Chief Fire Officer,5105691805,29.09.2014,Deputy Chief Fire Office,Prop Svs only - Day to day mtce,58.49,BALFOUR BEATTY
Revenue,Chief Fire Officer,5105691795,29.09.2014,Deputy Chief Fire Office,Prop Svs only - Day to day mtce,235.1,BALFOUR BEATTY
Revenue,Chief Fire Officer,5105688811,12.09.2014,Deputy Chief Fire Office,Prop Svs only - Day to day mtce,168.09,BALFOUR BEATTY
Revenue,Chief Fire Officer,5105691073,24.09.2014,Deputy Chief Fire Office,Prop Svs only - Day to day mtce,52.45,BALFOUR BEATTY
Revenue,Chief Fire Officer,5105691055,24.09.2014,Deputy Chief Fire Office,Property Services - Planned Maintenance,153.46,BALFOUR BEATTY
Revenue,Chief Fire Officer,5105691039,24.09.2014,Deputy Chief Fire Office,Property Services - Planned Maintenance,95.58,BALFOUR BEATTY
Revenue,Chief Fire Officer,5105691017,24.09.2014,Deputy Chief Fire Office,Property Services - Planned Maintenance,79.98,BALFOUR BEATTY
Revenue,Head of Economy & Tourism,5105691045,24.09.2014,Crematorium,Property Services - Planned Maintenance,91.95,BALFOUR BEATTY
Revenue,Head of Economy & Tourism,5105688839,12.09.2014,Crematorium,Prop Svs only - Day to day mtce,78.57,BALFOUR BEATTY
Revenue,Head of Economy & Tourism,5105687609,10.09.2014,Crematorium,Prop Svs only - Day to day mtce,196.8,BALFOUR BEATTY
Revenue,Director of Childrens Services,5105691523,26.09.2014,Family Support Work,Payment to Private Contractors,"41,779.25",BARNARDOS
Revenue,Head of ASC & Community Wellbeing,5105688087,10.09.2014,Elderly Frail Personal Budgets,Payments for Self Directed Support,860,REDACTED PERSONAL DATA
Revenue,Head of ASC & Community Wellbeing,5105688307,10.09.2014,Mental Health Personal Budgets,Payments for Self Directed Support,320,REDACTED PERSONAL DATA
Revenue,Head of ASC & Community Wellbeing,5105688308,10.09.2014,Mental Health Personal Budgets,Payments for Self Directed Support,680,REDACTED PERSONAL DATA
Revenue,Head of HR & Organisational Change,5105689674,17.09.2014,Corporate Stores,Sundry Office Expenses,730.71,BARTLETTS SERVICE STATION
Revenue,Head of HR & Organisational Change,5105689673,24.09.2014,Corporate Stores,Sundry Office Expenses,730.71,BARTLETTS SERVICE STATION
Revenue,Chief Fire Officer,5105691666,29.09.2014,Fire Technical Support,Vehicle Maintenance Costs,12,BARTLETTS SERVICE STATION
Revenue,Chief Fire Officer,5105691664,29.09.2014,Fire Technical Support,Vehicle Maintenance Costs,95,BARTLETTS SERVICE STATION
Revenue,Chief Fire Officer,5105691158,26.09.2014,Diversity & Workforce,Operational Equipment,150,BARTLETTS SERVICE STATION
Revenue,Head of Planning & Regulatory Services,5105689235,17.09.2014,Trading Standards,Professional Services,65,BARTLETTS SERVICE STATION
Revenue,Head of Exchequer Services,5105690735,24.09.2014,Staff Benefits,Payment to Private Contractors,50,BARTON PRIMARY & EARLY YEARS
Revenue,Head of Exchequer Services,5105690735,24.09.2014,Staff Benefits,Payment to Private Contractors,11.67,BARTON PRIMARY & EARLY YEARS
Revenue,Head of Exchequer Services,5105690735,24.09.2014,Staff Benefits,Payment to Private Contractors,12,BARTON PRIMARY & EARLY YEARS
Revenue,Head of ASC & Community Wellbeing,5105687902,10.09.2014,Elderly Mentally Ill Nursing Mainland,Charges from Independent Providers,"2,269.40",BEAUMONT LODGE LTD
Revenue,Head of Economy & Tourism,5105690496,24.09.2014,The Heights,Payment to Private Contractors,225,BEL SOLUTIONS LTD
Revenue,Head of Economy & Tourism,5105690496,24.09.2014,Medina Leisure Centre,Payment to Private Contractors,225,BEL SOLUTIONS LTD
Revenue,Head of Economy & Tourism,5105690496,24.09.2014,Westridge Squash Courts,Payment to Private Contractors,225,BEL SOLUTIONS LTD
Revenue,Head of ASC & Community Wellbeing,5105688062,10.09.2014,Transitions Team Personal Budgets,Payments for Self Directed Support,761.52,REDACTED PERSONAL DATA
Revenue,Head of ASC & Community Wellbeing,5105689700,17.09.2014,Community Laundry Service,Clothing & Laundry,13.74,BERENDSEN
Revenue,Head of ASC & Community Wellbeing,5105689695,17.09.2014,Community Laundry Service,Clothing & Laundry,13.74,BERENDSEN
Revenue,Head of ASC & Community Wellbeing,5105689698,17.09.2014,Community Laundry Service,Clothing & Laundry,13.74,BERENDSEN
Revenue,Head of ASC & Community Wellbeing,5105689227,17.09.2014,Community Laundry Service,Clothing & Laundry,13.74,BERENDSEN
Revenue,Head of ASC & Community Wellbeing,5105689229,17.09.2014,Community Laundry Service,Clothing & Laundry,13.74,BERENDSEN
Revenue,Head of Planning & Regulatory Services,5105689214,19.09.2014,Environmental Health - Geographical Team,Clothing & Laundry,25.2,BERENDSEN
Revenue,Head of ASC & Community Wellbeing,5105688054,10.09.2014,Physical Disability Personal Budgets,Payments for Self Directed Support,406.56,REDACTED PERSONAL DATA
Revenue,Head of ASC & Community Wellbeing,5105689148,17.09.2014,B&B Properties,Accommodation Costs - Bed & Breakfast,"2,486.00",BERTRAM LODGE
Revenue,Head of ASC & Community Wellbeing,5105690685,24.09.2014,Downside Community & Learning Centre,Consumable Cleaning Materials,6.28,BETA PAK LTD
Revenue,Head of ASC & Community Wellbeing,5105690631,26.09.2014,31 Carter Avenue,Operational Equipment,121.3,BETA PAK LTD
Revenue,Head of ASC & Community Wellbeing,5105690549,26.09.2014,31 Carter Avenue,Operational Equipment,9.39,BETA PAK LTD
Revenue,Head of ASC & Community Wellbeing,5105690479,19.09.2014,31 Carter Avenue,Operational Equipment,106.74,BETA PAK LTD
Revenue,Head of ASC & Community Wellbeing,5105690480,19.09.2014,31 Carter Avenue,Operational Equipment,-106.74,BETA PAK LTD
Revenue,Head of ASC & Community Wellbeing,5105691372,26.09.2014,31 Carter Avenue,Operational Equipment,53.06,BETA PAK LTD
Revenue,Head of ASC & Community Wellbeing,5105685431,03.09.2014,31 Carter Avenue,Operational Equipment,10.99,BETA PAK LTD
Revenue,Head of ASC & Community Wellbeing,5105687124,03.09.2014,31 Carter Avenue,Operational Equipment,45.58,BETA PAK LTD
Revenue,Head of ASC & Community Wellbeing,5105687125,03.09.2014,31 Carter Avenue,Operational Equipment,59,BETA PAK LTD
Revenue,Head of ASC & Community Wellbeing,5105687126,03.09.2014,31 Carter Avenue,Operational Equipment,12.09,BETA PAK LTD
Revenue,Head of ASC & Community Wellbeing,5105684514,03.09.2014,31 Carter Avenue,Operational Equipment,5.91,BETA PAK LTD
Revenue,Head of ASC & Community Wellbeing,5105687128,03.09.2014,Overbrook,Operational Equipment,33.69,BETA PAK LTD
Revenue,Head of ASC & Community Wellbeing,5105687130,03.09.2014,Overbrook,Operational Equipment,2.9,BETA PAK LTD
Revenue,Head of ASC & Community Wellbeing,5105690547,24.09.2014,Seagulls,Operational Equipment,11.49,BETA PAK LTD
Revenue,Head of ASC & Community Wellbeing,5105691438,26.09.2014,Seagulls,Operational Equipment,78.76,BETA PAK LTD
Revenue,Head of ASC & Community Wellbeing,5105690478,19.09.2014,Seagulls,Operational Equipment,30.98,BETA PAK LTD
Revenue,Head of ASC & Community Wellbeing,5105686282,03.09.2014,Seagulls,Operational Equipment,142.6,BETA PAK LTD
Revenue,Head of ASC & Community Wellbeing,5105686351,03.09.2014,Seagulls,Operational Equipment,34.41,BETA PAK LTD
Revenue,Head of ASC & Community Wellbeing,5105687557,05.09.2014,Seagulls,Operational Equipment,19.24,BETA PAK LTD
Revenue,Head of ASC & Community Wellbeing,5105688519,10.09.2014,Plean Dene,Operational Equipment,135.65,BETA PAK LTD
Revenue,Head of ASC & Community Wellbeing,5105687260,05.09.2014,Plean Dene,Operational Equipment,40.34,BETA PAK LTD
Revenue,Head of ASC & Community Wellbeing,5105687060,03.09.2014,Plean Dene,Operational Equipment,20.32,BETA PAK LTD
Revenue,Head of ASC & Community Wellbeing,5105687060,03.09.2014,Plean Dene,Operational Equipment,45.96,BETA PAK LTD
Revenue,Head of ASC & Community Wellbeing,5105687127,03.09.2014,Plean Dene,Operational Equipment,11,BETA PAK LTD
Revenue,Head of ASC & Community Wellbeing,5105686754,03.09.2014,Plean Dene,Operational Equipment,7.59,BETA PAK LTD
Revenue,Head of ASC & Community Wellbeing,5105690895,24.09.2014,Plean Dene,Operational Equipment,7.59,BETA PAK LTD
Revenue,Head of ASC & Community Wellbeing,5105690629,24.09.2014,Plean Dene,Operational Equipment,19.77,BETA PAK LTD
Revenue,Head of ASC & Community Wellbeing,5105690632,24.09.2014,Plean Dene,Operational Equipment,23.14,BETA PAK LTD
Revenue,Head of ASC & Community Wellbeing,5105690802,24.09.2014,Plean Dene,Operational Equipment,23.14,BETA PAK LTD
Revenue,Head of ASC & Community Wellbeing,5105690825,24.09.2014,Plean Dene,Operational Equipment,-23.14,BETA PAK LTD
Revenue,Head of ASC & Community Wellbeing,5105691723,29.09.2014,Plean Dene,Operational Equipment,143.04,BETA PAK LTD
Revenue,Head of ASC & Community Wellbeing,5105691776,29.09.2014,Plean Dene,Operational Equipment,54.31,BETA PAK LTD
Revenue,Head of ASC & Community Wellbeing,5105691863,30.09.2014,Plean Dene,Operational Equipment,-71.52,BETA PAK LTD
Revenue,Head of ASC & Community Wellbeing,5105691776,29.09.2014,Plean Dene,Operational Equipment,45.96,BETA PAK LTD
Revenue,Head of ASC & Community Wellbeing,5105690846,24.09.2014,Saxonbury,Operational Equipment,188.16,BETA PAK LTD
Revenue,Head of ASC & Community Wellbeing,5105690683,24.09.2014,Saxonbury,Operational Equipment,-335.7,BETA PAK LTD
Revenue,Head of ASC & Community Wellbeing,5105686865,12.09.2014,Saxonbury,Operational Equipment,14.4,BETA PAK LTD
Revenue,Head of ASC & Community Wellbeing,5105687200,12.09.2014,Saxonbury,Operational Equipment,20.16,BETA PAK LTD
Revenue,Head of ASC & Community Wellbeing,5105687261,05.09.2014,Saxonbury,Operational Equipment,16.5,BETA PAK LTD
Revenue,Head of ASC & Community Wellbeing,5105688866,24.09.2014,Saxonbury,Operational Equipment,335.7,BETA PAK LTD
Revenue,Head of ASC & Community Wellbeing,5105688399,10.09.2014,Highmead,Operational Equipment,67.32,BETA PAK LTD
Revenue,Head of ASC & Community Wellbeing,5105687559,12.09.2014,Highmead,Operational Equipment,34.85,BETA PAK LTD
Revenue,Head of ASC & Community Wellbeing,5105687073,03.09.2014,Highmead,Operational Equipment,245.96,BETA PAK LTD
Revenue,Head of ASC & Community Wellbeing,5105687074,03.09.2014,Highmead,Operational Equipment,23.35,BETA PAK LTD
Revenue,Head of ASC & Community Wellbeing,5105687158,10.09.2014,Highmead,Operational Equipment,42.25,BETA PAK LTD
Revenue,Head of ASC & Community Wellbeing,5105685826,03.09.2014,Highmead,Operational Equipment,144.73,BETA PAK LTD
Revenue,Head of ASC & Community Wellbeing,5105690839,24.09.2014,Highmead,Operational Equipment,11.19,BETA PAK LTD
Revenue,Head of ASC & Community Wellbeing,5105690548,24.09.2014,Highmead,Operational Equipment,166.84,BETA PAK LTD
Revenue,Head of ASC & Community Wellbeing,5105690633,24.09.2014,Highmead,Operational Equipment,33,BETA PAK LTD
Revenue,Head of ASC & Community Wellbeing,5105690630,26.09.2014,Highmead,Operational Equipment,66.79,BETA PAK LTD
Revenue,Head of ASC & Community Wellbeing,5105691423,26.09.2014,Highmead,Operational Equipment,11.47,BETA PAK LTD
Revenue,Head of ASC & Community Wellbeing,5105691738,29.09.2014,Highmead,Operational Equipment,271.16,BETA PAK LTD
Revenue,Head of ASC & Community Wellbeing,5105691715,29.09.2014,The Laurels,Operational Equipment,45.87,BETA PAK LTD
Revenue,Head of ASC & Community Wellbeing,5105691680,29.09.2014,The Laurels,Operational Equipment,192.08,BETA PAK LTD
Revenue,Head of ASC & Community Wellbeing,5105691639,26.09.2014,The Laurels,Operational Equipment,8.84,BETA PAK LTD
Revenue,Head of ASC & Community Wellbeing,5105691436,26.09.2014,The Laurels,Operational Equipment,24.54,BETA PAK LTD
Revenue,Head of ASC & Community Wellbeing,5105691437,26.09.2014,The Laurels,Operational Equipment,201.5,BETA PAK LTD
Revenue,Head of ASC & Community Wellbeing,5105691437,26.09.2014,The Laurels,Operational Equipment,33.22,BETA PAK LTD
Revenue,Head of ASC & Community Wellbeing,5105690546,24.09.2014,The Laurels,Operational Equipment,13.99,BETA PAK LTD
Revenue,Head of ASC & Community Wellbeing,5105687071,03.09.2014,The Laurels,Operational Equipment,23.35,BETA PAK LTD
Revenue,Head of ASC & Community Wellbeing,5105687150,10.09.2014,The Laurels,Operational Equipment,84.5,BETA PAK LTD
Revenue,Head of ASC & Community Wellbeing,5105688398,10.09.2014,The Laurels,Operational Equipment,265.07,BETA PAK LTD
Revenue,Head of ASC & Community Wellbeing,5105688863,17.09.2014,The Laurels,Operational Equipment,46.04,BETA PAK LTD
Revenue,Head of ASC & Community Wellbeing,5105691855,30.09.2014,Adelaide Resource Centre,Consumable Cleaning Materials,30.54,BETA PAK LTD
Revenue,Head of ASC & Community Wellbeing,5105690337,19.09.2014,Adelaide Resource Centre,Consumable Cleaning Materials,478.23,BETA PAK LTD
Revenue,Head of ASC & Community Wellbeing,5105690343,19.09.2014,Adelaide Resource Centre,Consumable Cleaning Materials,90.94,BETA PAK LTD
Revenue,Head of ASC & Community Wellbeing,5105690341,19.09.2014,Adelaide Resource Centre,Consumable Cleaning Materials,239.91,BETA PAK LTD
Revenue,Head of ASC & Community Wellbeing,5105690338,19.09.2014,Adelaide Resource Centre,Consumable Cleaning Materials,12.04,BETA PAK LTD
Revenue,Head of ASC & Community Wellbeing,5105690354,19.09.2014,Adelaide Resource Centre,Consumable Cleaning Materials,286.99,BETA PAK LTD
Revenue,Head of ASC & Community Wellbeing,5105690355,19.09.2014,Adelaide Resource Centre,Consumable Cleaning Materials,425,BETA PAK LTD
Revenue,Head of ASC & Community Wellbeing,5105690358,19.09.2014,Adelaide Resource Centre,Consumable Cleaning Materials,17.98,BETA PAK LTD
Revenue,Head of ASC & Community Wellbeing,5105690351,19.09.2014,Adelaide Resource Centre,Consumable Cleaning Materials,485.2,BETA PAK LTD
Revenue,Head of ASC & Community Wellbeing,5105690350,19.09.2014,Adelaide Resource Centre,Consumable Cleaning Materials,14.43,BETA PAK LTD
Revenue,Head of ASC & Community Wellbeing,5105690349,19.09.2014,Adelaide Resource Centre,Consumable Cleaning Materials,402.6,BETA PAK LTD
Revenue,Head of ASC & Community Wellbeing,5105690360,19.09.2014,Adelaide Resource Centre,Catering Equipment,88.84,BETA PAK LTD
Revenue,Head of ASC & Community Wellbeing,5105685679,03.09.2014,Adelaide Resource Centre,Operational Equipment,35,BETA PAK LTD
Revenue,Head of ASC & Community Wellbeing,5105690342,19.09.2014,Adelaide Resource Centre,Operational Equipment,62.5,BETA PAK LTD
Revenue,Head of ASC & Community Wellbeing,5105690340,19.09.2014,Adelaide Resource Centre,Operational Equipment,15,BETA PAK LTD
Revenue,Head of ASC & Community Wellbeing,5105685741,03.09.2014,Gouldings Resource Centre,Consumable Cleaning Materials,47.97,BETA PAK LTD
Revenue,Head of ASC & Community Wellbeing,5105690231,19.09.2014,Gouldings Resource Centre,Consumable Cleaning Materials,625.69,BETA PAK LTD
Revenue,Head of ASC & Community Wellbeing,5105691478,26.09.2014,Gouldings Resource Centre,Catering Purchases,77.96,BETA PAK LTD
Revenue,Head of ASC & Community Wellbeing,5105690558,24.09.2014,Westminster House,Consumable Cleaning Materials,197.96,BETA PAK LTD
Revenue,Head of ASC & Community Wellbeing,5105690560,24.09.2014,Westminster House,Consumable Cleaning Materials,-126.88,BETA PAK LTD
Revenue,Head of ASC & Community Wellbeing,5105687159,03.09.2014,Westminster House,Consumable Cleaning Materials,26,BETA PAK LTD
Revenue,Director of Childrens Services,5105690515,19.09.2014,Short Breaks,Charges from Independent Providers,215,BETA PAK LTD
Revenue,Chief Fire Officer,5105690325,24.09.2014,Deputy Chief Fire Office,Property Services - Planned Maintenance,32.5,BETA PAK LTD
Revenue,Head of ASC & Community Wellbeing,5105689638,17.09.2014,Elderly Frail Homecare,Charges from Independent Providers,74.2,BETTER AT HOME IOW LTD
Revenue,Head of ASC & Community Wellbeing,5105689632,17.09.2014,Elderly Frail Homecare,Charges from Independent Providers,727.16,BETTER AT HOME IOW LTD
Revenue,Head of ASC & Community Wellbeing,5105689115,17.09.2014,Elderly Frail Homecare,Charges from Independent Providers,259.7,BETTER AT HOME IOW LTD
Revenue,Head of ASC & Community Wellbeing,5105689111,17.09.2014,Elderly Frail Homecare,Charges from Independent Providers,55.65,BETTER AT HOME IOW LTD
Revenue,Head of ASC & Community Wellbeing,5105689615,17.09.2014,Elderly Frail Homecare,Charges from Independent Providers,908.95,BETTER AT HOME IOW LTD
Revenue,Head of ASC & Community Wellbeing,5105689616,17.09.2014,Elderly Frail Homecare,Charges from Independent Providers,511.98,BETTER AT HOME IOW LTD
Revenue,Head of ASC & Community Wellbeing,5105689090,17.09.2014,Elderly Frail Homecare,Charges from Independent Providers,59.36,BETTER AT HOME IOW LTD
Revenue,Head of ASC & Community Wellbeing,5105689612,17.09.2014,Elderly Frail Homecare,Charges from Independent Providers,908.95,BETTER AT HOME IOW LTD
Revenue,Head of ASC & Community Wellbeing,5105689124,17.09.2014,Elderly Frail Homecare,Charges from Independent Providers,894.11,BETTER AT HOME IOW LTD
Revenue,Head of ASC & Community Wellbeing,5105689105,17.09.2014,Elderly Frail Homecare,Charges from Independent Providers,166.95,BETTER AT HOME IOW LTD
Revenue,Head of ASC & Community Wellbeing,5105689109,17.09.2014,Elderly Frail Homecare,Charges from Independent Providers,563.92,BETTER AT HOME IOW LTD
Revenue,Head of ASC & Community Wellbeing,5105689113,17.09.2014,Elderly Frail Homecare,Charges from Independent Providers,"1,550.78",BETTER AT HOME IOW LTD
Revenue,Head of ASC & Community Wellbeing,5105689096,17.09.2014,Elderly Frail Homecare,Charges from Independent Providers,"1,298.50",BETTER AT HOME IOW LTD
Revenue,Head of ASC & Community Wellbeing,5105689103,17.09.2014,Elderly Frail Homecare,Charges from Independent Providers,74.2,BETTER AT HOME IOW LTD
Revenue,Head of ASC & Community Wellbeing,5105689110,17.09.2014,Elderly Frail Homecare,Charges from Independent Providers,519.4,BETTER AT HOME IOW LTD
Revenue,Head of ASC & Community Wellbeing,5105689104,17.09.2014,Elderly Frail Homecare,Charges from Independent Providers,593.6,BETTER AT HOME IOW LTD
Revenue,Head of ASC & Community Wellbeing,5105689617,17.09.2014,Elderly Frail Homecare,Charges from Independent Providers,"1,168.65",BETTER AT HOME IOW LTD
Revenue,Head of ASC & Community Wellbeing,5105689091,17.09.2014,Elderly Frail Homecare,Charges from Independent Providers,"1,402.38",BETTER AT HOME IOW LTD
Revenue,Head of ASC & Community Wellbeing,5105689100,17.09.2014,Elderly Frail Homecare,Charges from Independent Providers,779.1,BETTER AT HOME IOW LTD
Revenue,Head of ASC & Community Wellbeing,5105689092,17.09.2014,Elderly Frail Homecare,Charges from Independent Providers,894.43,BETTER AT HOME IOW LTD
Revenue,Head of ASC & Community Wellbeing,5105689093,17.09.2014,Elderly Frail Homecare,Charges from Independent Providers,"1,242.85",BETTER AT HOME IOW LTD
Revenue,Head of ASC & Community Wellbeing,5105689094,17.09.2014,Elderly Frail Homecare,Charges from Independent Providers,"1,305.92",BETTER AT HOME IOW LTD
Revenue,Head of ASC & Community Wellbeing,5105689102,17.09.2014,Elderly Frail Homecare,Charges from Independent Providers,259.7,BETTER AT HOME IOW LTD
Revenue,Head of ASC & Community Wellbeing,5105689101,17.09.2014,Elderly Frail Homecare,Charges from Independent Providers,519.4,BETTER AT HOME IOW LTD
Revenue,Head of ASC & Community Wellbeing,5105689098,17.09.2014,Elderly Frail Homecare,Charges from Independent Providers,259.7,BETTER AT HOME IOW LTD
Revenue,Head of ASC & Community Wellbeing,5105689097,17.09.2014,Elderly Frail Homecare,Charges from Independent Providers,259.7,BETTER AT HOME IOW LTD
Revenue,Head of ASC & Community Wellbeing,5105689116,17.09.2014,Elderly Frail Homecare,Charges from Independent Providers,29.68,BETTER AT HOME IOW LTD
Revenue,Head of ASC & Community Wellbeing,5105689119,17.09.2014,Elderly Frail Homecare,Charges from Independent Providers,259.7,BETTER AT HOME IOW LTD
Revenue,Head of ASC & Community Wellbeing,5105689114,17.09.2014,Elderly Frail Homecare,Charges from Independent Providers,74.2,BETTER AT HOME IOW LTD
Revenue,Head of ASC & Community Wellbeing,5105689117,17.09.2014,Elderly Frail Homecare,Charges from Independent Providers,578.79,BETTER AT HOME IOW LTD
Revenue,Head of ASC & Community Wellbeing,5105689130,17.09.2014,Elderly Frail Homecare,Charges from Independent Providers,979.44,BETTER AT HOME IOW LTD
Revenue,Head of ASC & Community Wellbeing,5105689118,17.09.2014,Elderly Frail Homecare,Charges from Independent Providers,519.4,BETTER AT HOME IOW LTD
Revenue,Head of ASC & Community Wellbeing,5105689106,17.09.2014,Elderly Frail Homecare,Charges from Independent Providers,779.1,BETTER AT HOME IOW LTD
Revenue,Head of ASC & Community Wellbeing,5105689121,17.09.2014,Elderly Frail Homecare,Charges from Independent Providers,259.7,BETTER AT HOME IOW LTD
Revenue,Head of ASC & Community Wellbeing,5105689107,17.09.2014,Elderly Frail Homecare,Charges from Independent Providers,278.25,BETTER AT HOME IOW LTD
Revenue,Head of ASC & Community Wellbeing,5105689624,17.09.2014,Elderly Frail Homecare,Charges from Independent Providers,371,BETTER AT HOME IOW LTD
Revenue,Head of ASC & Community Wellbeing,5105689628,17.09.2014,Elderly Frail Homecare,Charges from Independent Providers,14.84,BETTER AT HOME IOW LTD
Revenue,Head of ASC & Community Wellbeing,5105689629,17.09.2014,Elderly Frail Homecare,Charges from Independent Providers,29.68,BETTER AT HOME IOW LTD
Revenue,Head of ASC & Community Wellbeing,5105689626,17.09.2014,Elderly Frail Homecare,Charges from Independent Providers,519.4,BETTER AT HOME IOW LTD
Revenue,Head of ASC & Community Wellbeing,5105689618,17.09.2014,Elderly Frail Homecare,Charges from Independent Providers,675.22,BETTER AT HOME IOW LTD
Revenue,Head of ASC & Community Wellbeing,5105689618,17.09.2014,Elderly Frail Homecare,Charges from Independent Providers,14.84,BETTER AT HOME IOW LTD
Revenue,Head of ASC & Community Wellbeing,5105689611,17.09.2014,Elderly Frail Homecare,Charges from Independent Providers,519.4,BETTER AT HOME IOW LTD
Revenue,Head of ASC & Community Wellbeing,5105689614,17.09.2014,Elderly Frail Homecare,Charges from Independent Providers,519.4,BETTER AT HOME IOW LTD
Revenue,Head of ASC & Community Wellbeing,5105689608,17.09.2014,Elderly Frail Homecare,Charges from Independent Providers,"1,832.74",BETTER AT HOME IOW LTD
Revenue,Head of ASC & Community Wellbeing,5105687065,03.09.2014,Elderly Frail Homecare,Charges from Independent Providers,181.79,BETTER AT HOME IOW LTD
Revenue,Head of ASC & Community Wellbeing,5105689126,17.09.2014,Elderly Frail Homecare,Charges from Independent Providers,315.35,BETTER AT HOME IOW LTD
Revenue,Head of ASC & Community Wellbeing,5105689634,17.09.2014,Elderly Frail Homecare,Charges from Independent Providers,222.6,BETTER AT HOME IOW LTD
Revenue,Head of ASC & Community Wellbeing,5105689625,17.09.2014,Elderly Frail Homecare,Charges from Independent Providers,66.78,BETTER AT HOME IOW LTD
Revenue,Head of ASC & Community Wellbeing,5105689619,17.09.2014,Elderly Frail Homecare,Charges from Independent Providers,259.7,BETTER AT HOME IOW LTD
Revenue,Head of ASC & Community Wellbeing,5105689630,17.09.2014,Elderly Frail Homecare,Charges from Independent Providers,230.02,BETTER AT HOME IOW LTD
Revenue,Head of ASC & Community Wellbeing,5105690618,24.09.2014,Elderly Frail Homecare,Charges from Independent Providers,905.24,BETTER AT HOME IOW LTD
Revenue,Head of ASC & Community Wellbeing,5105689609,17.09.2014,Elderly Frail Homecare,Charges from Independent Providers,"1,116.71",BETTER AT HOME IOW LTD
Revenue,Head of ASC & Community Wellbeing,5105689609,17.09.2014,Elderly Frail Homecare,Charges from Independent Providers,44.52,BETTER AT HOME IOW LTD
Revenue,Head of ASC & Community Wellbeing,5105689613,17.09.2014,Elderly Frail Homecare,Charges from Independent Providers,"1,291.08",BETTER AT HOME IOW LTD
Revenue,Head of ASC & Community Wellbeing,5105689622,17.09.2014,Elderly Frail Homecare,Charges from Independent Providers,103.88,BETTER AT HOME IOW LTD
Revenue,Head of ASC & Community Wellbeing,5105689610,17.09.2014,Elderly Frail Homecare,Charges from Independent Providers,489.72,BETTER AT HOME IOW LTD
Revenue,Head of ASC & Community Wellbeing,5105690918,24.09.2014,Elderly Frail Homecare,Charges from Independent Providers,311.64,BETTER AT HOME IOW LTD
Revenue,Head of ASC & Community Wellbeing,5105690919,24.09.2014,Elderly Frail Homecare,Charges from Independent Providers,511.98,BETTER AT HOME IOW LTD
Revenue,Head of ASC & Community Wellbeing,5105690617,24.09.2014,Elderly Frail Homecare,Regular Respite Care,89.04,BETTER AT HOME IOW LTD
Revenue,Head of ASC & Community Wellbeing,5105689095,17.09.2014,Elderly Frail Homecare,Regular Respite Care,59.36,BETTER AT HOME IOW LTD
Revenue,Head of ASC & Community Wellbeing,5105689108,17.09.2014,Elderly Frail Homecare,Regular Respite Care,148.4,BETTER AT HOME IOW LTD
Revenue,Head of ASC & Community Wellbeing,5105689620,17.09.2014,Elderly Frail Homecare,Regular Respite Care,163.24,BETTER AT HOME IOW LTD
Revenue,Head of ASC & Community Wellbeing,5105689620,17.09.2014,Elderly Frail Homecare,Regular Respite Care,14.84,BETTER AT HOME IOW LTD
Revenue,Head of ASC & Community Wellbeing,5105689127,17.09.2014,Elderly Frail Homecare,Regular Respite Care,59.36,BETTER AT HOME IOW LTD
Revenue,Head of ASC & Community Wellbeing,5105689637,17.09.2014,Elderly Frail Homecare,Regular Respite Care,148.4,BETTER AT HOME IOW LTD
Revenue,Head of ASC & Community Wellbeing,5105689633,17.09.2014,Elderly Frail Homecare,Regular Respite Care,29.68,BETTER AT HOME IOW LTD
Revenue,Head of ASC & Community Wellbeing,5105689631,17.09.2014,Elderly Frail Homecare,Regular Respite Care,296.8,BETTER AT HOME IOW LTD
Revenue,Head of ASC & Community Wellbeing,5105689623,17.09.2014,Elderly Frail Homecare,Regular Respite Care,296.8,BETTER AT HOME IOW LTD
Revenue,Head of ASC & Community Wellbeing,5105689112,17.09.2014,Elderly Frail Homecare,Regular Respite Care,148.4,BETTER AT HOME IOW LTD
Revenue,Head of ASC & Community Wellbeing,5105689131,17.09.2014,Elderly Frail Homecare,Regular Respite Care,29.68,BETTER AT HOME IOW LTD
Revenue,Head of ASC & Community Wellbeing,5105689621,17.09.2014,Elderly Frail Homecare,Regular Respite Care,148.4,BETTER AT HOME IOW LTD
Revenue,Head of ASC & Community Wellbeing,5105689636,17.09.2014,Elderly Mentally Ill Homecare,Charges from Independent Providers,356.16,BETTER AT HOME IOW LTD
Revenue,Head of ASC & Community Wellbeing,5105689120,17.09.2014,Elderly Mentally Ill Homecare,Charges from Independent Providers,779.1,BETTER AT HOME IOW LTD
Revenue,Head of ASC & Community Wellbeing,5105689635,17.09.2014,Elderly Mentally Ill Homecare,Charges from Independent Providers,"2,322.46",BETTER AT HOME IOW LTD
Revenue,Head of ASC & Community Wellbeing,5105689099,17.09.2014,Mental Health Homecare,Charges from Independent Providers,511.98,BETTER AT HOME IOW LTD
Revenue,Head of ASC & Community Wellbeing,5105689099,17.09.2014,Mental Health Homecare,Charges from Independent Providers,178.08,BETTER AT HOME IOW LTD
Revenue,Head of ASC & Community Wellbeing,5105690916,24.09.2014,Mental Health Homecare,Charges from Independent Providers,-178.08,BETTER AT HOME IOW LTD
Revenue,Head of ASC & Community Wellbeing,5105690916,24.09.2014,Mental Health Homecare,Charges from Independent Providers,-511.98,BETTER AT HOME IOW LTD
Revenue,Head of ASC & Community Wellbeing,5105690917,24.09.2014,Mental Health Homecare,Charges from Independent Providers,178.08,BETTER AT HOME IOW LTD
Revenue,Head of ASC & Community Wellbeing,5105689129,17.09.2014,Physical Disability Homecare,Charges from Independent Providers,"1,424.64",BETTER AT HOME IOW LTD
Revenue,Head of ASC & Community Wellbeing,5105689122,17.09.2014,Physical Disability Homecare,Charges from Independent Providers,89.04,BETTER AT HOME IOW LTD
Revenue,Head of ASC & Community Wellbeing,5105689123,17.09.2014,Physical Disability Homecare,Charges from Independent Providers,389.55,BETTER AT HOME IOW LTD
Revenue,Head of ASC & Community Wellbeing,5105689125,17.09.2014,Physical Disability Homecare,Charges from Independent Providers,259.7,BETTER AT HOME IOW LTD
Revenue,Head of ASC & Community Wellbeing,5105689627,17.09.2014,Physical Disability Homecare,Charges from Independent Providers,519.4,BETTER AT HOME IOW LTD
Revenue,Head of ASC & Community Wellbeing,5105689128,17.09.2014,Physical Disability Homecare,Regular Respite Care,118.72,BETTER AT HOME IOW LTD
Revenue,Head of Economy & Tourism,5105687072,03.09.2014,Public Libraries Central,Computer Maintenance,594,BIBLIOTHECA LTD
Revenue,Head of Economy & Tourism,5105687072,03.09.2014,Public Libraries Central,Computer Maintenance,"4,914.34",BIBLIOTHECA LTD
Revenue,Head of Economy & Tourism,5105691145,26.09.2014,Public Libraries Central,Stationery,161.14,BIBLIOTHECA LTD
Revenue,Head of HR & Organisational Change,5105688745,24.09.2014,"Civic Centre,Sandown","Refuse Collection, Disposal and Recycling Costs",47.72,BIFFA WASTE SERVICES LTD
Revenue,Head of HR & Organisational Change,5105688743,24.09.2014,"Civic Centre,Sandown","Refuse Collection, Disposal and Recycling Costs",92.48,BIFFA WASTE SERVICES LTD
Revenue,Head of HR & Organisational Change,5105683983,05.09.2014,"Civic Centre,Sandown","Refuse Collection, Disposal and Recycling Costs",172.48,BIFFA WASTE SERVICES LTD
Revenue,Head of HR & Organisational Change,5105690880,24.09.2014,"Civic Centre,Sandown","Refuse Collection, Disposal and Recycling Costs",127.72,BIFFA WASTE SERVICES LTD
Revenue,Head of HR & Organisational Change,5105691793,29.09.2014,"Bugle House,Newport","Refuse Collection, Disposal and Recycling Costs",151.64,BIFFA WASTE SERVICES LTD
Revenue,Head of HR & Organisational Change,5105691793,29.09.2014,"Westridge, Ryde","Refuse Collection, Disposal and Recycling Costs",37.06,BIFFA WASTE SERVICES LTD
Revenue,Head of ASC & Community Wellbeing,5105691793,29.09.2014,Integrated Community Equipment Service,"Refuse Collection, Disposal and Recycling Costs",129.7,BIFFA WASTE SERVICES LTD
Revenue,Head of ASC & Community Wellbeing,5105691793,29.09.2014,31 Carter Avenue,"Refuse Collection, Disposal and Recycling Costs",87.36,BIFFA WASTE SERVICES LTD
Revenue,Head of ASC & Community Wellbeing,5105691796,29.09.2014,31 Carter Avenue,"Refuse Collection, Disposal and Recycling Costs",-4.76,BIFFA WASTE SERVICES LTD
Revenue,Head of ASC & Community Wellbeing,5105691793,29.09.2014,Overbrook,"Refuse Collection, Disposal and Recycling Costs",99.82,BIFFA WASTE SERVICES LTD
Revenue,Head of ASC & Community Wellbeing,5105691793,29.09.2014,Seagulls,"Refuse Collection, Disposal and Recycling Costs",41.48,BIFFA WASTE SERVICES LTD
Revenue,Head of ASC & Community Wellbeing,5105691793,29.09.2014,Plean Dene,"Refuse Collection, Disposal and Recycling Costs",160.44,BIFFA WASTE SERVICES LTD
Revenue,Head of ASC & Community Wellbeing,5105691793,29.09.2014,Saxonbury,"Refuse Collection, Disposal and Recycling Costs",78.2,BIFFA WASTE SERVICES LTD
Revenue,Head of ASC & Community Wellbeing,5105691793,29.09.2014,40 Venner Avenue,"Refuse Collection, Disposal and Recycling Costs",4.76,BIFFA WASTE SERVICES LTD
Revenue,Head of ASC & Community Wellbeing,5105691793,29.09.2014,Highmead,"Refuse Collection, Disposal and Recycling Costs",53.41,BIFFA WASTE SERVICES LTD
Revenue,Head of ASC & Community Wellbeing,5105691793,29.09.2014,The Laurels,"Refuse Collection, Disposal and Recycling Costs",53.41,BIFFA WASTE SERVICES LTD
Revenue,Head of HR & Organisational Change,5105691793,29.09.2014,17 Fairlee Road,"Refuse Collection, Disposal and Recycling Costs",112,BIFFA WASTE SERVICES LTD
Revenue,Head of ASC & Community Wellbeing,5105689083,12.09.2014,Adelaide Resource Centre,"Refuse Collection, Disposal and Recycling Costs",171.6,BIFFA WASTE SERVICES LTD
Revenue,Head of ASC & Community Wellbeing,5105690809,24.09.2014,Adelaide Resource Centre,"Refuse Collection, Disposal and Recycling Costs","1,319.63",BIFFA WASTE SERVICES LTD
Revenue,Head of ASC & Community Wellbeing,5105691793,29.09.2014,Westminster House,"Refuse Collection, Disposal and Recycling Costs",43.68,BIFFA WASTE SERVICES LTD
Revenue,Head of Economy & Tourism,5105691793,29.09.2014,Leisure Management & Admin,"Refuse Collection, Disposal and Recycling Costs",151.64,BIFFA WASTE SERVICES LTD
Revenue,Head of Economy & Tourism,5105691793,29.09.2014,Public Libraries Central,"Refuse Collection, Disposal and Recycling Costs",387.73,BIFFA WASTE SERVICES LTD
Revenue,Director of Childrens Services,5105691793,29.09.2014,Learning & Development Running Costs,"Refuse Collection, Disposal and Recycling Costs",23.12,BIFFA WASTE SERVICES LTD
Revenue,Head of Economy & Tourism,5105691793,29.09.2014,Cothey Bottom Store RYDE,"Refuse Collection, Disposal and Recycling Costs",18.53,BIFFA WASTE SERVICES LTD
Revenue,Head of Economy & Tourism,5105691793,29.09.2014,Dinosaur Isle Museum (Sandown Geology),"Refuse Collection, Disposal and Recycling Costs",53.05,BIFFA WASTE SERVICES LTD
Revenue,Head of Economy & Tourism,5105691793,29.09.2014,The Heights,"Refuse Collection, Disposal and Recycling Costs",378.92,BIFFA WASTE SERVICES LTD
Revenue,Head of Economy & Tourism,5105691793,29.09.2014,Medina Leisure Centre,"Refuse Collection, Disposal and Recycling Costs",297.24,BIFFA WASTE SERVICES LTD
Revenue,Head of Economy & Tourism,5105691793,29.09.2014,Westridge Squash Courts,"Refuse Collection, Disposal and Recycling Costs",18.53,BIFFA WASTE SERVICES LTD
Revenue,Head of Economy & Tourism,5105691793,29.09.2014,Ryde Harbour,"Refuse Collection, Disposal and Recycling Costs",281.47,BIFFA WASTE SERVICES LTD
Revenue,Head of Economy & Tourism,5105691793,29.09.2014,Seaclose Amusements,"Refuse Collection, Disposal and Recycling Costs",13.69,BIFFA WASTE SERVICES LTD
Revenue,Director of Childrens Services,5105691793,29.09.2014,Family Information Zone,"Refuse Collection, Disposal and Recycling Costs",16.64,BIFFA WASTE SERVICES LTD
Revenue,Director of Childrens Services,5105691793,29.09.2014,Specialist Service Business Admin,"Refuse Collection, Disposal and Recycling Costs",156.4,BIFFA WASTE SERVICES LTD
Revenue,Director of Childrens Services,5105691793,29.09.2014,Beaulieu House,"Refuse Collection, Disposal and Recycling Costs",159.2,BIFFA WASTE SERVICES LTD
Revenue,Director of Childrens Services,5105691793,29.09.2014,Parent Partnership,"Refuse Collection, Disposal and Recycling Costs",16.64,BIFFA WASTE SERVICES LTD
Revenue,Director of Childrens Services,5105691793,29.09.2014,Education Participation Team,"Refuse Collection, Disposal and Recycling Costs",59.98,BIFFA WASTE SERVICES LTD
Revenue,Head of Economy & Tourism,5105691793,29.09.2014,Ferry Management,"Refuse Collection, Disposal and Recycling Costs",82.6,BIFFA WASTE SERVICES LTD
Revenue,Head of Economy & Tourism,5105691793,29.09.2014,Fort Victoria,"Refuse Collection, Disposal and Recycling Costs",170,BIFFA WASTE SERVICES LTD
Revenue,Head of Economy & Tourism,5105691793,29.09.2014,Newport Harbour Account,"Refuse Collection, Disposal and Recycling Costs",375,BIFFA WASTE SERVICES LTD
Revenue,Head of Economy & Tourism,5105691793,29.09.2014,Newport Harbour Account,"Refuse Collection, Disposal and Recycling Costs",199.36,BIFFA WASTE SERVICES LTD
Revenue,Chief Fire Officer,5105688752,19.09.2014,Fire Operations,"Refuse Collection, Disposal and Recycling Costs",46.55,BIFFA WASTE SERVICES LTD
Revenue,Chief Fire Officer,5105688750,19.09.2014,Fire Operations,"Refuse Collection, Disposal and Recycling Costs",107.2,BIFFA WASTE SERVICES LTD
Revenue,Chief Fire Officer,5105688748,19.09.2014,Fire Operations,"Refuse Collection, Disposal and Recycling Costs",23.04,BIFFA WASTE SERVICES LTD
Revenue,Chief Fire Officer,5105688749,19.09.2014,Fire Operations,"Refuse Collection, Disposal and Recycling Costs",152.8,BIFFA WASTE SERVICES LTD
Revenue,Chief Fire Officer,5105691707,29.09.2014,Fire Operations,"Refuse Collection, Disposal and Recycling Costs",103.04,BIFFA WASTE SERVICES LTD
Revenue,Head of Planning & Regulatory Services,5105691793,29.09.2014,Planning Business Support,"Refuse Collection, Disposal and Recycling Costs",298.9,BIFFA WASTE SERVICES LTD
Revenue,Head of Planning & Regulatory Services,5105691793,29.09.2014,Regulatory Management & Admin Support,"Refuse Collection, Disposal and Recycling Costs",78.2,BIFFA WASTE SERVICES LTD
Revenue,Head of Economy & Tourism,5105691793,29.09.2014,Crematorium,"Refuse Collection, Disposal and Recycling Costs",96.56,BIFFA WASTE SERVICES LTD
Revenue,Director of Childrens Services,5105688500,10.09.2014,Purchased Residential,Charges from Independent Providers,"13,844.82",BIG BRIGHT HOLIDAYS
Revenue,Director of Childrens Services,5105688501,10.09.2014,Purchased Residential,Charges from Independent Providers,"13,844.82",BIG BRIGHT HOLIDAYS
Revenue,Director of Childrens Services,5105691165,26.09.2014,Purchased Residential,Charges from Independent Providers,"13,398.21",BIG BRIGHT HOLIDAYS
Revenue,Director of Childrens Services,5105691431,26.09.2014,Purchased Residential,Charges from Independent Providers,"13,398.21",BIG BRIGHT HOLIDAYS
Revenue,Director of Childrens Services,5105687416,05.09.2014,Leaving Care Costs,Support Children,65,REDACTED PERSONAL DATA
Revenue,Director of Childrens Services,5105688696,12.09.2014,Leaving Care Costs,Support Children,65,REDACTED PERSONAL DATA
Revenue,Director of Childrens Services,5105690175,19.09.2014,Leaving Care Costs,Support Children,65,REDACTED PERSONAL DATA
Revenue,Director of Childrens Services,5105691300,26.09.2014,Leaving Care Costs,Support Children,65,REDACTED PERSONAL DATA
Revenue,Director of Childrens Services,5105690492,24.09.2014,Purchased Fostering,Charges from Independent Providers,"3,126.30",BLUE SKY FOSTERING LTD
Revenue,Director of Childrens Services,5105690038,24.09.2014,Purchased Fostering,Charges from Independent Providers,"3,126.30",BLUE SKY FOSTERING LTD
Revenue,Director of Childrens Services,5105690036,24.09.2014,Purchased Fostering,Charges from Independent Providers,"3,126.30",BLUE SKY FOSTERING LTD
Revenue,Director of Childrens Services,5105690334,24.09.2014,Beaulieu House,Professional Services,33.5,BOC LTD
Revenue,Director of Childrens Services,5105690649,24.09.2014,Commissioning ACL,Grants to External Bodies,"3,056.00",BODSTER EQUINE ASSISTED LEARN CIC
Revenue,Director of Childrens Services,5105690494,24.09.2014,Short Breaks,Charges from Independent Providers,390,BODSTER EQUINE ASSISTED LEARN CIC
Revenue,Head of ASC & Community Wellbeing,5105687149,17.09.2014,Overbrook,Catering Purchases,15.48,BOOKER CASH & CARRY LTD
Revenue,Head of ASC & Community Wellbeing,5105687149,17.09.2014,Overbrook,Catering Purchases,9.99,BOOKER CASH & CARRY LTD
Revenue,Head of ASC & Community Wellbeing,5105687135,03.09.2014,Overbrook,Catering Purchases,38.97,BOOKER CASH & CARRY LTD
Revenue,Head of ASC & Community Wellbeing,5105691088,24.09.2014,Overbrook,Catering Purchases,92.9,BOOKER CASH & CARRY LTD
Revenue,Head of ASC & Community Wellbeing,5105691659,29.09.2014,Overbrook,Catering Purchases,6.29,BOOKER CASH & CARRY LTD
Revenue,Head of ASC & Community Wellbeing,5105687564,05.09.2014,Plean Dene,Catering Purchases,124.38,BOOKER CASH & CARRY LTD
Revenue,Head of ASC & Community Wellbeing,5105687564,05.09.2014,Plean Dene,Catering Purchases,16.78,BOOKER CASH & CARRY LTD
Revenue,Head of ASC & Community Wellbeing,5105687083,03.09.2014,Plean Dene,Catering Purchases,4.78,BOOKER CASH & CARRY LTD
Revenue,Head of ASC & Community Wellbeing,5105688400,12.09.2014,Plean Dene,Catering Purchases,21.54,BOOKER CASH & CARRY LTD
Revenue,Head of ASC & Community Wellbeing,5105688401,12.09.2014,Plean Dene,Catering Purchases,13.16,BOOKER CASH & CARRY LTD
Revenue,Head of ASC & Community Wellbeing,5105688374,10.09.2014,Plean Dene,Catering Purchases,51.65,BOOKER CASH & CARRY LTD
Revenue,Head of ASC & Community Wellbeing,5105688520,10.09.2014,Plean Dene,Catering Purchases,27.76,BOOKER CASH & CARRY LTD
Revenue,Head of ASC & Community Wellbeing,5105688524,10.09.2014,Plean Dene,Catering Purchases,1.6,BOOKER CASH & CARRY LTD
Revenue,Head of ASC & Community Wellbeing,5105688403,10.09.2014,Plean Dene,Catering Purchases,26.11,BOOKER CASH & CARRY LTD
Revenue,Head of ASC & Community Wellbeing,5105688524,10.09.2014,Plean Dene,Catering Purchases,4.29,BOOKER CASH & CARRY LTD
Revenue,Head of ASC & Community Wellbeing,5105687262,05.09.2014,Plean Dene,Catering Purchases,48.37,BOOKER CASH & CARRY LTD
Revenue,Head of ASC & Community Wellbeing,5105687083,03.09.2014,Plean Dene,Catering Purchases,103.56,BOOKER CASH & CARRY LTD
Revenue,Head of ASC & Community Wellbeing,5105686992,03.09.2014,Plean Dene,Catering Purchases,29.18,BOOKER CASH & CARRY LTD
Revenue,Head of ASC & Community Wellbeing,5105691081,24.09.2014,Plean Dene,Catering Purchases,127.92,BOOKER CASH & CARRY LTD
Revenue,Head of ASC & Community Wellbeing,5105691081,24.09.2014,Plean Dene,Catering Purchases,33.65,BOOKER CASH & CARRY LTD
Revenue,Head of ASC & Community Wellbeing,5105689215,17.09.2014,Plean Dene,Catering Purchases,35.03,BOOKER CASH & CARRY LTD
Revenue,Head of ASC & Community Wellbeing,5105691400,26.09.2014,Plean Dene,Catering Purchases,157.46,BOOKER CASH & CARRY LTD
Revenue,Head of ASC & Community Wellbeing,5105691481,26.09.2014,Plean Dene,Catering Purchases,104.35,BOOKER CASH & CARRY LTD
Revenue,Head of ASC & Community Wellbeing,5105691482,26.09.2014,Plean Dene,Catering Purchases,22.99,BOOKER CASH & CARRY LTD
Revenue,Head of ASC & Community Wellbeing,5105691481,26.09.2014,Plean Dene,Catering Purchases,4.29,BOOKER CASH & CARRY LTD
Revenue,Head of ASC & Community Wellbeing,5105691400,26.09.2014,Plean Dene,Catering Purchases,25.75,BOOKER CASH & CARRY LTD
Revenue,Head of ASC & Community Wellbeing,5105689246,17.09.2014,Plean Dene,Catering Purchases,50.51,BOOKER CASH & CARRY LTD
Revenue,Head of ASC & Community Wellbeing,5105689715,17.09.2014,Plean Dene,Catering Purchases,3.96,BOOKER CASH & CARRY LTD
Revenue,Head of ASC & Community Wellbeing,5105690246,19.09.2014,Plean Dene,Catering Purchases,21.25,BOOKER CASH & CARRY LTD
Revenue,Head of ASC & Community Wellbeing,5105690475,19.09.2014,Plean Dene,Catering Purchases,27.62,BOOKER CASH & CARRY LTD
Revenue,Head of ASC & Community Wellbeing,5105691661,29.09.2014,Plean Dene,Catering Purchases,20.31,BOOKER CASH & CARRY LTD
Revenue,Head of ASC & Community Wellbeing,5105691786,29.09.2014,Plean Dene,Catering Purchases,5.25,BOOKER CASH & CARRY LTD
Revenue,Head of ASC & Community Wellbeing,5105691782,29.09.2014,Plean Dene,Catering Purchases,159.79,BOOKER CASH & CARRY LTD
Revenue,Head of ASC & Community Wellbeing,5105691782,29.09.2014,Plean Dene,Catering Purchases,16.85,BOOKER CASH & CARRY LTD
Revenue,Head of ASC & Community Wellbeing,5105691786,29.09.2014,Plean Dene,Catering Purchases,3.89,BOOKER CASH & CARRY LTD
Revenue,Head of ASC & Community Wellbeing,5105690858,24.09.2014,Plean Dene,Catering Purchases,-14.36,BOOKER CASH & CARRY LTD
Revenue,Managing Director & Head of Paid Service,5105690853,24.09.2014,Contraception,Payment to Private Contractors,3.55,BOOTS THE CHEMIST LTD (Ryde)
Revenue,Managing Director & Head of Paid Service,5105690853,24.09.2014,Contraception,Payment to Private Contractors,322.5,BOOTS THE CHEMIST LTD (Ryde)
Revenue,Managing Director & Head of Paid Service,5105690853,24.09.2014,Contraception,Payment to Private Contractors,78,BOOTS THE CHEMIST LTD (Ryde)
Revenue,Managing Director & Head of Paid Service,5105690853,24.09.2014,Drug Misuse - Adults,Payment to Private Contractors,591.5,BOOTS THE CHEMIST LTD (Ryde)
Revenue,Managing Director & Head of Paid Service,5105690853,24.09.2014,Drug Misuse - Adults,Payment to Private Contractors,550,BOOTS THE CHEMIST LTD (Ryde)
Revenue,Managing Director & Head of Paid Service,5105690872,24.09.2014,Drug Misuse - Adults,Payment to Private Contractors,98,BOOTS UK LTD (107 HIGH ST SANDOWN)
Revenue,Managing Director & Head of Paid Service,5105690872,24.09.2014,Drug Misuse - Adults,Payment to Private Contractors,130,BOOTS UK LTD (107 HIGH ST SANDOWN)
Revenue,Managing Director & Head of Paid Service,5105690889,24.09.2014,Contraception,Payment to Private Contractors,26,BOOTS UK LTD (COWES)
Revenue,Managing Director & Head of Paid Service,5105690889,24.09.2014,Contraception,Payment to Private Contractors,129,BOOTS UK LTD (COWES)
Revenue,Managing Director & Head of Paid Service,5105690889,24.09.2014,Drug Misuse - Adults,Payment to Private Contractors,105,BOOTS UK LTD (COWES)
Revenue,Managing Director & Head of Paid Service,5105690889,24.09.2014,Drug Misuse - Adults,Payment to Private Contractors,282,BOOTS UK LTD (COWES)
Revenue,Managing Director & Head of Paid Service,5105690847,24.09.2014,Contraception,Payment to Private Contractors,537.5,BOOTS UK LTD (NEWPORT)
Revenue,Managing Director & Head of Paid Service,5105690847,24.09.2014,Contraception,Payment to Private Contractors,130,BOOTS UK LTD (NEWPORT)
Revenue,Managing Director & Head of Paid Service,5105690860,24.09.2014,Contraception,Payment to Private Contractors,107.5,BOOTS UK LTD (SANDOWN LARGE STORE)
Revenue,Managing Director & Head of Paid Service,5105690860,24.09.2014,Contraception,Payment to Private Contractors,26,BOOTS UK LTD (SANDOWN LARGE STORE)
Revenue,Managing Director & Head of Paid Service,5105690860,24.09.2014,Drug Misuse - Adults,Payment to Private Contractors,48,BOOTS UK LTD (SANDOWN LARGE STORE)
Revenue,Managing Director & Head of Paid Service,5105690898,24.09.2014,Contraception,Payment to Private Contractors,215,BOOTS UK LTD (SHANKLIN)
Revenue,Managing Director & Head of Paid Service,5105690898,24.09.2014,Contraception,Payment to Private Contractors,46.8,BOOTS UK LTD (SHANKLIN)
Revenue,Managing Director & Head of Paid Service,5105690898,24.09.2014,Drug Misuse - Adults,Payment to Private Contractors,336,BOOTS UK LTD (SHANKLIN)
Revenue,Managing Director & Head of Paid Service,5105690865,24.09.2014,Contraception,Payment to Private Contractors,21.5,BOOTS UK LTD (TOWER HOUSE)
Revenue,Managing Director & Head of Paid Service,5105690865,24.09.2014,Contraception,Payment to Private Contractors,5.2,BOOTS UK LTD (TOWER HOUSE)
Revenue,Managing Director & Head of Paid Service,5105690865,24.09.2014,Drug Misuse - Adults,Payment to Private Contractors,118,BOOTS UK LTD (TOWER HOUSE)
Revenue,Managing Director & Head of Paid Service,5105690865,24.09.2014,Drug Misuse - Adults,Payment to Private Contractors,45.5,BOOTS UK LTD (TOWER HOUSE)
Revenue,Managing Director & Head of Paid Service,5105690851,24.09.2014,Contraception,Payment to Private Contractors,193.5,BOOTS UK LTD (YLB BEMBRIDGE)
Revenue,Managing Director & Head of Paid Service,5105690851,24.09.2014,Contraception,Payment to Private Contractors,46.8,BOOTS UK LTD (YLB BEMBRIDGE)
Revenue,Managing Director & Head of Paid Service,5105690851,24.09.2014,Drug Misuse - Adults,Payment to Private Contractors,4,BOOTS UK LTD (YLB BEMBRIDGE)
Revenue,Head of Corp Gov & Monitoring Officer,5105687555,05.09.2014,Elections,Rent of Buildings and Rooms,140,BRADING TOWN TRUST
Revenue,Head of Economy & Tourism,5105691122,26.09.2014,The Heights,Stock Purchases,94.28,BRAKE BROS LTD
Revenue,Head of Economy & Tourism,5105687106,03.09.2014,The Heights,Stock Purchases,77.21,BRAKE BROS LTD
Revenue,Head of Economy & Tourism,5105687107,03.09.2014,The Heights,Stock Purchases,-4.91,BRAKE BROS LTD
Revenue,Head of ASC & Community Wellbeing,5105690725,24.09.2014,Leaseholds by LA,Accommodation Costs - Leaseholder Payments,746.81,BRAMBLE LETTINGS
Revenue,Head of ASC & Community Wellbeing,5105690725,24.09.2014,Leaseholds by LA,Accommodation Costs - Leaseholder Payments,746.81,BRAMBLE LETTINGS
Revenue,Head of ASC & Community Wellbeing,5105690725,24.09.2014,Leaseholds by LA,Accommodation Costs - Leaseholder Payments,746.81,BRAMBLE LETTINGS
Revenue,Head of ASC & Community Wellbeing,5105690725,24.09.2014,Leaseholds by LA,Accommodation Costs - Leaseholder Payments,588.38,BRAMBLE LETTINGS
Revenue,Head of ASC & Community Wellbeing,5105690725,24.09.2014,Leaseholds by LA,Accommodation Costs - Leaseholder Payments,746.81,BRAMBLE LETTINGS
Revenue,Head of ASC & Community Wellbeing,5105690725,24.09.2014,Leaseholds by LA,Accommodation Costs - Leaseholder Payments,769.43,BRAMBLE LETTINGS
Revenue,Head of ASC & Community Wellbeing,5105690725,24.09.2014,Leaseholds by LA,Accommodation Costs - Leaseholder Payments,746.81,BRAMBLE LETTINGS
Revenue,Head of ASC & Community Wellbeing,5105690725,24.09.2014,Leaseholds by LA,Accommodation Costs - Leaseholder Payments,746.81,BRAMBLE LETTINGS
Revenue,Head of ASC & Community Wellbeing,5105690725,24.09.2014,Leaseholds by LA,Accommodation Costs - Leaseholder Payments,746.81,BRAMBLE LETTINGS
Revenue,Head of ASC & Community Wellbeing,5105690725,24.09.2014,Leaseholds by LA,Accommodation Costs - Leaseholder Payments,746.81,BRAMBLE LETTINGS
Revenue,Head of ASC & Community Wellbeing,5105690725,24.09.2014,Leaseholds by LA,Accommodation Costs - Leaseholder Payments,746.81,BRAMBLE LETTINGS
Revenue,Head of ASC & Community Wellbeing,5105690725,24.09.2014,Leaseholds by LA,Accommodation Costs - Leaseholder Payments,746.81,BRAMBLE LETTINGS
Revenue,Head of ASC & Community Wellbeing,5105690725,24.09.2014,Leaseholds by LA,Accommodation Costs - Leaseholder Payments,746.81,BRAMBLE LETTINGS
Revenue,Head of ASC & Community Wellbeing,5105690725,24.09.2014,Leaseholds by LA,Accommodation Costs - Leaseholder Payments,746.81,BRAMBLE LETTINGS
Revenue,Head of ASC & Community Wellbeing,5105690725,24.09.2014,Leaseholds by LA,Accommodation Costs - Leaseholder Payments,746.81,BRAMBLE LETTINGS
Revenue,Head of ASC & Community Wellbeing,5105690725,24.09.2014,Leaseholds by LA,Accommodation Costs - Leaseholder Payments,746.81,BRAMBLE LETTINGS
Revenue,Head of ASC & Community Wellbeing,5105690725,24.09.2014,Leaseholds by LA,Accommodation Costs - Leaseholder Payments,588.38,BRAMBLE LETTINGS
Revenue,Head of ASC & Community Wellbeing,5105690725,24.09.2014,Leaseholds by LA,Accommodation Costs - Leaseholder Payments,588.38,BRAMBLE LETTINGS
Revenue,Head of ASC & Community Wellbeing,5105690725,24.09.2014,Leaseholds by LA,Accommodation Costs - Leaseholder Payments,588.38,BRAMBLE LETTINGS
Revenue,Head of ASC & Community Wellbeing,5105690725,24.09.2014,Leaseholds by LA,Accommodation Costs - Leaseholder Payments,588.38,BRAMBLE LETTINGS
Revenue,Head of ASC & Community Wellbeing,5105690725,24.09.2014,Leaseholds by LA,Accommodation Costs - Leaseholder Payments,746.81,BRAMBLE LETTINGS
Revenue,Head of ASC & Community Wellbeing,5105690725,24.09.2014,Leaseholds by LA,Accommodation Costs - Leaseholder Payments,588.38,BRAMBLE LETTINGS
Revenue,Managing Director & Head of Paid Service,5105690814,26.09.2014,Strengthening Families,Payments to Voluntary and Other Associations,100,BRAVEHEART SOCIAL ENTERPRISES LTD
Revenue,Head of ASC & Community Wellbeing,5105688174,10.09.2014,Mental Health Personal Budgets,Payments for Self Directed Support,274,REDACTED PERSONAL DATA
Revenue,Head of ASC & Community Wellbeing,5105688212,10.09.2014,Elderly Frail Residential Care,Charges from Independent Providers,"2,048.76",BRENDONCARE FOUNDATION
Revenue,Head of ASC & Community Wellbeing,5105687887,10.09.2014,Learning Disability Personal Budgets,Payments for Self Directed Support,813.12,REDACTED PERSONAL DATA
Revenue,Head of ASC & Community Wellbeing,5105688077,10.09.2014,Learning Disability Personal Budgets,Payments for Self Directed Support,616,REDACTED PERSONAL DATA
Revenue,Head of ASC & Community Wellbeing,5105688895,12.09.2014,Elderly Frail Daycare,Charges from Independent Providers,25.4,BRIGHSTONE CARE LTD
Revenue,Head of ASC & Community Wellbeing,5105687701,10.09.2014,Elderly Frail Residential Care,Charges from Independent Providers,"1,998.08",BRIGHSTONE CARE LTD
Revenue,Head of ASC & Community Wellbeing,5105687701,10.09.2014,Elderly Frail Residential Care,Charges from Independent Providers,"1,622.60",BRIGHSTONE CARE LTD
Revenue,Head of ASC & Community Wellbeing,5105687701,10.09.2014,Elderly Frail Residential Care,Charges from Independent Providers,"1,998.08",BRIGHSTONE CARE LTD
Revenue,Head of ASC & Community Wellbeing,5105687701,10.09.2014,Elderly Frail Residential Care,Charges from Independent Providers,"1,998.08",BRIGHSTONE CARE LTD
Revenue,Head of ASC & Community Wellbeing,5105687701,10.09.2014,Elderly Mentally Ill Residential Care,Charges from Independent Providers,"1,699.88",BRIGHSTONE CARE LTD
Revenue,Head of ASC & Community Wellbeing,5105687701,10.09.2014,Elderly Mentally Ill Residential Care,Charges from Independent Providers,"1,998.08",BRIGHSTONE CARE LTD
Revenue,Head of ASC & Community Wellbeing,5105687701,10.09.2014,Elderly Mentally Ill Residential Care,Charges from Independent Providers,"1,699.88",BRIGHSTONE CARE LTD
Revenue,Head of ASC & Community Wellbeing,5105688879,12.09.2014,Elderly Mentally Ill Residential Care,Charges from Independent Providers,747.8,BRIGHSTONE CARE LTD
Revenue,Head of ASC & Community Wellbeing,5105687701,10.09.2014,REDACTED PERSONAL DATA,Order Settlement to Bal Sht GL,657.72,BRIGHSTONE CARE LTD
Revenue,Head of ASC & Community Wellbeing,5105687701,10.09.2014,REDACTED PERSONAL DATA,Order Settlement to Bal Sht GL,"1,699.88",BRIGHSTONE CARE LTD
Revenue,Head of ASC & Community Wellbeing,5105689701,17.09.2014,Overbrook,Grounds Maintenance,48,BRIGHSTONE LANDSCAPING LTD
Revenue,Head of ASC & Community Wellbeing,5105689701,17.09.2014,Seagulls,Grounds Maintenance,48,BRIGHSTONE LANDSCAPING LTD
Revenue,Head of ASC & Community Wellbeing,5105689701,17.09.2014,Plean Dene,Grounds Maintenance,387.49,BRIGHSTONE LANDSCAPING LTD
Revenue,Head of ASC & Community Wellbeing,5105689701,17.09.2014,Saxonbury,Grounds Maintenance,48,BRIGHSTONE LANDSCAPING LTD
Revenue,Head of ASC & Community Wellbeing,5105689701,17.09.2014,40 Venner Avenue,Grounds Maintenance,48,BRIGHSTONE LANDSCAPING LTD
Revenue,Head of ASC & Community Wellbeing,5105689701,17.09.2014,Highmead,Grounds Maintenance,126,BRIGHSTONE LANDSCAPING LTD
Revenue,Head of ASC & Community Wellbeing,5105689701,17.09.2014,The Laurels,Grounds Maintenance,126,BRIGHSTONE LANDSCAPING LTD
Revenue,Head of Economy & Tourism,5105689694,17.09.2014,Beach Cleaning,Payment to Private Contractors,265,BRIGHSTONE LANDSCAPING LTD
Revenue,Head of Economy & Tourism,5105689732,17.09.2014,Beach Cleaning,Payment to Private Contractors,120,BRIGHSTONE LANDSCAPING LTD
Revenue,Head of Economy & Tourism,5105689693,17.09.2014,Beach Cleaning,Payment to Private Contractors,210,BRIGHSTONE LANDSCAPING LTD
Revenue,Head of Economy & Tourism,5105689249,17.09.2014,Beach Cleaning,Payment to Private Contractors,150,BRIGHSTONE LANDSCAPING LTD
Revenue,Head of Economy & Tourism,5105687558,05.09.2014,Beach Cleaning,Payment to Private Contractors,412,BRIGHSTONE LANDSCAPING LTD
Revenue,Head of Economy & Tourism,5105691071,24.09.2014,Beach Cleaning,Payment to Private Contractors,265,BRIGHSTONE LANDSCAPING LTD
Revenue,Head of Economy & Tourism,5105691883,30.09.2014,Beach Cleaning,Payment to Private Contractors,293.31,BRIGHSTONE LANDSCAPING LTD
Revenue,Head of Economy & Tourism,5105689704,17.09.2014,Beach Cleaning,Beach Cleansing Contractors,"24,097.63",BRIGHSTONE LANDSCAPING LTD
Revenue,Head of Economy & Tourism,5105691685,29.09.2014,Slipways & Steps (Beaches),Payment to Private Contractors,55,BRIGHSTONE LANDSCAPING LTD
Revenue,Head of Economy & Tourism,5105687157,03.09.2014,Newport Harbour Account,Payment to Private Contractors,67.24,BRIGHSTONE LANDSCAPING LTD
Capital,Head of Economy & Tourism,5105691641,26.09.2014,Rights Of Way Capital Programme,Payment to Contractors - Capital,500,BRIGHSTONE LANDSCAPING LTD
Capital,Head of HR & Organisational Change,5105687476,05.09.2014,Server Farm,External Design and Supervision Fees,487.5,BRITISH PARKING ASSOCIATION
Revenue,Head of Economy & Tourism,5105687478,05.09.2014,Cowes Week,Professional Services,214,BRITISH RED CROSS SOCIETY
Revenue,Head of Economy & Tourism,5105687477,24.09.2014,Play Development,Professional Services,226,BRITISH RED CROSS SOCIETY
Revenue,Head of Economy & Tourism,5105689766,17.09.2014,IW Festival of Cycling,Hire of facilities,130,BROADLEA  PRIMARY SCHOOL
Revenue,Head of Economy & Tourism,5105689765,17.09.2014,Cycling festival - The hills killer,Hire of facilities,300,BROADLEA  PRIMARY SCHOOL
Revenue,Managing Director & Head of Paid Service,5105687138,03.09.2014,Drug Misuse - Adults,Payment to Private Contractors,595.71,BROADREACH HOUSE
Revenue,Managing Director & Head of Paid Service,5105687256,10.09.2014,Drug Misuse - Adults,Payment to Private Contractors,"1,092.14",BROADREACH HOUSE
Revenue,Managing Director & Head of Paid Service,5105687266,12.09.2014,Drug Misuse - Adults,Payment to Private Contractors,63.5,BROADREACH HOUSE
Revenue,Managing Director & Head of Paid Service,5105687269,12.09.2014,Drug Misuse - Adults,Payment to Private Contractors,53.5,BROADREACH HOUSE
Revenue,Managing Director & Head of Paid Service,5105689971,17.09.2014,Drug Misuse - Adults,Payment to Private Contractors,"3,077.86",BROADREACH HOUSE
Revenue,Head of Economy & Tourism,5105688375,10.09.2014,Transport Fleet Administration,Vehicle Fuel Costs,657.22,BROADWAY GARAGE
Revenue,Head of Economy & Tourism,5105691408,26.09.2014,Transport Fleet Administration,Vehicle Fuel Costs,458.87,BROADWAY GARAGE
Revenue,Chief Fire Officer,5105689995,19.09.2014,Fire Technical Support,Vehicle Fuel Costs,253.28,BROADWAY GARAGE
Revenue,Chief Fire Officer,5105688465,10.09.2014,Fire Technical Support,Vehicle Fuel Costs,151.74,BROADWAY GARAGE
Revenue,Head of ASC & Community Wellbeing,5105691658,29.09.2014,Local Safeguarding Adults Board,Legal Fees - Other Parties,12,BROOKSIDE HEALTH CENTRE
Revenue,Head of ASC & Community Wellbeing,5105688036,10.09.2014,Elderly Mentally Ill Personal Budgets,Payments for Self Directed Support,300,REDACTED PERSONAL DATA
Revenue,Head of ASC & Community Wellbeing,5105691541,26.09.2014,Gouldings Resource Centre,Fixed Telephones,743.18,BT FINANCE
Capital,Head of Planning & Regulatory Services,5105687528,05.09.2014,Parks and Gardens Capital,Payment to Contractors - Capital,"51,393.00",BT PLC
Revenue,Head of ASC & Community Wellbeing,5105687647,10.09.2014,Elderly Frail Residential Care,Charges from Independent Providers,598.24,BUCKLAND CARE LTD
Revenue,Head of ASC & Community Wellbeing,5105687722,10.09.2014,Elderly Frail Residential Care,Charges from Independent Providers,"1,998.08",BUCKLAND CARE LTD
Revenue,Head of ASC & Community Wellbeing,5105687722,10.09.2014,Elderly Frail Residential Care,Charges from Independent Providers,"1,622.60",BUCKLAND CARE LTD
Revenue,Head of ASC & Community Wellbeing,5105688565,12.09.2014,Elderly Frail Residential Care,Charges from Independent Providers,598.24,BUCKLAND CARE LTD
Revenue,Head of ASC & Community Wellbeing,5105688565,12.09.2014,Elderly Frail Residential Care,Charges from Independent Providers,"2,093.84",BUCKLAND CARE LTD
Revenue,Head of ASC & Community Wellbeing,5105687722,10.09.2014,Elderly Frail Residential Care,Charges from Independent Providers,"1,998.08",BUCKLAND CARE LTD
Revenue,Head of ASC & Community Wellbeing,5105687722,10.09.2014,Elderly Frail Residential Care,Charges from Independent Providers,"1,998.08",BUCKLAND CARE LTD
Revenue,Head of ASC & Community Wellbeing,5105687722,10.09.2014,Elderly Frail Residential Care,Charges from Independent Providers,"1,622.60",BUCKLAND CARE LTD
Revenue,Head of ASC & Community Wellbeing,5105687722,10.09.2014,Elderly Frail Residential Care,Charges from Independent Providers,"1,622.60",BUCKLAND CARE LTD
Revenue,Head of ASC & Community Wellbeing,5105687722,10.09.2014,Elderly Frail Residential Care,Charges from Independent Providers,"1,622.60",BUCKLAND CARE LTD
Revenue,Head of ASC & Community Wellbeing,5105687722,10.09.2014,Elderly Frail Residential Care,Charges from Independent Providers,"1,998.08",BUCKLAND CARE LTD
Revenue,Head of ASC & Community Wellbeing,5105687722,10.09.2014,Elderly Frail Residential Care,Charges from Independent Providers,"1,622.60",BUCKLAND CARE LTD
Revenue,Head of ASC & Community Wellbeing,5105687722,10.09.2014,Elderly Frail Residential Care,Charges from Independent Providers,"1,622.60",BUCKLAND CARE LTD
Revenue,Head of ASC & Community Wellbeing,5105687722,10.09.2014,Elderly Frail Residential Care,Charges from Independent Providers,"1,998.08",BUCKLAND CARE LTD
Revenue,Head of ASC & Community Wellbeing,5105687538,05.09.2014,Elderly Mentally Ill Residential Care,Charges from Independent Providers,"1,998.08",BUCKLAND CARE LTD
Revenue,Head of ASC & Community Wellbeing,5105686971,03.09.2014,Elderly Mentally Ill Residential Care,Charges from Independent Providers,999.04,BUCKLAND CARE LTD
Revenue,Head of ASC & Community Wellbeing,5105687722,10.09.2014,Elderly Mentally Ill Residential Care,Charges from Independent Providers,"2,093.84",BUCKLAND CARE LTD
Revenue,Head of ASC & Community Wellbeing,5105687722,10.09.2014,Elderly Mentally Ill Residential Care,Charges from Independent Providers,"1,998.08",BUCKLAND CARE LTD
Revenue,Head of ASC & Community Wellbeing,5105688565,12.09.2014,Elderly Mentally Ill Residential Care,Charges from Independent Providers,"1,699.88",BUCKLAND CARE LTD
Revenue,Head of ASC & Community Wellbeing,5105687722,10.09.2014,Elderly Mentally Ill Residential Care,Charges from Independent Providers,"1,998.08",BUCKLAND CARE LTD
Revenue,Head of ASC & Community Wellbeing,5105687722,10.09.2014,Elderly Mentally Ill Residential Care,Charges from Independent Providers,"1,699.88",BUCKLAND CARE LTD
Revenue,Head of ASC & Community Wellbeing,5105687722,10.09.2014,Elderly Mentally Ill Residential Care,Charges from Independent Providers,"1,699.88",BUCKLAND CARE LTD
Revenue,Head of ASC & Community Wellbeing,5105687722,10.09.2014,Elderly Mentally Ill Residential Care,Charges from Independent Providers,"1,699.88",BUCKLAND CARE LTD
Revenue,Head of ASC & Community Wellbeing,5105687722,10.09.2014,Elderly Mentally Ill Residential Care,Charges from Independent Providers,"1,998.08",BUCKLAND CARE LTD
Revenue,Head of ASC & Community Wellbeing,5105687722,10.09.2014,Elderly Mentally Ill Residential Care,Charges from Independent Providers,"1,998.08",BUCKLAND CARE LTD
Revenue,Head of ASC & Community Wellbeing,5105687722,10.09.2014,Elderly Mentally Ill Residential Care,Charges from Independent Providers,"1,699.88",BUCKLAND CARE LTD
Revenue,Head of ASC & Community Wellbeing,5105687722,10.09.2014,Elderly Mentally Ill Residential Care,Charges from Independent Providers,"1,699.88",BUCKLAND CARE LTD
Revenue,Head of ASC & Community Wellbeing,5105690596,24.09.2014,Elderly Mentally Ill Residential Care,Charges from Independent Providers,"2,417.56",BUCKLAND CARE LTD
Revenue,Head of ASC & Community Wellbeing,5105687722,10.09.2014,REDACTED PERSONAL DATA,Order Settlement to Bal Sht GL,"1,699.88",BUCKLAND CARE LTD
Revenue,Head of ASC & Community Wellbeing,5105687708,10.09.2014,Elderly Frail Nursing Island,Charges from Independent Providers,"2,780.40",BUCKLAND CARE LTD
Revenue,Head of ASC & Community Wellbeing,5105687708,10.09.2014,Elderly Frail Nursing Island,Charges from Independent Providers,"2,676.80",BUCKLAND CARE LTD
Revenue,Head of ASC & Community Wellbeing,5105687708,10.09.2014,Elderly Frail Nursing Island,Charges from Independent Providers,"2,780.40",BUCKLAND CARE LTD
Revenue,Head of ASC & Community Wellbeing,5105687708,10.09.2014,Elderly Frail Nursing Island,Charges from Independent Providers,"2,676.80",BUCKLAND CARE LTD
Revenue,Head of ASC & Community Wellbeing,5105687708,10.09.2014,Elderly Frail Nursing Island,Charges from Independent Providers,"2,780.40",BUCKLAND CARE LTD
Revenue,Head of ASC & Community Wellbeing,5105687708,10.09.2014,Elderly Frail Nursing Island,Charges from Independent Providers,"2,676.80",BUCKLAND CARE LTD
Revenue,Head of ASC & Community Wellbeing,5105687708,10.09.2014,Elderly Frail Nursing Island,Charges from Independent Providers,"2,676.80",BUCKLAND CARE LTD
Revenue,Head of ASC & Community Wellbeing,5105687708,10.09.2014,Elderly Frail Nursing Island,Charges from Independent Providers,"2,676.80",BUCKLAND CARE LTD
Revenue,Head of ASC & Community Wellbeing,5105687708,10.09.2014,Elderly Frail Nursing Island,Charges from Independent Providers,"2,676.80",BUCKLAND CARE LTD
Revenue,Head of ASC & Community Wellbeing,5105687708,10.09.2014,Elderly Frail Nursing Island,Charges from Independent Providers,"2,676.80",BUCKLAND CARE LTD
Revenue,Head of ASC & Community Wellbeing,5105687708,10.09.2014,Elderly Frail Nursing Island,Charges from Independent Providers,"2,676.80",BUCKLAND CARE LTD
Revenue,Head of ASC & Community Wellbeing,5105687708,10.09.2014,Elderly Frail Nursing Island,Charges from Independent Providers,"2,676.80",BUCKLAND CARE LTD
Revenue,Head of ASC & Community Wellbeing,5105687708,10.09.2014,Elderly Frail Nursing Island,Charges from Independent Providers,"2,676.80",BUCKLAND CARE LTD
Revenue,Head of ASC & Community Wellbeing,5105691558,26.09.2014,Elderly Frail Nursing Island,Charges from Independent Providers,297.9,BUCKLAND CARE LTD
Revenue,Head of ASC & Community Wellbeing,5105687708,10.09.2014,Elderly Mentally Ill Nursing Island,Charges from Independent Providers,"2,676.80",BUCKLAND CARE LTD
Revenue,Head of ASC & Community Wellbeing,5105687708,10.09.2014,Elderly Mentally Ill Nursing Island,Regular Respite Care,"2,780.40",BUCKLAND CARE LTD
Revenue,Head of ASC & Community Wellbeing,5105687708,10.09.2014,Funded Nursing Care Island,Charges from Independent Providers,443.8,BUCKLAND CARE LTD
Revenue,Head of ASC & Community Wellbeing,5105687708,10.09.2014,Funded Nursing Care Island,Charges from Independent Providers,443.8,BUCKLAND CARE LTD
Revenue,Head of ASC & Community Wellbeing,5105687708,10.09.2014,Funded Nursing Care Island,Charges from Independent Providers,443.8,BUCKLAND CARE LTD
Revenue,Head of ASC & Community Wellbeing,5105687708,10.09.2014,Funded Nursing Care Island,Charges from Independent Providers,443.8,BUCKLAND CARE LTD
Revenue,Head of ASC & Community Wellbeing,5105687708,10.09.2014,Funded Nursing Care Island,Charges from Independent Providers,443.8,BUCKLAND CARE LTD
Revenue,Head of ASC & Community Wellbeing,5105687708,10.09.2014,Funded Nursing Care Island,Charges from Independent Providers,443.8,BUCKLAND CARE LTD
Revenue,Head of ASC & Community Wellbeing,5105687708,10.09.2014,Funded Nursing Care Island,Charges from Independent Providers,443.8,BUCKLAND CARE LTD
Revenue,Head of ASC & Community Wellbeing,5105687708,10.09.2014,Funded Nursing Care Island,Charges from Independent Providers,443.8,BUCKLAND CARE LTD
Revenue,Head of ASC & Community Wellbeing,5105687708,10.09.2014,Funded Nursing Care Island,Charges from Independent Providers,443.8,BUCKLAND CARE LTD
Revenue,Head of ASC & Community Wellbeing,5105687708,10.09.2014,Funded Nursing Care Island,Charges from Independent Providers,443.8,BUCKLAND CARE LTD
Revenue,Head of ASC & Community Wellbeing,5105687708,10.09.2014,Funded Nursing Care Island,Charges from Independent Providers,443.8,BUCKLAND CARE LTD
Revenue,Head of ASC & Community Wellbeing,5105689759,17.09.2014,Funded Nursing Care Island,Charges from Independent Providers,332.85,BUCKLAND CARE LTD
Revenue,Head of ASC & Community Wellbeing,5105689759,17.09.2014,Funded Nursing Care Island,Charges from Independent Providers,443.8,BUCKLAND CARE LTD
Revenue,Head of ASC & Community Wellbeing,5105687708,10.09.2014,REDACTED PERSONAL DATA,Order Settlement to Bal Sht GL,"2,233.00",BUCKLAND CARE LTD
Revenue,Head of ASC & Community Wellbeing,5105687708,10.09.2014,REDACTED PERSONAL DATA,Order Settlement to Bal Sht GL,"2,233.00",BUCKLAND CARE LTD
Revenue,Head of ASC & Community Wellbeing,5105689084,17.09.2014,Plean Dene,Consumable Cleaning Materials,153.14,BUNZL CLEANING & HYGIENE SUPPLIES LTD
Revenue,Head of ASC & Community Wellbeing,5105686466,03.09.2014,Plean Dene,Consumable Cleaning Materials,121.8,BUNZL CLEANING & HYGIENE SUPPLIES LTD
Revenue,Head of ASC & Community Wellbeing,5105686922,03.09.2014,Plean Dene,Consumable Cleaning Materials,125.38,BUNZL CLEANING & HYGIENE SUPPLIES LTD
Revenue,Head of ASC & Community Wellbeing,5105688035,10.09.2014,Elderly Frail Nursing Mainland,Charges from Independent Providers,"1,841.84",BUPA CARE HOME (BNH) LTD
Revenue,Head of Planning & Regulatory Services,5105690280,19.09.2014,Environmental Health - Geographical Team,Professional Services,179.6,BUREAU VERITAS INSPECTION LTD
Revenue,Head of Finance & S151 Officer,5105689144,17.09.2014,Project Manager Waste Strategy,Consultants Fees,"4,483.66",BURGES SALMON LLP
Revenue,Director of Childrens Services,5105690518,24.09.2014,Purchased Fostering,Charges from Independent Providers,"4,320.00",BY THE BRIDGE LTD
Revenue,Head of HR & Organisational Change,5105687104,03.09.2014,"Enterprise House, Newport",Grounds Maintenance,150,C & J GROUND MAINTENANCE
Revenue,Head of HR & Organisational Change,5105691060,26.09.2014,"Enterprise House, Newport",Grounds Maintenance,75,C & J GROUND MAINTENANCE
Revenue,Head of HR & Organisational Change,5105687498,17.09.2014,Somerton Industrial Park,Grounds Maintenance,833.8,C & J GROUND MAINTENANCE
Revenue,Head of HR & Organisational Change,5105691050,26.09.2014,Properties  - Other Properties,Grounds Maintenance,50,C & J GROUND MAINTENANCE
Revenue,Head of Economy & Tourism,5105691056,24.09.2014,Archives,Prop Svs only - Day to day mtce,356,C & J GROUND MAINTENANCE
Revenue,Head of ASC & Community Wellbeing,5105687171,03.09.2014,Learning Disability Personal Budgets,Payments for Self Directed Support,146.32,REDACTED PERSONAL DATA
Revenue,Head of ASC & Community Wellbeing,5105687853,10.09.2014,Learning Disability Personal Budgets,Payments for Self Directed Support,970.88,REDACTED PERSONAL DATA
Revenue,Director of Childrens Services,5105687400,05.09.2014,In-house Fostering,Boarding Out Allowances,16.5,REDACTED PERSONAL DATA
Revenue,Director of Childrens Services,5105691284,26.09.2014,In-house Fostering,Boarding Out Allowances,16.5,REDACTED PERSONAL DATA
Revenue,Director of Childrens Services,5105688680,12.09.2014,In-house Fostering,Boarding Out Allowances,16.5,REDACTED PERSONAL DATA
Revenue,Director of Childrens Services,5105690159,19.09.2014,In-house Fostering,Boarding Out Allowances,16.5,REDACTED PERSONAL DATA
Revenue,Director of Childrens Services,5105690951,24.09.2014,Direct Payments Children & Families,Direct Payments,142.5,REDACTED PERSONAL DATA
Revenue,Head of ASC & Community Wellbeing,5105687830,10.09.2014,Learning Disability Personal Budgets,Payments for Self Directed Support,483.6,REDACTED PERSONAL DATA
Revenue,Head of ASC & Community Wellbeing,5105687900,10.09.2014,Elderly Frail Personal Budgets,Payments for Self Directed Support,554.24,REDACTED PERSONAL DATA
Revenue,Head of ASC & Community Wellbeing,5105688217,10.09.2014,Physical Disability Personal Budgets,Payments for Self Directed Support,"1,467.52",REDACTED PERSONAL DATA
Revenue,Director of Childrens Services,5105687375,05.09.2014,Children placed with Family&Friends,Boarding Out Allowances,278.5,REDACTED PERSONAL DATA
Revenue,Director of Childrens Services,5105690134,19.09.2014,Children placed with Family&Friends,Boarding Out Allowances,278.5,REDACTED PERSONAL DATA
Revenue,Director of Childrens Services,5105691258,26.09.2014,Children placed with Family&Friends,Boarding Out Allowances,278.5,REDACTED PERSONAL DATA
Revenue,Director of Childrens Services,5105688655,12.09.2014,Children placed with Family&Friends,Boarding Out Allowances,278.5,REDACTED PERSONAL DATA
Revenue,Director of Childrens Services,5105688632,12.09.2014,Special Guardianship Order Costs,Support Children,125.79,REDACTED PERSONAL DATA
Revenue,Director of Childrens Services,5105687352,05.09.2014,Special Guardianship Order Costs,Support Children,139.35,REDACTED PERSONAL DATA
Revenue,Director of Childrens Services,5105690111,19.09.2014,Special Guardianship Order Costs,Support Children,125.79,REDACTED PERSONAL DATA
Revenue,Director of Childrens Services,5105691235,26.09.2014,Special Guardianship Order Costs,Support Children,125.79,REDACTED PERSONAL DATA
Revenue,Head of Economy & Tourism,5105689238,17.09.2014,Crematorium,General Materials,16.21,C BREWER & SONS LTD
Revenue,Director of Childrens Services,5105687406,05.09.2014,Leaving Care Costs,Transport of Clients,6,REDACTED PERSONAL DATA
Revenue,Director of Childrens Services,5105690165,19.09.2014,Leaving Care Costs,Transport of Clients,6,REDACTED PERSONAL DATA
Revenue,Director of Childrens Services,5105688686,12.09.2014,Leaving Care Costs,Transport of Clients,6,REDACTED PERSONAL DATA
Revenue,Director of Childrens Services,5105691290,26.09.2014,Leaving Care Costs,Transport of Clients,6,REDACTED PERSONAL DATA
Revenue,Director of Childrens Services,5105687406,05.09.2014,Children placed with Family&Friends,Boarding Out Allowances,140.33,REDACTED PERSONAL DATA
